Workbook

Sheet 1
A1: 附件1
A2: 长城钻探公司2024年秋季高校毕业生招聘计划
A3: 序号 | B3: 招聘岗位 | C3: 学历要求 | D3: 招聘专业 | E3: 招聘计划 | F3: 工作地点 | G3: 备注
A4: 合计 | E4: =SUM(E5:E18) -> 230
A5: 1 | B5: 油田技术服务研究 | C5: 博士 | D5: 油气井工程、石油与天然气工程、电气工程及其自动化、自动化、机械设计制造及其自动化、机械电子工程、机械工程、机械设计及理论、智能制造工程、油气田开发工程、地质学、地质工程、地质资源与地质工程 | E5: 4 | F5: 北京 | G5: 北京生源优先
A6: 2 | B6: 油田化学研究 | C6: 博士 | D6: 高分子材料与工程、高分子化学与物理、有机化学、分析化学、化学、化学工程 | E6: 1 | F6: 江苏
A7: 3 | B7: 油气田开发工程 | C7: 硕士及以上 | D7: 油气田开发工程、石油与天然气工程、资源勘查工程、地质学、地质工程、地质资源与地质工程 | E7: 2 | F7: 北京 | G7: 北京生源优先
A8: 4 | B8: 财务管理 | C8: 本科及以上 | D8: 会计学、财务管理、税务、财政学、审计学、经济学、金融学 | E8: 5 | F8: 北京 | G8: 北京生源优先
A9: 5 | B9: 企业宣传 | C9: 本科及以上 | D9: 秘书学、汉语言文学、汉语言、汉语言文字学 | E9: 2 | F9: 北京 | G9: 北京生源优先
A10: 6 | B10: 企管法规 | C10: 硕士及以上 | D10: 法律、法学、诉讼法学、经济法学、国际法 | E10: 2 | F10: 北京 | G10: 北京生源优先
A11: 7 | B11: 数智化与信息工程 | C11: 本科及以上 | D11: 软件工程、网络工程、计算机科学与技术、计算机应用技术、计算机软件与理论、大数据管理与应用、信息与计算科学、电子信息科学与技术、智能科学与技术、人工智能、物联网工程、应用数学 | E11: 5 | F11: 北京 | G11: 北京生源优先
A12: 8 | B12: 油田化学研究 | C12: 硕士及以上 | D12: 高分子材料与工程、高分子化学与物理、发酵工程、生物信息学、有机化学、分析化学、化学、化学工程、应用化学 | E12: 7 | F12: 江苏
A13: 9 | B13: 油田技术服务 | C13: 本科及以上 | D13: 石油工程、海洋油气工程、油气井工程、质量管理工程、安全工程、船舶与海洋工程、石油与天然气工程、电气工程及其自动化、自动化、测控技术与仪器、机械设计制造及其自动化、机械电子工程、机械工程、过程装备与控制工程、轮机工程、机械设计及理论、智能制造工程 | E13: 135 | F13: 辽宁、四川、陕西、内蒙、海外
A14: 10 | B14: 油气田开发工程 | C14: 本科及以上 | D14: 油气田开发工程、石油与天然气工程、资源勘查工程、地质学、地质工程、地质资源与地质工程 | E14: 20 | F14: 辽宁、四川、陕西、内蒙、海外
A15: 11 | B15: 钻完井压裂工程 | C15: 本科及以上 | D15: 应用化学、化学工程与工艺、化学、化学工程、化学工艺、新能源科学与工程、高分子材料与工程 | E15: 20 | F15: 辽宁、四川、陕西、内蒙、海外
A16: 12 | B16: 数智化与信息工程 | C16: 硕士及以上 | D16: 软件工程、网络工程、计算机科学与技术、计算机应用技术、计算机软件与理论、大数据管理与应用、信息与计算科学、电子信息科学与技术、智能科学与技术、人工智能、物联网工程、应用数学 | E16: 8 | F16: 辽宁、四川、陕西、内蒙、海外
A17: 13 | B17: 财务管理 | C17: 本科及以上 | D17: 会计学、财务管理、税务、财政学、审计学、金融学 | E17: 13 | F17: 辽宁、四川、陕西、内蒙、海外
A18: 14 | B18: 企管法规 | C18: 本科及以上 | D18: 法律、法学、诉讼法学、经济法学、国际法 | E18: 6 | F18: 辽宁、四川、陕西、内蒙、海外

Sheet 基础分评分表20201124 (hidden)
A1: 长城钻探高校毕业生招聘面试基础分评分表（2020.11.24）
A2: 序号 | B2: 个人基本情况 | H2: 个人基础量化分(50分) | O2: 研究生科研能力（20分） | R2: 总得分 | S2: 备注
B3: 姓名 | C3: 性别 | D3: 出生年月 | E3: 学历 | F3: 毕业院校 | G3: 所学专业 | H3: 毕业院校（10分） | I3: 学习成绩（20分） | J3: 外语水平（8分） | K3: 计算机水平（2分） | L3: 荣誉称号 (5分) | M3: 获奖学金 (5分) | N3: 基础分合计 | O3: 发表论文 (10分) | P3: 研究方向 (10分) | Q3: 科研分合计 | T3: 学分绩点 | U3: 英语成绩 | V3: 计算机证书 | W3: 获得荣誉情况 | X3: 获奖学金情况 | Y3: 发表论文情况 | Z3: 研究方向情况
A4: 1 | B4: 任和 | C4: 男 | D4: 1994.10 | E4: 硕士 | F4: 西南石油大学 | G4: 石油工程 | H4: 2 | I4: =4*T4 -> 10.56 | J4: 5 | K4: 0 | N4: =SUM(H4:M4) -> 17.56 | Q4: =SUM(O4:P4) -> 0 | R4: =N4+Q4 -> 17.56 | T4: 2.64 | U4: 六431 | V4: 无 | W4: 无 | X4: 无 | Y4: 无 | Z4: 阻垢剂的合成评价
A5: 2 | B5: 苏留玉 | C5: 男 | D5: 1999.12 | E5: 本科 | F5: 西安石油大学 | G5: 石油工程 | H5: 2 | I5: 9.92 | J5: 2 | N5: =SUM(H5:M5) -> 13.92 | Q5: =SUM(O5:P5) -> 0 | R5: =N5+Q5 -> 13.92 | T5: 2.48 | U5: 四441 | V5: 无 | W5: 无 | X5: 无
A6: 3 | B6: 朱敏鹏 | C6: 男 | D6: 1999.02 | E6: 本科 | F6: 辽宁石油化工大学 | G6: 石油工程 | H6: 2 | I6: =4*T6/2 -> 9.9 | J6: 3 | N6: 14.9 | Q6: 0 | R6: 14.9 | S6: 辽宁石油化工大学学分绩点满分为10分，折算为5分制度 | T6: 4.95 | U6: 四464 | V6: 无 | W6: 无 | X6: 无
A7: 4 | B7: 任炳南 | C7: 男 | D7: 1999.02 | E7: 本科 | F7: 东北石油大学 | G7: 石油工程 | H7: 2 | I7: =4*T7 -> 13.08 | J7: 2 | N7: 17.08 | Q7: 0 | R7: 17.08 | T7: 3.27 | U7: 四427 | V7: 无 | W7: 无 | X7: 无
A8: 5 | B8: 冀瑜 | C8: 男 | D8: 1998.05 | E8: 本科 | F8: 西安石油大学 | G8: 石油工程 | H8: 2 | I8: 10.2 | J8: 2 | N8: 14.2 | Q8: 0 | R8: 14.2 | T8: 2.55 | U8: 四437 | V8: 无 | W8: 无 | X8: 无
A9: 6 | B9: 杨帆 | C9: 男 | D9: 1999.08 | E9: 本科 | F9: 辽宁石油化工大学 | G9: 石油工程 | H9: 2 | I9: =4*T9/2 -> 11.8 | J9: 2 | K9: 2 | L9: 5 | M9: 5 | N9: 27.8 | Q9: 0 | R9: 27.8 | S9: 辽宁石油化工大学学分绩点满分为10分，折算为5分制度 | T9: 5.9 | U9: 四447 | V9: 计算机2级证书 | W9: 校级优秀学生 | X9: 二等奖学金
A10: 7 | B10: 李越 | C10: 男 | D10: 1999.01 | E10: 本科 | F10: 重庆科技学院 | G10: 石油工程 | H10: 2 | I10: 10.8 | J10: 3 | N10: 15.8 | Q10: 0 | R10: 15.8 | T10: 2.7 | U10: 四455 | V10: 无 | W10: 无 | X10: 无
A11: 8 | B11: 郭子维 | C11: 男 | D11: 1999.05 | E11: 本科 | F11: 长江大学 | G11: 石油工程 | H11: 2 | I11: 8.84 | J11: 2 | N11: 12.84 | Q11: 0 | R11: 12.84 | T11: 2.21 | U11: 四425 | V11: 无 | W11: 无 | X11: 无
A12: 9 | B12: 林雨祥 | C12: 男 | D12: 1998.03 | E12: 本科 | F12: 中国石油大学(北京) | G12: 石油工程 | H12: 3 | I12: 10 | J12: 5 | K12: 2 | L12: 2 | N12: 22 | Q12: 0 | R12: 22 | T12: 2.5 | U12: 六449 | V12: NCRE国家计算机二级 | W12: 中国石油大学石油工程学院赴京津冀一体化竞赛 三等奖 | X12: 无
A13: 10 | B13: 陈柯源 | C13: 男 | D13: 1997.11 | E13: 本科 | F13: 长江大学 | G13: 石油工程 | H13: 2 | I13: 7.48 | J13: 2 | N13: 11.48 | Q13: 0 | R13: 11.48 | T13: 1.87 | U13: 四441 | V13: 无 | W13: 无 | X13: 无
A14: 11 | B14: 赵文瑞 | C14: 男 | D14: 1998.10 | E14: 本科 | F14: 西安石油大学 | G14: 海洋油气工程 | H14: 2 | I14: 8.52 | J14: 4 | N14: 14.52 | Q14: 0 | R14: 14.52 | T14: 2.13 | U14: 四477 | V14: 无 | W14: 无 | X14: 无
A15: 12 | B15: 王汉昌 | C15: 男 | D15: 1998.11 | E15: 本科 | F15: 西安石油大学 | G15: 海洋油气工程 | H15: 2 | I15: 11.36 | J15: 2 | L15: 2 | N15: 17.36 | Q15: 0 | R15: 17.36 | T15: 2.84 | U15: 四434 | V15: 无 | W15: 校级优秀团员 | X15: 无
A16: 13 | B16: 徐仁宽 | C16: 男 | D16: 1999.02 | E16: 本科 | F16: 西南石油大学 | G16: 海洋油气工程 | H16: 2 | I16: 11.36 | J16: 2 | N16: 15.36 | Q16: 0 | R16: 15.36 | T16: 2.84 | U16: 四446 | V16: 无 | W16: 无 | X16: 无
A17: 14 | B17: 王晟霖 | C17: 男 | D17: 1994.10 | E17: 硕士 | F17: 重庆科技学院 | G17: 油气井工程 | H17: 2 | I17: 14 | J17: 5 | K17: 2 | L17: 5 | N17: 28 | Q17: 0 | R17: 28 | T17: 3.5 | U17: 六426 | V17: 计算机二级 | W17: 全国大学生数学竞赛（非数学专业）二等奖 中国石油工程设计大赛 （一等奖） | X17: 无 | Y17: 无 | Z17: 管柱力学
A18: 15 | B18: 潘旭 | C18: 男 | D18: 1997.12 | E18: 本科 | F18: 西安石油大学 | G18: 石油与天然气工程 | H18: 2 | I18: 9.68 | J18: 2 | N18: 13.68 | Q18: 0 | R18: 13.68 | T18: 2.42 | U18: 四450 | V18: 无 | W18: 无 | X18: 无
A19: 16 | B19: 刘益林 | C19: 男 | D19: 1994.05 | E19: 硕士 | F19: 燕山大学 | G19: 石油与天然气工程 | H19: 2 | I19: 10 | J19: 5 | L19: 2 | N19: 19 | Q19: 0 | R19: 19 | T19: 2.5 | U19: 六426 | V19: 无 | W19: 中国石油设计大赛二等奖 | X19: 无 | Y19: 无 | Z19: 岩浆岩储集空 间类型研究
A20: 17 | B20: 戴立瑶 | C20: 男 | D20: 1994.05 | E20: 硕士 | F20: 中国石油大学(华东) | G20: 石油与天然气工程 | H20: 3 | I20: 15 | J20: 7 | N20: 25 | Q20: 0 | R20: 25 | S20: 平均分 | T20: 75 | U20: 六490 | V20: 无 | W20: 全国三等奖，无内容 | X20: 无 | Y20: 无 | Z20: 油基钻井液堵 漏剂
A21: 18 | B21: 张亦驰 | C21: 男 | D21: 1996.03 | E21: 硕士 | F21: 中国石油大学(北京) | G21: 石油与天然气工程 | H21: 3 | I21: 15.96 | J21: 5 | L21: 5 | N21: 28.96 | Q21: 0 | R21: 28.96 | S21: 平均分 | T21: 79.8 | U21: 六430 | V21: 无 | W21: 优秀学生干部 | X21: 无 | Y21: 无 | Z21: 高温高压窄压 力窗口钻井工 艺研究深水高 温高压井早期 溢流监测与识 别技术研究控 压钻井技术研究方向
A22: 19 | B22: 陈晓鹏 | C22: 男 | D22: 1998.01 | E22: 本科 | F22: 西安石油大学 | G22: 资源勘查工程 | H22: 2 | I22: 10.6 | J22: 2 | N22: 14.6 | Q22: 0 | R22: 14.6 | T22: 2.65 | U22: 四448 | V22: 无 | W22: 无 | X22: 无
A23: 20 | B23: 吕俊儒 | C23: 男 | D23: 2000.05 | E23: 本科 | F23: 中国石油大学(华东) | G23: 资源勘查工程 | H23: 3 | I23: 15.43 | J23: 3 | L23: 2 | M23: 2 | N23: 25.43 | Q23: 0 | R23: 25.43 | S23: 加权平均分 | T23: 77.14 | U23: 四473 | V23: 无 | W23: 校园舞蹈大赛金奖 | X23: 文体奖学金
A24: 21 | B24: 张旭龙 | C24: 男 | D24: 1996.04 | E24: 硕士 | F24: 天津大学 | G24: 地质学 | H24: 3 | I24: 15.96 | J24: 5 | L24: 5 | M24: 2 | N24: =SUM(H24:M24) -> 30.96 | Q24: =SUM(O24:P24) -> 0 | R24: =N24+Q24 -> 30.96 | S24: 平均分 | T24: 79.82 | U24: 六430 | W24: 校级优秀共青团员 | X24: 校级奖学金 | Z24: 基于中国西南封闭湖泊湖面面积，水位演化及水文模拟；课题：中国西南地区近千年湖泊水位变化
A25: 22 | B25: 陈子扬 | C25: 男 | D25: 1995.09 | E25: 硕士 | F25: 俄罗斯国立古勃金石油与天然气大学 | G25: 地质工程 | H25: 2 | I25: =4*T25 -> 16.72 | J25: 6 | K25: 0 | L25: 5 | M25: 2 | N25: 31.72 | O25: 0 | Q25: 0 | R25: 31.72 | T25: 4.18 | U25: 六464 | V25: 无 | W25: 校级三好生 | X25: 校级二等奖学金 | Y25: 无 | Z25: 松辽盆地乾安井区三维地层模拟。建立沉积微相模型、相控属性模型，实现了储层参数空间的定量描绘。
A26: 23 | B26: 徐恩泽 | C26: 男 | D26: 1995.06 | E26: 硕士 | F26: 长江大学 | G26: 地质工程 | H26: 2 | I26: 13.92 | J26: 6 | L26: 0 | M26: 2 | N26: 23.92 | Q26: 0 | R26: 23.92 | T26: 3.48 | U26: 六472 | V26: 无 | W26: 无 | X26: 校级一等奖学金 | Y26: 无 | Z26: 旋回地层
A27: 24 | B27: 李博 | C27: 男 | D27: 1996.04 | E27: 硕士 | F27: 中国石油大学(华东) | G27: 地质资源与地质工程 | H27: 3 | I27: 16.47 | J27: 5 | N27: 24.47 | Q27: 0 | R27: 24.47 | S27: 平均分 | T27: 82.33 | U27: 六435 | V27: 无 | W27: 无 | X27: 无 | Y27: 无 | Z27: 岩石物理
A28: 25 | B28: 姚旭瑞 | C28: 男 | D28: 1995.12 | E28: 本科 | F28: 淮北师范大学 | G28: 应用化学 | H28: 2 | I28: 11.44 | J28: 2 | N28: 15.44 | Q28: 0 | R28: 15.44 | T28: 2.86 | U28: 四444 | V28: 无 | W28: 无 | X28: 无
A29: 26 | B29: 张伟 | C29: 男 | D29: 1998.09 | E29: 本科 | F29: 中国石油大学(北京) | G29: 应用化学 | H29: 3 | I29: 13.64 | J29: 2 | M29: 2 | N29: 20.64 | Q29: 0 | R29: 20.64 | T29: 3.41 | U29: 四425 | V29: 无 | W29: 校级优秀团员 | X29: 无
A30: 27 | B30: 张浩东 | C30: 男 | D30: 1999.01 | E30: 本科 | F30: 成都理工大学 | G30: 应用化学 | H30: 2 | I30: 12.4 | J30: 3 | L30: 5 | N30: 22.4 | Q30: 0 | R30: 22.4 | T30: 3.1 | U30: 四473 | V30: 无 | W30: 校级优秀团支部书记 | X30: 无
A31: 28 | B31: 张钧博 | C31: 男 | D31: 1995.03 | E31: 硕士 | F31: 辽宁大学 | G31: 应用化学 | H31: 3 | I31: 15.68 | J31: 5 | N31: 23.68 | Q31: 0 | R31: 23.68 | S31: 平均分 | T31: 78.4 | U31: 六428 | V31: 无 | W31: 无 | X31: 无 | Y31: 无 | Z31: 磁性皮克林乳液的研究
A32: 29 | B32: 白百川 | C32: 男 | D32: 1998.05 | E32: 本科 | F32: 太原理工大学 | G32: 应用化学 | H32: 2 | I32: 14.48 | J32: 4 | N32: 20.48 | Q32: 0 | R32: 20.48 | T32: 3.62 | U32: 四491 | V32: 无 | W32: 无 | X32: 无
A33: 30 | B33: 黄清洪 | C33: 男 | D33: 1998.04 | E33: 本科 | F33: 西南石油大学 | G33: 应用化学 | H33: 2 | I33: 11.32 | J33: 3 | N33: 16.32 | Q33: 0 | R33: 16.32 | T33: 2.83 | U33: 四459 | V33: 无 | W33: 无 | X33: 无
A34: 31 | B34: 孙鹏宇 | C34: 男 | D34: 1999.12 | E34: 本科 | F34: 西安石油大学 | G34: 电气工程及其自动化 | H34: 2 | I34: 9.2 | J34: 3 | L34: 5 | N34: 19.2 | Q34: 0 | R34: 19.2 | T34: 2.3 | U34: 四462 | V34: 无 | W34: 校级优秀学生干部 | X34: 无
A35: 32 | B35: 朱安东 | C35: 男 | D35: 1997.06 | E35: 本科 | F35: 上海电机学院 | G35: 电气工程及其自动化 | H35: 2 | I35: 10 | J35: 5 | N35: 17 | Q35: 0 | R35: 17 | T35: 2.5 | U35: 四521 | V35: 无 | W35: 无 | X35: 无
A36: 33 | B36: 陈新炎 | C36: 男 | D36: 1999.07 | E36: 本科 | F36: 沈阳化工大学 | G36: 电气工程及其自动化 | H36: 2 | I36: =4*T36 -> 13.08 | J36: 3 | M36: 2 | N36: 20.08 | Q36: 0 | R36: 20.08 | T36: 3.27 | U36: 四451 | V36: 无 | W36: 无 | X36: 校级二等奖学金
A37: 34 | B37: 王文杰 | C37: 男 | D37: 1998.06 | E37: 本科 | F37: 东北石油大学 | G37: 电气工程及其自动化 | H37: 2 | I37: 10.44 | J37: 2 | N37: 14.44 | Q37: 0 | R37: 14.44 | T37: 2.61 | U37: 四432 | V37: 无 | W37: 无 | X37: 无
A38: 35 | B38: 张天 | C38: 男 | D38: 1999.04 | E38: 本科 | F38: 东北石油大学 | G38: 电气工程及其自动化 | H38: 2 | I38: 16.68 | J38: 3 | L38: 5 | M38: 5 | N38: 31.68 | Q38: 0 | R38: 31.68 | T38: 4.17 | U38: 四452 | V38: 无 | W38: 校级三好学生 | X38: 国家励志奖学金
A39: 36 | B39: 刘俊享 | C39: 男 | D39: 1999.09 | E39: 本科 | F39: 东北石油大学 | G39: 电气工程及其自动化 | H39: 2 | I39: 10.8 | J39: 2 | N39: 14.8 | Q39: 0 | R39: 14.8 | T39: 2.7 | U39: 四438 | V39: 无 | W39: 无 | X39: 无
A40: 37 | B40: 张昱 | C40: 男 | D40: 1998.12 | E40: 本科 | F40: 东北石油大学 | G40: 电气工程及其自动化 | H40: 2 | I40: 14.28 | J40: 2 | N40: 18.28 | Q40: 0 | R40: 18.28 | T40: 3.57 | U40: 四445 | V40: 无 | W40: 无 | X40: 无
A41: 38 | B41: 王国新 | C41: 男 | D41: 2000.01 | E41: 本科 | F41: 东北石油大学 | G41: 电气工程及其自动化 | H41: 2 | I41: 12.84 | J41: 2 | L41: 2 | N41: 18.84 | Q41: 0 | R41: 18.84 | T41: 3.21 | U41: 四431 | V41: 无 | W41: 国家级大学生创新创业训练计划项目 | X41: 无
A42: 39 | B42: 王晓东 | C42: 男 | D42: 1995.08 | E42: 硕士 | F42: 太原科技大学 | G42: 电气工程及其自动化 | H42: 2 | I42: 12 | J42: 5 | L42: 4 | M42: 5 | N42: 28 | Q42: 0 | R42: 28 | T42: 3 | U42: 六429 | V42: 无 | W42: 院级三好生 | X42: 国家级励志奖学金 | Y42: 无 | Z42: 先进控制理论及应用，计算机测控系统及装置
A43: 40 | B43: 刘迪 | C43: 男 | D43: 1999.03 | E43: 本科 | F43: 东北石油大学 | G43: 电气工程及其自动化 | H43: 2 | I43: 10.44 | J43: 2 | N43: 14.44 | Q43: 0 | R43: 14.44 | T43: 2.61 | U43: 四435 | V43: 无 | W43: 无 | X43: 无
A44: 41 | B44: 卢中豪 | C44: 男 | D44: 1998.03 | E44: 本科 | F44: 昆明理工大学 | G44: 电气工程及其自动化 | H44: 2 | I44: 9.36 | J44: 4 | L44: 2 | M44: 2 | N44: 19.36 | Q44: 0 | R44: 19.36 | T44: 2.34 | U44: 四487 | V44: 无 | W44: 省部级英语竞赛优秀奖 | X44: 校级优秀学生奖学金
A45: 42 | B45: 陈铁友 | C45: 男 | D45: 1997.08 | E45: 本科 | F45: 长春工业大学 | G45: 自动化 | H45: 2 | I45: 9.64 | J45: 3 | N45: 14.64 | Q45: 0 | R45: 14.64 | T45: 2.41 | U45: 四460 | V45: 无 | W45: 无 | X45: 无
A46: 43 | B46: 王圣禹 | C46: 男 | D46: 1997.02 | E46: 本科 | F46: 辽宁工程技术大学 | G46: 自动化 | H46: 2 | I46: 8.4 | J46: 2 | N46: 12.4 | Q46: 0 | R46: 12.4 | T46: 2.1 | U46: 四435 | V46: 无 | W46: 无 | X46: 无
A47: 44 | B47: 王冠明 | C47: 男 | D47: 1999.03 | E47: 本科 | F47: 北京理工大学 | G47: 自动化 | H47: 3 | I47: =85.5/100*5*4 -> 17.1 | J47: 5 | N47: 25.1 | Q47: 0 | R47: 25.1 | S47: 该校不采用学分绩点制，学分加权平均成绩 | T47: 85.5 | U47: 四529 | V47: 无 | W47: 无 | X47: 无
A48: 45 | B48: 崔雪春 | C48: 男 | D48: 1995.04 | E48: 本科 | F48: 东北石油大学 | G48: 自动化 | H48: 2 | I48: 7.28 | J48: 3 | L48: 2 | N48: 14.28 | Q48: 0 | R48: 14.28 | T48: 1.82 | U48: 四452 | V48: 无 | W48: 优秀义务兵 | X48: 无
A49: 46 | B49: 许世崧 | C49: 男 | D49: 1998.11 | E49: 本科 | F49: 中国石油大学(华东) | G49: 自动化 | H49: 3 | I49: 14.32 | J49: 3 | N49: 20.32 | Q49: 0 | R49: 20.32 | S49: 加权平均分 | T49: 71.59 | U49: 四458 | V49: 无 | W49: 无 | X49: 无
A50: 47 | B50: 张国峰 | C50: 男 | D50: 1998.02 | E50: 本科 | F50: 东北石油大学 | G50: 自动化 | H50: 2 | I50: 8.56 | J50: 2 | N50: 12.56 | Q50: 0 | R50: 12.56 | T50: 2.14 | U50: 四425 | V50: 无 | W50: 无 | X50: 无
A51: 48 | B51: 何兵涛 | C51: 男 | D51: 1997.06 | E51: 本科 | F51: 辽宁石油化工大学 | G51: 自动化 | H51: 2 | I51: =4*T51/2 -> 10.44 | J51: 2 | K51: 2 | L51: 2 | M51: 2 | N51: 20.44 | Q51: 0 | R51: 20.44 | S51: 辽宁石油化工大学学分绩点满分为10分，折算为5分制度 | T51: 5.22 | U51: 四438 | V51: 计算机二级C语言 | W51: 省部级电子竞赛三等奖 | X51: 校级勤奋二等奖学金
A52: 49 | B52: 王镇 | C52: 男 | D52: 1999.03 | E52: 本科 | F52: 上海理工大学 | G52: 自动化 | H52: 2 | I52: 13.2 | J52: 4 | M52: 5 | N52: 24.2 | Q52: 0 | R52: 24.2 | S52: 不来面试了 | T52: 3.3 | U52: 四487 | V52: 无 | W52: 无 | X52: 国家级励志奖学金
A53: 50 | B53: 刘旭 | C53: 男 | D53: 1998.05 | E53: 本科 | F53: 辽宁石油化工大学 | G53: 自动化 | H53: 2 | I53: =4*T53/2 -> 10.7 | J53: 3 | N53: 15.7 | Q53: 0 | R53: 15.7 | S53: 辽宁石油化工大学学分绩点满分为10分，折算为5分制度 | T53: 5.35 | U53: 四469 | V53: 无 | W53: 无 | X53: 无
A54: 51 | B54: 李育浩 | C54: 男 | D54: 1999.02 | E54: 本科 | F54: 中国石油大学(北京) | G54: 自动化 | H54: 3 | I54: =4*T54 -> 12.12 | J54: 2 | M54: 2 | N54: 19.12 | Q54: 0 | R54: 19.12 | T54: 3.03 | U54: 四447 | X54: 校级三等奖学金
A55: 52 | B55: 唐家松 | C55: 男 | D55: 1999.01 | E55: 本科 | F55: 东北石油大学 | G55: 自动化 | H55: 2 | I55: 8.2 | J55: 2 | N55: 12.2 | Q55: 0 | R55: 12.2 | T55: 2.05 | U55: 四427
A56: 53 | B56: 刘鑫艺 | C56: 男 | D56: 1997.08 | E56: 本科 | F56: 辽宁石油化工大学 | G56: 自动化 | H56: 2 | I56: =4*T56/2 -> 13.06 | J56: 2 | L56: 2 | M56: 2 | N56: 21.06 | Q56: 0 | R56: 21.06 | S56: 辽宁石油化工大学学分绩点满分为10分，折算为5分制度 | T56: 6.53 | U56: 四429 | W56: 校级优秀团员 | X56: 校级二等奖学金
A57: 54 | B57: 张义东 | C57: 男 | D57: 1997.10 | E57: 本科 | F57: 东北石油大学 | G57: 自动化 | H57: 2 | I57: 13.52 | J57: 6 | N57: 21.52 | Q57: 0 | R57: 21.52 | T57: 3.38 | U57: 六472
A58: 55 | B58: 冯康博 | C58: 男 | D58: 1999.06 | E58: 本科 | F58: 东北石油大学 | G58: 自动化 | H58: 2 | I58: 9.08 | J58: 4 | L58: 2 | N58: 17.08 | Q58: 0 | R58: 17.08 | T58: 2.27 | U58: 四487 | W58: 校级优秀青年志愿者
A59: 56 | B59: 余泽轩 | C59: 男 | D59: 1995.08 | E59: 硕士 | F59: 新疆大学 | G59: 控制工程 | H59: 3 | I59: 11.96 | J59: 7 | M59: 2 | N59: 23.96 | O59: 2 | Q59: 2 | R59: 25.96 | T59: 2.99 | U59: 六483 | X59: 校级三等奖学金 | Y59: 四区论文-基于小波的改进双端输电线路电压行波故障定位，省级创新训练计划-基于单片机温度信号监控与手机终端联动系统研究 | Z59: 电力系统故障定位
A60: 57 | B60: 王利锋 | C60: 男 | D60: 1996.06 | E60: 硕士 | F60: 青岛理工大学 | G60: 控制工程 | H60: 2 | I60: 13.6 | J60: 5 | L60: 5 | M60: 2 | N60: 27.6 | Q60: 0 | R60: 27.6 | T60: 3.4 | U60: 六440 | W60: 校级优秀学生干部，“华为杯”第16届中国研究生数学建模竞赛二等奖 | X60: 校级二等奖学金 | Y60: 无 | Z60: 海上油膜检测 ，数字图像处 理
A61: 58 | B61: 邹铧葳 | C61: 男 | D61: 1998.07 | E61: 本科 | F61: 沈阳化工大学 | G61: 机械设计制造及其自动化 | H61: 2 | I61: 12.2 | J61: 6 | M61: 2 | N61: 22.2 | Q61: 0 | R61: 22.2 | T61: 3.05 | U61: 六455 | X61: 校级二等奖学金
A62: 59 | B62: 田若尘 | C62: 男 | D62: 1999.02 | E62: 本科 | F62: 中国石油大学(北京) | G62: 机械设计制造及其自动化 | H62: 3 | I62: 10.12 | J62: 2 | N62: 15.12 | Q62: 0 | R62: 15.12 | T62: 2.53 | U62: 四433
A63: 60 | B63: 段文斌 | C63: 男 | D63: 1999.01 | E63: 本科 | F63: 临沂大学 | G63: 机械设计制造及其自动化 | H63: 2 | I63: 14.08 | J63: 5 | L63: 2 | M63: 2 | N63: 25.08 | Q63: 0 | R63: 25.08 | T63: 3.52 | U63: 六445 | W63: 山东省大学生物理竞赛二等奖，山东省大学生数学竞赛三等奖 获 | X63: 校级二等奖学金
A64: 61 | B64: 张辉 | C64: 男 | D64: 1998.06 | E64: 本科 | F64: 天津工业大学 | G64: 机械设计制造及其自动化 | H64: 2 | I64: 13.16 | J64: 3 | N64: 18.16 | Q64: 0 | R64: 18.16 | T64: 3.29 | U64: 四453
A65: 62 | B65: 杜佳庆 | C65: 男 | D65: 1999.09 | E65: 本科 | F65: 杭州电子科技大学 | G65: 机械设计制造及其自动化 | H65: 2 | I65: 11.68 | J65: 2 | L65: 2 | N65: 17.68 | Q65: 0 | R65: 17.68 | T65: 2.92 | U65: 四433 | W65: 参加青年创业大赛获得校级二等奖
A66: 63 | B66: 王键 | C66: 男 | D66: 1998.12 | E66: 本科 | F66: 河北科技大学 | G66: 机械设计制造及其自动化 | H66: 2 | I66: 12 | J66: 4 | N66: 18 | Q66: 0 | R66: 18 | T66: 3 | U66: 四490
A67: 64 | B67: 李程铭 | C67: 男 | D67: 1998.08 | E67: 本科 | F67: 西安石油大学 | G67: 机械设计制造及其自动化 | H67: 2 | I67: 8.68 | J67: 3 | N67: 13.68 | Q67: 0 | R67: 13.68 | T67: 2.17 | U67: 四456
A68: 65 | B68: 刘志佳 | C68: 男 | D68: 1998.11 | E68: 本科 | F68: 东北石油大学 | G68: 机械设计制造及其自动化 | H68: 2 | I68: 11.32 | J68: 4 | N68: 17.32 | Q68: 0 | R68: 17.32 | T68: 2.83 | U68: 四477
A69: 66 | B69: 季翔宇 | C69: 男 | D69: 1998.05 | E69: 本科 | F69: 吉林化工学院 | G69: 机械设计制造及其自动化 | H69: 2 | I69: 12.8 | J69: 2 | M69: 2 | N69: 18.8 | Q69: 0 | R69: 18.8 | T69: 3.2 | U69: 四435 | X69: 校级二等奖学金
A70: 67 | B70: 黄清林 | C70: 男 | D70: 1998.01 | E70: 本科 | F70: 兰州理工大学 | G70: 过程装备与控制工程 | H70: 2 | I70: 11.68 | J70: 3 | L70: 2 | M70: 2 | N70: 20.68 | Q70: 0 | R70: 20.68 | T70: 2.92 | U70: 四463 | W70: 全国大学生英语写作大赛，获得校赛阶段校级三等奖 | X70: 校级二等奖学金
A71: 68 | B71: 赵泓禹 | C71: 男 | D71: 1994.02 | E71: 硕士 | F71: 阿塞拜疆国立石油与工业大学 | G71: 过程装备与控制工程 | H71: 2 | I71: 11.96 | J71: 2 | M71: 2 | N71: 17.96 | Q71: 0 | R71: 17.96 | T71: 2.99 | U71: 四426 | X71: 校级二等奖学金 | Y71: 无 | Z71: 液压振动器的 研究及振动对 地层冲击过程 的改进
A72: 69 | B72: 雷鹏正 | C72: 男 | D72: 1998.04 | E72: 本科 | F72: 吉林化工学院 | G72: 过程装备与控制工程 | H72: 2 | I72: 10.2 | J72: 2 | N72: 14.2 | Q72: 0 | R72: 14.2 | T72: 2.55 | U72: 四433
A73: 70 | B73: 刘相辰 | C73: 男 | D73: 1999.08 | E73: 本科 | F73: 南京工业大学 | G73: 过程装备与控制工程 | H73: 2 | I73: 12 | J73: 4 | N73: 18 | Q73: 0 | R73: 18 | T73: 3 | U73: 四479
A74: 71 | B74: 王玉宗 | C74: 男 | D74: 1997.11 | E74: 本科 | F74: 大连工业大学 | G74: 机械电子工程 | H74: 2 | I74: 8.08 | J74: 2 | N74: 12.08 | Q74: 0 | R74: 12.08 | T74: 2.02 | U74: 四428
A75: 72 | B75: 刘长久 | C75: 男 | D75: 1999.08 | E75: 本科 | F75: 西华大学 | G75: 机械电子工程 | H75: 2 | I75: 11.2 | J75: 4 | L75: 4 | N75: 21.2 | Q75: 0 | R75: 21.2 | T75: 2.8 | U75: 四497 | W75: 院三好学生
A76: 73 | B76: 武文亮 | C76: 男 | D76: 1992.09 | E76: 硕士 | F76: 内蒙古工业大学 | G76: 机械工程 | H76: 2 | I76: 16.1 | J76: 7 | M76: 2 | N76: 27.1 | Q76: 0 | R76: 27.1 | S76: 平均分 | T76: 80.5 | U76: 六483 | X76: 校级一等奖学金 | Y76: 无 | Z76: 天然草场高效 收获工艺技术 及关键装备研 发；智能化草 地收获作业关 键装备研制
A77: 74 | B77: 韩聪聪 | C77: 男 | D77: 1995.05 | E77: 硕士 | F77: 青岛科技大学 | G77: 机械工程 | H77: 2 | I77: 8 | J77: 5 | N77: 15 | Q77: 0 | R77: 15 | T77: 2 | U77: 六442 | Y77: 无 | Z77: 机器人及智能 制造
A78: 75 | B78: 孙浩 | C78: 男 | D78: 1995.11 | E78: 硕士 | F78: 北方工业大学 | G78: 机械工程 | H78: 2 | I78: 17.2 | J78: 5 | L78: 5 | M78: 2 | N78: 31.2 | Q78: 0 | R78: 31.2 | S78: 不来面试了 | T78: 86 | U78: 六429 | W78: 校级三好学生 | X78: 校级二等奖学金 | Y78: 无 | Z78: 机电控制，深 度学习 ；基于 深度学习的光 学引伸计的研 究与开发
A79: 76 | B79: 廖伯权 | C79: 男 | D79: 1995.12 | E79: 硕士 | F79: 四川轻化工大学 | G79: 机械工程 | H79: 2 | I79: 10 | J79: 5 | L79: 2 | M79: 4 | N79: 23 | Q79: 0 | R79: 23 | S79: 绩点为本科绩点，硕士绩点标注为0 | T79: 2.5 | U79: 六440 | W79: “华为杯”中国研究生数学建模竞赛三等奖，“龙腾杯”中国大学生创意创新大赛二等奖，《一种多管式滚筒冷渣机灰渣运动试验平台》 （第一发明人） | X79: 省部级二等奖学金 | Y79: 无 | Z79: 火电阀门流场 与结构分析、 锅炉灰渣传热 与运动研究
A80: 77 | B80: 李申 | C80: 男 | D80: 1995.10 | E80: 硕士 | F80: 广东工业大学 | G80: 机械工程 | H80: 2 | I80: 14 | J80: 5 | L80: 5 | M80: 2 | N80: 28 | Q80: 0 | R80: 28 | T80: 3.5 | U80: 六450 | W80: 校级优秀学生干部 | X80: 校级一等奖学金 | Y80: 无 | Z80: 图像处理，细 胞分割
A81: 78 | B81: 李嘉义 | C81: 男 | D81: 1995.01 | E81: 硕士 | F81: 辽宁石油化工大学 | G81: 机械工程 | H81: 2 | I81: =4*T81/2 -> 5.6 | J81: 6 | L81: 2 | M81: 2 | N81: 17.6 | Q81: 0 | R81: 17.6 | S81: 辽宁石油化工大学学分绩点满分为10分，折算为5分制度 | T81: 2.8 | U81: 六452 | W81: 第六届中国研究生能源装备创新设计大赛三等奖 | X81: 校级二等奖学金 | Y81: 无 | Z81: 水煤浆气化炉 渣水处理系统 可靠性研究
A82: 79 | B82: 廖诗睿 | C82: 男 | D82: 1993.06 | E82: 硕士 | F82: 浙江大学 | G82: 机械设计及理论 | H82: 3 | I82: 15.32 | J82: 5 | L82: 5 | N82: 28.32 | Q82: 0 | R82: 28.32 | T82: 3.83 | U82: 六426 | W82: 校级优秀学生干部 | Y82: 无 | Z82: 基于虚拟现实 的金工实训系 统关键技术研 究
A83: 80 | B83: 贾敏鲜 | C83: 男 | D83: 1999.03 | E83: 本科 | F83: 中国石油大学(北京) | G83: 勘查技术与工程 | H83: 3 | I83: 10.4 | J83: 2 | L83: 5 | M83: 2 | N83: 22.4 | Q83: 0 | R83: 22.4 | T83: 2.6 | U83: 四433 | W83: 校级优秀三好学生 | X83: 校级二等奖学金
A84: 81 | B84: 潘世鑫 | C84: 男 | D84: 2000.01 | E84: 本科 | F84: 中国石油大学(华东) | G84: 勘查技术与工程 | H84: 3 | I84: 16.65 | J84: 6 | L84: 2 | M84: 2 | N84: =SUM(H84:M84) -> 29.65 | Q84: =SUM(O84:P84) -> 0 | R84: =N84+Q84 -> 29.65 | S84: 加权平均分 | T84: 83.24 | U84: 六457 | V84: 无 | W84: 山东地质学会"优秀志愿者" | X84: 校级三等奖
A85: 82 | B85: 苏帅宇 | C85: 男 | D85: 1999.02 | E85: 本科 | F85: 东北石油大学 | G85: 勘查技术与工程 | H85: 2 | I85: =4*T85 -> 12.08 | J85: 2 | L85: 5 | M85: 2 | N85: 23.08 | Q85: 0 | R85: 23.08 | T85: 3.02 | U85: 四426 | V85: 无 | W85: 校级三好学生 | X85: 院级三等奖？
A86: 83 | B86: 孙杭龙 | C86: 男 | D86: 1998.03 | E86: 本科 | F86: 辽宁石油化工大学 | G86: 测控技术与仪器 | H86: 2 | I86: =4*T86/2 -> 7.98 | J86: 3 | N86: 12.98 | Q86: 0 | R86: 12.98 | S86: 辽宁石油化工大学学分绩点满分为10分，折算为5分制度 | T86: 3.99 | U86: 四462 | V86: 无 | W86: 无 | X86: 无
A87: 84 | B87: 刘科兴 | C87: 男 | D87: 1999.04 | E87: 本科 | F87: 广东石油化工学院 | G87: 测控技术与仪器 | H87: 2 | I87: 12.6 | J87: 5 | M87: 2 | N87: 21.6 | Q87: 0 | R87: 21.6 | T87: 3.15 | U87: 四502 | V87: 无 | W87: 无 | X87: 校级三等奖
A88: 85 | B88: 王柄淙 | C88: 男 | D88: 1999.09 | E88: 本科 | F88: 西南石油大学 | G88: 测控技术与仪器 | H88: 2 | I88: 9.32 | J88: 2 | N88: 13.32 | Q88: 0 | R88: 13.32 | T88: 2.33 | U88: 四445 | V88: 无 | W88: 无 | X88: 无
A89: 86 | B89: 张周华 | C89: 男 | D89: 1999.12 | E89: 本科 | F89: 辽宁石油化工大学 | G89: 测控技术与仪器 | H89: 2 | I89: =4*T89/2 -> 10.18 | J89: 3 | L89: 2 | N89: 17.18 | Q89: 0 | R89: 17.18 | S89: 辽宁石油化工大学学分绩点满分为10分，折算为5分制度 | T89: 5.09 | U89: 四454 | V89: 无 | W89: 校级数学建模竞赛二等奖 | X89: 无
A90: 87 | B90: 张金柱 | C90: 男 | D90: 1999.09 | E90: 本科 | F90: 东北石油大学 | G90: 测控技术与仪器 | H90: 2 | I90: 8.56 | J90: 2 | N90: 12.56 | Q90: 0 | R90: 12.56 | T90: 2.14 | U90: 四442 | V90: 无 | W90: 无 | X90: 无
A91: 88 | B91: 康金龙 | C91: 男 | D91: 1999.06 | E91: 本科 | F91: 辽宁石油化工大学 | G91: 电子信息工程 | H91: 2 | I91: =4*T91/2 -> 9.82 | J91: 2 | M91: 2 | N91: 15.82 | Q91: 0 | R91: 15.82 | S91: 辽宁石油化工大学学分绩点满分为10分，折算为5分制度 | T91: 4.91 | U91: 四445 | V91: 无 | W91: 无 | X91: 校级二等奖
A92: 89 | B92: 江杰 | C92: 男 | D92: 1998.05 | E92: 本科 | F92: 辽宁石油化工大学 | G92: 电子信息工程 | H92: 2 | I92: =4*T92/2 -> 7.6 | J92: 2 | L92: 2 | N92: 13.6 | Q92: 0 | R92: 13.6 | S92: 辽宁石油化工大学学分绩点满分为10分，折算为5分制度 | T92: 3.8 | U92: 四444 | V92: 无 | W92: 校级合唱比赛三等奖 | X92: 无
A93: 90 | B93: 吴博阳 | C93: 男 | D93: 1998.02 | E93: 本科 | F93: 天津理工大学 | G93: 电子信息工程 | H93: 2 | I93: 10 | J93: 2 | L93: 2 | N93: 16 | Q93: 0 | R93: 16 | T93: 2.5 | U93: 四431 | V93: 无 | W93: 校级科技竞赛二等奖 | X93: 无
A94: 91 | B94: 戴祥 | C94: 男 | D94: 1997.12 | E94: 本科 | F94: 内蒙古科技大学 | G94: 软件工程 | H94: 2 | I94: 13 | J94: 2 | N94: 17 | Q94: 0 | R94: 17 | T94: 3.25 | U94: 四425 | V94: 无 | W94: 无 | X94: 无
A95: 92 | B95: 王聪聪 | C95: 男 | D95: 1996.10 | E95: 硕士 | F95: 山东大学 | G95: 软件工程 | H95: 3 | I95: 15.2 | J95: 8 | N95: 26.2 | Q95: 0 | R95: 26.2 | T95: 3.8 | U95: 六588 | V95: 无 | W95: 无 | X95: 无 | Y95: 无 | Z95: 系统开发
A96: 93 | B96: 赵小强 | C96: 男 | D96: 1998.07 | E96: 本科 | F96: 西安石油大学 | G96: 软件工程 | H96: 2 | I96: 10.2 | J96: 5 | N96: 17.2 | Q96: 0 | R96: 17.2 | T96: 2.55 | U96: 四504 | V96: 无 | W96: 无 | X96: 无
A97: 94 | B97: 王得卫 | C97: 男 | D97: 1998.11 | E97: 本科 | F97: 大连东软信息学院 | G97: 软件工程 | H97: 2 | I97: 9.4 | J97: 2 | N97: 13.4 | Q97: 0 | R97: 13.4 | T97: 2.35 | U97: 四435 | V97: 无 | W97: 无 | X97: 无
A98: 95 | B98: 田宇 | C98: 男 | D98: 1999.10 | E98: 本科 | F98: 山西农业大学 | G98: 软件工程 | H98: 2 | I98: 14.72 | J98: 3 | N98: 19.72 | Q98: 0 | R98: 19.72 | T98: 3.68 | U98: 四451 | V98: 无 | W98: 无 | X98: 无
A99: 96 | B99: 张海宁 | C99: 男 | D99: 1998.06 | E99: 本科 | F99: 中国石油大学（北京）克拉玛依校区 | G99: 软件工程 | H99: 3 | I99: 10.8 | J99: 2 | N99: 15.8 | Q99: 0 | R99: 15.8 | T99: 2.7 | U99: 四439 | V99: 无 | W99: 无 | X99: 无
A100: 97 | B100: 高炎 | C100: 男 | D100: 1999.06 | E100: 本科 | F100: 郑州大学 | G100: 计算机科学与技术 | H100: 3 | I100: 10.2 | J100: 4 | N100: 17.2 | Q100: 0 | R100: 17.2 | T100: 2.55 | U100: 四483 | V100: 无 | W100: 无 | X100: 无
A101: 98 | B101: 宋佳兴 | C101: 男 | D101: 1999.07 | E101: 本科 | F101: 大连大学 | G101: 计算机科学与技术 | H101: 2 | I101: 12 | J101: 3 | N101: 17 | Q101: 0 | R101: 17 | T101: 3 | U101: 四473 | V101: 无 | W101: 无 | X101: 无
A102: 99 | B102: 陈广硕 | C102: 男 | D102: 1999.01 | E102: 本科 | F102: 中国石油大学（北京）克拉玛依校区 | G102: 计算机科学与技术 | H102: 3 | I102: 14.88 | J102: 3 | L102: 5 | M102: 5 | N102: 30.88 | Q102: 0 | R102: 30.88 | T102: 3.72 | U102: 四467 | V102: 无 | W102: 校级三好学生 | X102: 国家励志奖学金
A103: 100 | B103: 王桐 | C103: 女 | D103: 1995.07 | E103: 硕士 | F103: 沈阳化工大学 | G103: 计算机科学与技术 | H103: 2 | I103: =87/100*5*4 -> 17.4 | J103: 5 | K103: 5 | L103: 2 | N103: 31.4 | Q103: 0 | R103: 31.4 | T103: 87 | U103: 六425 | V103: 无 | W103: 专利著作权一项 | X103: 无 | Y103: 两篇论文（没标在哪里发表） | Z103: 水声无线传感器网络信道建模及MAC协议方针分析
A104: 101 | B104: 蔡斌 | C104: 男 | D104: 1998.03 | E104: 本科 | F104: 昆明学院 | G104: 计算机科学与技术 | H104: 2 | I104: =4*T104 -> 11.72 | J104: 6 | L104: 2 | M104: 5 | N104: 26.72 | Q104: 0 | R104: 26.72 | T104: 2.93 | U104: 六458 | V104: 无 | W104: 校级优秀团员 | X104: 国家级励志奖学金
A105: 102 | B105: 邵禹霖 | C105: 男 | D105: 1997.04 | E105: 硕士 | F105: 西密歇根大学 | G105: 会计学 | H105: 2 | I105: =4*T105 -> 13.2 | J105: 6 | K105: 2 | L105: 5 | M105: 2 | N105: 30.2 | Q105: 0 | R105: 30.2 | T105: 3.3 | U105: 六452 | V105: 计算机二级 | W105: 校级优秀团干部 | X105: 校级优秀学生奖学金三等奖 | Y105: 无 | Z105: 金融或经济、公司财务运营（财会），课题：金融、经济等。
A106: 103 | B106: 刘明浩 | C106: 男 | D106: 1998.05 | E106: 本科 | F106: 辽宁石油化工大学 | G106: 会计学 | H106: 2 | I106: =4*T106/2 -> 8.18 | J106: 3 | N106: 13.18 | Q106: 0 | R106: 13.18 | S106: 辽宁石油化工大学学分绩点满分为10分，折算为5分制度 | T106: 4.09 | U106: 四470 | V106: 无 | W106: 无 | X106: 无
A107: 104 | B107: 王亭宇 | C107: 女 | D107: 1999.10 | E107: 本科 | F107: 辽宁对外经贸学院 | G107: 会计学 | H107: 2 | I107: =4*T107 -> 11.96 | J107: 2 | N107: 15.96 | Q107: 0 | R107: 15.96 | T107: 2.99 | U107: 四431 | V107: 无 | W107: 无 | X107: 无
A108: 105 | B108: 肖雪菲 | C108: 女 | D108: 1997.05 | E108: 硕士 | F108: 悉尼科技大学 | G108: 会计学 | H108: 2 | I108: 14.15 | J108: 5 | M108: 2 | N108: 23.15 | Q108: 0 | R108: 23.15 | S108: 平均分 | T108: 70.75 | U108: 雅思6.5 | V108: 无 | W108: 国际级费马数学竞赛 | X108: 无 | Y108: 无 | Z108: 企业价值评估 和财务分析,审 计及保证服务 ,企业会计,公 司法与证券法 ,成本管理与分 析,管理决策会 计
A109: 106 | B109: 石毅 | C109: 男 | D109: 1994.08 | E109: 硕士 | F109: 天津商业大学 | G109: 会计学 | H109: 2 | I109: =4*T109 -> 16.64 | J109: 5 | M109: 2 | N109: 25.64 | Q109: 0 | R109: 25.64 | T109: 4.16 | U109: 六435 | V109: 无 | W109: 校级优秀毕业生（三次奖学金以上，10%） | X109: 院级三级奖学金 | Y109: 无 | Z109: 财务柔性、股权激励与双元创新
A110: 107 | B110: 董琳 | C110: 女 | D110: 1999.10 | E110: 本科 | F110: 哈尔滨学院 | G110: 会计学 | H110: 2 | I110: 14.36 | J110: 2 | M110: 2 | N110: 20.36 | Q110: 0 | R110: 20.36 | T110: 3.59 | U110: 四425 | V110: 无 | W110: 无 | X110: 校级二等奖学金
A111: 108 | B111: 李权儒 | C111: 男 | D111: 1999.04 | E111: 本科 | F111: 沈阳农业大学 | G111: 会计学 | H111: 2 | I111: 10.4 | J111: 3 | N111: 15.4 | Q111: 0 | R111: 15.4 | T111: 2.6 | U111: 四458 | V111: 无 | W111: 无 | X111: 无
A112: 109 | B112: 胡浩林 | C112: 男 | D112: 1998.01 | E112: 本科 | F112: 北华大学 | G112: 会计学 | H112: 2 | I112: 14 | J112: 3 | N112: 19 | Q112: 0 | R112: 19 | T112: 3.5 | U112: 四474 | V112: 无 | W112: 无 | X112: 无
A113: 110 | B113: 林骋 | C113: 男 | D113: 1998.05 | E113: 本科 | F113: 重庆大学城市科技学院 | G113: 会计学 | H113: 2 | I113: 14.24 | J113: 2 | N113: 18.24 | Q113: 0 | R113: 18.24 | T113: 3.56 | U113: 四425 | V113: 无 | W113: 无 | X113: 无
A114: 111 | B114: 邢子明 | C114: 男 | D114: 1997.06 | E114: 本科 | F114: 包头师范学院 | G114: 会计学 | H114: 2 | I114: 11.36 | J114: 2 | N114: 15.36 | Q114: 0 | R114: 15.36 | T114: 2.84 | U114: 四448 | V114: 无 | W114: 无 | X114: 无
A115: 112 | B115: 赵一兵 | C115: 男 | D115: 1997.11 | E115: 本科 | F115: 山西师范大学 | G115: 财务管理 | H115: 2 | I115: 9.68 | J115: 2 | N115: 13.68 | Q115: 0 | R115: 13.68 | T115: 2.42 | U115: 四450 | V115: 无 | W115: 无 | X115: 无
A116: 113 | B116: 李雨嫣 | C116: 女 | D116: 2000.06 | E116: 本科 | F116: 辽宁工程技术大学 | G116: 财务管理 | H116: 2 | I116: 8.84 | J116: 2 | N116: 12.84 | Q116: 0 | R116: 12.84 | T116: 2.21 | U116: 四446 | V116: 无 | W116: 无 | X116: 无
A117: 114 | B117: 刘芳宇 | C117: 女 | D117: 1997.02 | E117: 硕士 | F117: 伦敦大学国王学院 | G117: 金融学 | H117: 2 | I117: 11.68 | J117: 8 | K117: 2 | L117: 2 | M117: 2 | N117: 27.68 | Q117: 0 | R117: 27.68 | T117: 2.92 | U117: 六509 | V117: 计算机三级 | W117: 市级数学竞赛一等奖 | X117: 校级一等奖学金 | Y117: 无 | Z117: 公司金融
A118: 115 | B118: 龙雨彤 | C118: 女 | D118: 1995.03 | E118: 硕士 | F118: 蒙纳士大学 | G118: 金融学 | H118: 2 | I118: 16 | J118: 6 | N118: 24 | Q118: 0 | R118: 24 | S118: 平均分 | T118: 80 | U118: 六456 | V118: 无 | W118: 无 | X118: 无 | Y118: 无 | Z118: 运用金融会计 编程知识，对金融市场进行 风险研究。
A119: 116 | B119: 汤易 | C119: 男 | D119: 1995.03 | E119: 硕士 | F119: 阿德莱德大学 | G119: 金融学 | H119: 2 | I119: 15.6 | J119: 5 | L119: 2 | M119: 4 | N119: 28.6 | Q119: 0 | R119: 28.6 | S119: 平均分 | T119: 78 | U119: 雅思6.5 | V119: 无 | W119: 省部级计算机设计大赛第三名 | X119: 澳大利亚市级奖学金 | Y119: 无 | Z119: 如何在生活中使用金融知识
A120: 117 | B120: 王子琪 | C120: 女 | D120: 1996.06 | E120: 硕士 | F120: 外交学院 | G120: 金融学 | H120: 2 | I120: 13.84 | J120: 7 | L120: 5 | N120: 27.84 | Q120: 0 | R120: 27.84 | T120: 3.46 | U120: 六499 | V120: 无 | W120: 校级优秀学生干部 | X120: 校级一级奖学金 | Y120: 无 | Z120: 国际金融
A121: 说明：若研究生和本科生指标不分开，共同排序时，研究生的总得分的计算方式为：（基础分合计+科研分合计）/70*50
A122: 评委（签字）：

Sheet 基础分评分表20210517 (hidden)
A1: 长城钻探高校毕业生招聘面试基础分评分表（2021.05.17）
A2: 序号 | B2: 个人基本情况 | H2: 个人基础量化分(50分) | O2: 研究生科研能力（20分） | R2: 总得分 | S2: 备注
B3: 姓名 | C3: 性别 | D3: 出生年月 | E3: 学历 | F3: 毕业院校 | G3: 所学专业 | H3: 毕业院校（10分） | I3: 学习成绩（20分） | J3: 外语水平（8分） | K3: 计算机水平（2分） | L3: 荣誉称号 (5分) | M3: 获奖学金 (5分) | N3: 基础分合计 | O3: 发表论文 (10分) | P3: 研究方向 (10分) | Q3: 科研分合计 | T3: 毕业院校 | U3: 学分绩点 | V3: 英语成绩 | W3: 计算机证书 | X3: 获得荣誉情况 | Y3: 获奖学金情况 | Z3: 发表论文情况 | AA3: 研究方向情况
A4: 1 | B4: 崔雨樵 | C4: 男 | D4: 1994.07 | E4: 硕士 | F4: 中国石油大学(北京) | G4: 油气田开发工程 | H4: 3 | I4: =U4*4 -> 14.08 | J4: 5 | L4: 5 | M4: 5 | N4: =SUM(H4:M4) -> 32.08 | P4: 7 | Q4: =SUM(O4:P4) -> 7 | R4: =(N4+Q4)/70*50 -> 27.91 | T4: 211 | U4: 3.52 | V4: 六447 | W4: 无 | X4: 校级三好学生 | Y4: 校级3个 | Z4: 学术论文：SciCHEMISTRYANDTECH·NOLOGYOFFUELsANDOILSImprovedkmctcEquationsnoraNaNO2/NH4ClHeatCcⅡraingsystcmandthcrImplicationsinoilProducion（第二作者导师一作） 国家级1个，学术论文：中文核心科学技术与工程基于灰色关联的压裂液渗吸主控因素分析（第二作者导师一作） | AA4: 油气田开发理论与系统工程
A5: 2 | B5: 吴倩 | C5: 女 | D5: 1996.07 | E5: 硕士 | F5: 西南石油大学 | G5: 油气田开发工程 | H5: 2 | I5: =U5*4 -> 15.16 | J5: 5 | L5: 5 | M5: 5 | N5: =SUM(H5:M5) -> 32.16 | P5: 7 | Q5: =SUM(O5:P5) -> 7 | R5: =(N5+Q5)/70*50 -> 27.97 | T5: 石油院校 | U5: 3.79 | V5: 六427 | W5: 无 | X5: 校级三好学生/校级优秀学生干部/校级优秀毕业生 | Y5: 校级5个 | Z5: 一种油水相对渗透率曲线测试装置（新型授权，CN210136162U）；一种在线渗吸实验用核磁共振测试装置及实验方法（授权，CN109682850B）； 耐高温高压可搅拌中间容器装置和多孔介质驱替实验系统（授权，CN111249979A）；一种油水相对渗透率曲线测试装置及测试方法（实审，CN110160932A）。新型排名第一，发明排名第二。 文章：《InterplaybetweenViscousPressureandCapillaryPressureonPolymerGelDehydrationandWaterShutoffinHydraulicallyFracturedReservoirs》，第二作者，SCI二区期刊《energy&fuels》。 软件著作权：基于机器学习的边（底）水气藏生产动态预测软件V1.0（2020SR0807539）；基于机器学习的水驱开发油藏生产动态预测软件V1.0（2020SR0664829）。均排名第二。 | AA5: 油气藏渗流物理、提高采收率、油气藏数值模拟
A6: 3 | B6: 裴叙存 | C6: 男 | D6: 1994.05 | E6: 本科 | F6: 燕山大学 | G6: 石油工程 | H6: 2 | I6: 6.88 | J6: 4 | L6: 2 | N6: 14.88 | Q6: 0 | R6: =N6+Q6 -> 14.88 | U6: 1.72 | V6: 四497 | W6: 无 | X6: 省部级中国石油工程设计大赛 | Y6: 无 | AA6: 0
A7: 4 | B7: 蔡晓曦 | C7: 男 | D7: 2000.09 | E7: 本科 | F7: 长江大学 | G7: 石油工程 | H7: 2 | I7: 8 | J7: 2 | N7: 12 | Q7: 0 | R7: 12.00 | T7: 石油院校 | U7: 2 | V7: 四425 | W7: 无 | X7: 无 | Y7: 无 | AA7: 0
A8: 5 | B8: 王佳豪 | C8: 男 | D8: 1999.09 | E8: 本科 | F8: 榆林学院 | G8: 石油工程 | H8: 2 | I8: 10.96 | J8: 5 | N8: 17.96 | Q8: 0 | R8: 17.96 | U8: 2.74 | V8: 六426 | W8: 无 | X8: 无 | Y8: 无
A9: 6 | B9: 李天荣 | C9: 男 | D9: 1997.11 | E9: 本科 | F9: 榆林学院 | G9: 石油工程 | H9: 2 | I9: 10.2 | J9: 2 | N9: 14.2 | Q9: 0 | R9: 14.20 | U9: 2.55 | V9: 四430 | W9: 无 | X9: 无 | Y9: 无
A10: 7 | B10: 丁澳洲 | C10: 男 | D10: 1997.04 | E10: 本科 | F10: 长江大学 | G10: 海洋油气工程 | H10: 2 | I10: 11.44 | J10: 2 | N10: 15.44 | Q10: 0 | R10: 15.44 | T10: 石油院校 | U10: 2.86 | V10: 四430 | W10: 无 | X10: 无 | Y10: 无
A11: 8 | B11: 陈文 | C11: 男 | D11: 1993.08 | E11: 硕士 | F11: 西南石油大学 | G11: 油气井工程 | H11: 2 | I11: 13.16 | J11: 5 | M11: 4 | N11: 24.16 | P11: 7 | Q11: 7 | R11: =(N11+Q11)/70*50 -> 22.26 | T11: 石油院校 | U11: 3.29 | V11: 六430 | W11: 无 | X11: 无 | Y11: 省部级1个 | Z11: 无 | AA11: 研究方向：可固化隔离液技术。课题：中深层复杂压力系统提高固井质量关键技术研究。
A12: 9 | B12: 古星星 | C12: 女 | D12: 1999.08 | E12: 本科 | F12: 重庆科技学院 | G12: 地质学 | H12: 2 | I12: 11.96 | J12: 2 | L12: 2 | N12: 17.96 | Q12: 0 | R12: 17.96 | T12: 石油院校 | U12: 2.99 | V12: 四427 | W12: 无 | X12: 国家级第四届全国油气地质大赛本科生单项组油气藏评价三等奖 | Y12: 无
A13: 10 | B13: 吴海超 | C13: 男 | D13: 1998.01 | E13: 本科 | F13: 中国石油大学(华东) | G13: 地质学 | H13: 3 | I13: =U13/5 -> 15.4 | J13: 3 | N13: 21.4 | Q13: 0 | R13: 21.40 | T13: 211 | U13: 77 | V13: 四456 | W13: 无 | X13: 无 | Y13: 无
A14: 11 | B14: 汪琼 | C14: 女 | D14: 1997.07 | E14: 本科 | F14: 新疆大学 | G14: 地质工程 | H14: 3 | I14: =U14*4 -> 12 | J14: 2 | N14: 17 | Q14: 0 | R14: 17.00 | T14: 211 | U14: 3 | V14: 四428 | W14: 无 | X14: 无 | Y14: 无
A15: 12 | B15: 席树坤 | C15: 男 | D15: 1999.01 | E15: 本科 | F15: 哈尔滨工业大学 | G15: 应用化学 | H15: 3 | I15: =U15/5 -> 16.162 | J15: 2 | L15: 2 | M15: 2 | N15: 25.162 | Q15: 0 | R15: 25.16 | T15: 985 | U15: 80.81 | V15: 四434 | W15: 无 | X15: 省部级中国化学奥林匹克化学竞赛 | Y15: 校级1个
A16: 13 | B16: 林岭 | C16: 男 | D16: 1999.03 | E16: 本科 | F16: 成都理工大学 | G16: 应用化学 | H16: 2 | I16: =U16*4 -> 12.8 | J16: 5 | N16: 19.8 | Q16: 0 | R16: 19.80 | U16: 3.2 | V16: 四505 | W16: 无 | X16: 无 | Y16: 无
A17: 14 | B17: 米祎华 | C17: 女 | D17: 1999.08 | E17: 本科 | F17: 东北电力大学 | G17: 应用化学 | H17: 2 | I17: 13.96 | J17: 2 | L17: 2 | M17: 2 | N17: 21.96 | Q17: 0 | R17: 21.96 | U17: 3.49 | V17: 四434 | W17: 无 | X17: 国家级第十四届全国化工设计大赛国家三等奖 | Y17: 校级1个
A18: 15 | B18: 周欢 | C18: 女 | D18: 1999.08 | E18: 本科 | F18: 沈阳工业大学 | G18: 应用化学 | H18: 2 | I18: 14.04 | J18: 5 | N18: 21.04 | Q18: 0 | R18: 21.04 | U18: 3.51 | V18: 六434 | W18: 无 | X18: 无 | Y18: 无
A19: 16 | B19: 彭雪 | C19: 女 | D19: 1998.07 | E19: 本科 | F19: 西南石油大学 | G19: 应用化学 | H19: 2 | I19: 13.08 | J19: 3 | M19: 5 | N19: 23.08 | Q19: 0 | R19: 23.08 | T19: 石油院校 | U19: 3.27 | V19: 四457 | W19: 无 | X19: 无 | Y19: 校级5个
A20: 17 | B20: 王效坤 | C20: 男 | D20: 1995.12 | E20: 硕士 | F20: 辽宁石油化工大学 | G20: 应用化学 | H20: 2 | I20: =4*U20/2 -> 5.8 | J20: 6 | L20: 2 | M20: 2 | N20: 17.8 | P20: 7 | Q20: 7 | R20: =(N20+Q20)/70*50 -> 17.71 | S20: 辽宁石油化工大学学分绩点满分为10分，折算为5分制度 | T20: 石油院校 | U20: 2.9 | V20: 六460 | W20: 无 | X20: 国家级三维CAD应用工程师/国家级二维CAD高级绘图师 | Y20: 校级1个 | Z20: 无 | AA20: 微孔喉油层保护材料的制备及性能应用
A21: 18 | B21: 杨萤 | C21: 女 | D21: 1997.04 | E21: 硕士 | F21: 西北大学 | G21: 应用化学 | H21: 3 | I21: 12.6 | J21: 8 | L21: 4 | M21: 5 | N21: 32.6 | Q21: 0 | R21: 23.29 | T21: 211 | U21: 3.15 | V21: 六506 | W21: 无 | X21: 院级优秀学生干部/优秀共青团员/国家级央企熠星创新创意大赛优秀奖/国家级国家十强/院级先进个人 | Y21: 国家级1个校级2个 | Z21: 无 | AA21: 汽油、煤油、柴油以及航空燃料等油品添加剂的研究与应用
A22: 19 | B22: 谢含 | C22: 女 | D22: 2000.02 | E22: 本科 | F22: 辽宁石油化工大学 | G22: 应用化学 | H22: 2 | I22: =4*U22/2 -> 11.8 | J22: 7 | L22: 2 | M22: 2 | N22: 24.8 | Q22: 0 | R22: 24.80 | S22: 辽宁石油化工大学学分绩点满分为10分，折算为5分制度 | T22: 石油院校 | U22: 5.9 | V22: 六497 | W22: 无 | X22: 院级物理学术竞赛三等奖 | Y22: 校级1个
A23: 20 | B23: 张梦月 | C23: 女 | D23: 1997.05 | E23: 本科 | F23: 中国石油大学(华东) | G23: 应用化学 | H23: 3 | I23: =U23*4 -> 12.48 | J23: 2 | N23: 17.48 | Q23: 0 | R23: 17.48 | T23: 211 | U23: 3.12 | V23: 四425 | W23: 无 | X23: 无 | Y23: 无
A24: 21 | B24: 罗鑫虎 | C24: 男 | D24: 1999.11 | E24: 本科 | F24: 大连理工大学 | G24: 应用化学 | H24: 3 | I24: 9.76 | J24: 3 | N24: 15.76 | Q24: 0 | R24: 15.76 | T24: 985 | U24: 2.44 | V24: 四465 | W24: 无 | X24: 无 | Y24: 无
A25: 22 | B25: 邱伟楠 | C25: 男 | D25: 1995.05 | E25: 硕士 | F25: 石油化工科学研究院 | G25: 应用化学 | H25: 2 | I25: 13.28 | J25: 6 | L25: 5 | N25: 26.28 | O25: 0 | Q25: 0 | R25: 18.77 | T25: 石油院校 | U25: 3.32 | V25: 六457 | W25: 无 | X25: 校级三好学生/校级优秀毕业生 | Y25: 无 | Z25: 无 | AA25: 氢气的低温催化燃烧
A26: 23 | B26: 吴朋 | C26: 男 | D26: 1997.10 | E26: 本科 | F26: 沈阳农业大学 | G26: 电气工程及其自动化 | H26: 2 | I26: 12.88 | J26: 2 | K26: 2 | M26: 5 | N26: 23.88 | Q26: 0 | R26: 23.88 | U26: 3.22 | V26: 四431 | W26: 计算机三级 | X26: 无 | Y26: 国家级1个校级1个
A27: 24 | B27: 赵思诚 | C27: 男 | D27: 1999.05 | E27: 本科 | F27: 内蒙古农业大学 | G27: 电气工程及其自动化 | H27: 2 | I27: =U27/5 -> 15.1 | J27: 4 | L27: 2 | N27: 23.1 | Q27: 0 | R27: 23.10 | U27: 75.5 | V27: 四494 | W27: 无 | X27: 国家级第二十五届中国儿童青少年威盛中国芯计算机表演赛全国总决赛网络基础赛三等奖 | Y27: 无
A28: 25 | B28: 成洪林 | C28: 男 | D28: 1998.05 | E28: 本科 | F28: 哈尔滨理工大学 | G28: 电气工程及其自动化 | H28: 2 | I28: =U28*4 -> 11.48 | J28: 5 | N28: 18.48 | Q28: 0 | R28: 18.48 | U28: 2.87 | V28: 六429 | W28: 无 | X28: 无 | Y28: 无
A29: 26 | B29: 彭启袁 | C29: 男 | D29: 1997.02 | E29: 本科 | F29: 成都工业学院 | G29: 电气工程及其自动化 | H29: 2 | I29: 10.68 | J29: 2 | N29: 14.68 | Q29: 0 | R29: 14.68 | U29: 2.67 | V29: 四436 | W29: 无 | X29: 无 | Y29: 无
A30: 27 | B30: 马晓颖 | C30: 女 | D30: 1998.07 | E30: 本科 | F30: 仲恺农业工程学院 | G30: 电气工程及其自动化 | H30: 2 | I30: 15.12 | J30: 2 | L30: 5 | M30: 5 | N30: 29.12 | Q30: 0 | R30: 29.12 | U30: 3.78 | V30: 四436 | W30: 无 | X30: 校级三好学生/校级优秀共青团员/校级优秀毕业生 | Y30: 国家级1个校级4个
A31: 28 | B31: 杨博文 | C31: 男 | D31: 1998.10 | E31: 本科 | F31: 内蒙古工业大学 | G31: 电气工程及其自动化 | H31: 2 | I31: 12.96 | J31: 2 | L31: 2 | N31: 18.96 | Q31: 0 | R31: 18.96 | U31: 3.24 | V31: 四450 | W31: 无 | X31: 院级电气抢修大赛 | Y31: 无
A32: 29 | B32: 陈长歌 | C32: 男 | D32: 1997.11 | E32: 本科 | F32: 齐鲁工业大学 | G32: 电气工程及其自动化 | H32: 2 | I32: 14 | J32: 2 | N32: 18 | Q32: 0 | R32: 18.00 | U32: 3.5 | V32: 四434 | W32: 无 | X32: 无 | Y32: 无
A33: 30 | B33: 李靖 | C33: 男 | D33: 1997.09 | E33: 本科 | F33: 大连交通大学 | G33: 电气工程及其自动化 | H33: 2 | I33: =U33/5 -> 15.892 | J33: 2 | N33: 19.892 | Q33: 0 | R33: 19.89 | U33: 79.46 | V33: 四442 | W33: 无 | X33: 无 | Y33: 无
A34: 31 | B34: 佟岐峰 | C34: 男 | D34: 1997.08 | E34: 本科 | F34: 辽宁工业大学 | G34: 电气工程及其自动化 | H34: 2 | I34: =U34*4 -> 9.52 | J34: 5 | M34: 2 | N34: 18.52 | Q34: 0 | R34: 18.52 | U34: 2.38 | V34: 四522 | W34: 无 | X34: 无 | Y34: 校级1个
A35: 32 | B35: 薛士垚 | C35: 男 | D35: 1998.05 | E35: 本科 | F35: 河北大学工商学院 | G35: 电气工程及其自动化 | H35: 2 | I35: 11.36 | J35: 2 | L35: 2 | N35: 17.36 | Q35: 0 | R35: 17.36 | U35: 2.84 | V35: 四446 | W35: 无 | X35: 院级优秀团干部/院级优秀志愿者/院级团学活动积极分子/院级优秀部员 | Y35: 无
A36: 33 | B36: 李晓平 | C36: 女 | D36: 1998.02 | E36: 本科 | F36: 西安石油大学 | G36: 电气工程及其自动化 | H36: 2 | I36: 10.32 | J36: 2 | N36: 14.32 | Q36: 0 | R36: 14.32 | T36: 石油院校 | U36: 2.58 | V36: 四431 | W36: 无 | X36: 无 | Y36: 无
A37: 34 | B37: 熊文秋 | C37: 女 | D37: 1994.07 | E37: 硕士 | F37: 沈阳工业大学 | G37: 电气工程及其自动化 | H37: 2 | I37: 12 | J37: 6 | L37: 2 | M37: 5 | N37: 27 | Q37: 0 | R37: =(N37+Q37)/70*50 -> 19.29 | U37: 3 | V37: 六459 | W37: 无 | X37: 校级校级优秀研究生/国家级首届全国大学生智能机电系统创新设计大赛/省部级“兆易创新杯”第十四届研究生电子设计竞赛 | Y37: 国家级1个校级1个 | Z37: 并以第二作者的身份发表一篇题为“ANewFallDetectionMethodBasedonFuzzyReasoningforanOmin-DirectionalWalkingTraningRobot”的EI论文， 并以第二作者的身份发表一篇题为“ARobustFeedbackPathTrackingControlAlgorithmforanIndoorCarrierRobotConsideringEnergyOptimization”的SCI论文 | AA37: 面向步行辅助机器人的摔倒检测及控制策略研究
A38: 35 | B38: 金垚阳 | C38: 男 | D38: 1998.10 | E38: 本科 | F38: 陕西科技大学 | G38: 电气工程及其自动化 | H38: 2 | I38: 8.96 | J38: 6 | N38: 16.96 | Q38: 0 | R38: 16.96 | U38: 2.24 | V38: 六458 | W38: 无 | X38: 无 | Y38: 无
A39: 36 | B39: 湛国庆 | C39: 女 | D39: 1999.10 | E39: 本科 | F39: 重庆科技学院 | G39: 电气工程及其自动化 | H39: 2 | I39: 10.2 | J39: 2 | L39: 2 | N39: 16.2 | Q39: 0 | R39: 16.20 | T39: 石油院校 | U39: 2.55 | V39: 四446 | W39: 无 | X39: 校级自立自强优秀学生/校级优秀团员/校级“第五届书画大赛”三等奖 | Y39: 无
A40: 37 | B40: 吴小羽 | C40: 女 | D40: 1998.12 | E40: 本科 | F40: 西南民族大学 | G40: 电气工程及其自动化 | H40: 2 | I40: 13.96 | J40: 2 | L40: 5 | M40: 5 | N40: 27.96 | Q40: 0 | R40: 27.96 | U40: 3.49 | V40: 四434 | W40: 无 | X40: 校级2019-2020学年优秀学生 | Y40: 校级3个
A41: 38 | B41: 武斌 | C41: 男 | D41: 1998.12 | E41: 本科 | F41: 西安工业大学 | G41: 电气工程及其自动化 | H41: 2 | I41: 9.2 | J41: 3 | N41: 14.2 | Q41: 0 | R41: 14.20 | U41: 2.3 | V41: 四456 | W41: 无 | X41: 无 | Y41: 无
A42: 39 | B42: 赵振宇 | C42: 男 | D42: 1997.09 | E42: 本科 | F42: 南通大学 | G42: 电气工程及其自动化 | H42: 2 | I42: 10.88 | J42: 2 | M42: 2 | N42: 16.88 | Q42: 0 | R42: 16.88 | U42: 2.72 | V42: 四433 | W42: 无 | X42: 无 | Y42: 校级1个
A43: 40 | B43: 姜天洋 | C43: 男 | D43: 1999.08 | E43: 本科 | F43: 东北石油大学 | G43: 电气工程及其自动化 | H43: 2 | I43: 8.4 | J43: 3 | N43: 13.4 | Q43: 0 | R43: 13.40 | T43: 石油院校 | U43: 2.1 | V43: 四469 | W43: 无 | X43: 无 | Y43: 无
A44: 41 | B44: 国贺宁 | C44: 男 | D44: 1999.10 | E44: 本科 | F44: 长春工业大学 | G44: 自动化 | H44: 2 | I44: 10.32 | J44: 2 | N44: 14.32 | Q44: 0 | R44: 14.32 | U44: 2.58 | V44: 四427 | W44: 无 | X44: 无 | Y44: 无
A45: 42 | B45: 李欣宇 | C45: 女 | D45: 1999.08 | E45: 本科 | F45: 天津职业技术师范大学 | G45: 自动化 | H45: 2 | I45: 11.6 | J45: 3 | M45: 2 | N45: 18.6 | Q45: 0 | R45: 18.60 | U45: 2.9 | V45: 四455 | W45: 无 | X45: 无 | Y45: 校级1个
A46: 43 | B46: 于欢 | C46: 女 | D46: 1997.06 | E46: 本科 | F46: 天津理工大学中环信息学院 | G46: 自动化 | H46: 2 | I46: 12.4 | J46: 3 | L46: 2 | M46: 4 | N46: 23.4 | Q46: 0 | R46: 23.40 | U46: 3.1 | V46: 四467 | W46: 无 | X46: 省部级全运会优秀志愿者 | Y46: 校级2个
A47: 44 | B47: 王培昕 | C47: 男 | D47: 1999.07 | E47: 本科 | F47: 西南石油大学 | G47: 自动化 | H47: 2 | I47: 13.24 | J47: 2 | K47: 2 | L47: 2 | M47: 5 | N47: 26.24 | Q47: 0 | R47: 26.24 | T47: 石油院校 | U47: 3.31 | V47: 四442 | W47: 计算机二级 | X47: 校级社会实践优秀奖/校级互联网+校级铜奖 | Y47: 校级4个
A48: 45 | B48: 马越洋 | C48: 男 | D48: 1998.11 | E48: 本科 | F48: 西南石油大学 | G48: 自动化 | H48: 2 | I48: 13.12 | J48: 5 | L48: 2 | M48: 4 | N48: 26.12 | Q48: 0 | R48: 26.12 | T48: 石油院校 | U48: 3.28 | V48: 六429 | W48: 无 | X48: 校级互联网+/国家级全国大学生职业发展大赛 | Y48: 校级2个
A49: 46 | B49: 王胤清 | C49: 男 | D49: 1998.11 | E49: 本科 | F49: 哈尔滨理工大学 | G49: 自动化 | H49: 2 | I49: 12 | J49: 2 | N49: 16 | Q49: 0 | R49: 16.00 | U49: 3 | V49: 四432 | W49: 无 | X49: 无 | Y49: 无
A50: 47 | B50: 唐海深 | C50: 男 | D50: 2000.02 | E50: 本科 | F50: 西南石油大学 | G50: 自动化 | H50: 2 | I50: 9.36 | J50: 2 | N50: 13.36 | Q50: 0 | R50: 13.36 | T50: 石油院校 | U50: 2.34 | V50: 四447 | W50: 无 | X50: 无 | Y50: 无
A51: 48 | B51: 丁清山 | C51: 男 | D51: 1999.40 | E51: 本科 | F51: 中国石油大学(北京) | G51: 自动化 | H51: 3 | I51: 10.8 | J51: 3 | L51: 2 | N51: 18.8 | Q51: 0 | R51: 18.80 | T51: 211 | U51: 2.7 | V51: 四466 | W51: 无 | X51: 国家级全国数学建模大赛二等奖/校级中国石油大学机器人大赛二等奖 | Y51: 无
A52: 49 | B52: 刘照晖 | C52: 男 | D52: 1999.03 | E52: 本科 | F52: 辽宁石油化工大学 | G52: 自动化 | H52: 2 | I52: =4*U52/2 -> 10.26 | J52: 2 | N52: 14.26 | Q52: 0 | R52: 14.26 | S52: 辽宁石油化工大学学分绩点满分为10分，折算为5分制度 | T52: 石油院校 | U52: 5.13 | V52: 四429 | W52: 无 | X52: 无 | Y52: 无
A53: 50 | B53: 左梓邑 | C53: 男 | D53: 1999.08 | E53: 本科 | F53: 辽宁石油化工大学 | G53: 自动化 | H53: 2 | I53: 8.44 | J53: 2 | N53: 12.44 | Q53: 0 | R53: 12.44 | S53: 辽宁石油化工大学学分绩点满分为10分，折算为5分制度 | T53: 石油院校 | U53: 4.22 | V53: 四435 | W53: 无 | X53: 无 | Y53: 无
A54: 51 | B54: 何李 | C54: 男 | D54: 1999.08 | E54: 本科 | F54: 北京化工大学 | G54: 自动化 | H54: 3 | I54: =U54*4 -> 10.32 | J54: 5 | N54: 18.32 | Q54: 0 | R54: 18.32 | T54: 211 | U54: 2.58 | V54: 四501 | W54: 无 | X54: 无 | Y54: 无
A55: 52 | B55: 李世奇 | C55: 男 | D55: 1998.10 | E55: 本科 | F55: 哈尔滨理工大学 | G55: 自动化 | H55: 2 | I55: 8.32 | J55: 2 | N55: 12.32 | Q55: 0 | R55: 12.32 | U55: 2.08 | V55: 四448 | W55: 无 | X55: 无 | Y55: 无
A56: 53 | B56: 王贺楠 | C56: 男 | D56: 1996.09 | E56: 硕士 | F56: 辽宁石油化工大学 | G56: 控制工程 | H56: 2 | I56: 6.4 | J56: 5 | L56: 2 | N56: 15.4 | Q56: 0 | R56: =(N56+Q56)/70*50 -> 11.00 | S56: 辽宁石油化工大学学分绩点满分为10分，折算为5分制度 | T56: 石油院校 | U56: 3.2 | V56: 六433 | W56: 无 | X56: 国家级全国机器人专利创新创业大赛优秀奖/省部级辽宁省研究生机器人大赛三等奖/校级校篮球比赛一等奖 | Y56: 无 | Z56: 无 | AA56: 基于深度学习的无纺布疵点检测算法设计与实现
A57: 54 | B57: 代雄峰 | C57: 男 | D57: 1997.09 | E57: 本科 | F57: 成都大学 | G57: 机械设计制造及其自动化 | H57: 2 | I57: 9.32 | J57: 6 | L57: 5 | N57: 22.32 | Q57: 0 | R57: 22.32 | U57: 2.33 | V57: 六458 | W57: 无 | X57: 校级三好学生/校级优秀学生干部/校级优秀共青团员 | Y57: 无
A58: 55 | B58: 周瑜 | C58: 男 | D58: 1997.12 | E58: 本科 | F58: 西南石油大学 | G58: 机械设计制造及其自动化 | H58: 2 | I58: 11.68 | J58: 5 | L58: 2 | N58: 20.68 | R58: 20.68 | T58: 石油院校 | U58: 2.92 | V58: 六427 | W58: 无 | X58: 校级机械设计创新大赛 | Y58: 无
A59: 56 | B59: 卢岚浩 | C59: 女 | D59: 1998.12 | E59: 本科 | F59: 浙江师范大学 | G59: 机械设计制造及其自动化 | H59: 2 | I59: 13.44 | J59: 5 | L59: 5 | M59: 5 | N59: 30.44 | Q59: 0 | R59: 30.44 | U59: 3.36 | V59: 六427 | W59: 无 | X59: 校级三好学生/校级优秀学生干部/校级优秀毕业生 | Y59: 校级3个
A60: 57 | B60: 李琪琪 | C60: 男 | D60: 1996.07 | E60: 本科 | F60: 长江大学 | G60: 机械设计制造及其自动化 | H60: 2 | I60: 10.88 | J60: 2 | M60: 2 | N60: 16.88 | Q60: 0 | R60: 16.88 | T60: 石油院校 | U60: 2.72 | V60: 四440 | W60: 无 | X60: 无 | Y60: 校级1个
A61: 58 | B61: 张晨卓 | C61: 男 | D61: 2000.09 | E61: 本科 | F61: 燕山大学 | G61: 机械设计制造及其自动化 | H61: 2 | I61: 10.44 | J61: 5 | L61: 2 | N61: 19.44 | Q61: 0 | R61: 19.44 | U61: 2.61 | V61: 六439 | W61: 无 | X61: 2020年“用英语讲中国故事”英语演讲比赛获得入围奖 | Y61: 无
A62: 59 | B62: 丁家和 | C62: 男 | D62: 1998.05 | E62: 本科 | F62: 西南石油大学 | G62: 机械设计制造及其自动化 | H62: 2 | I62: 11.68 | J62: 2 | N62: 15.68 | Q62: 0 | R62: 15.68 | T62: 石油院校 | U62: 2.92 | V62: 四425 | W62: 无 | X62: 无 | Y62: 无
A63: 60 | B63: 袁贺 | C63: 男 | D63: 1996.12 | E63: 本科 | F63: 吉林化工学院 | G63: 机械设计制造及其自动化 | H63: 2 | I63: 13.88 | J63: 2 | M63: 4 | N63: 21.88 | Q63: 0 | R63: 21.88 | U63: 3.47 | V63: 四428 | W63: 无 | X63: 无 | Y63: 省部级
A64: 61 | B64: 翁朴 | C64: 男 | D64: 1998.09 | E64: 本科 | F64: 中国石油大学(北京) | G64: 过程装备与控制工程 | H64: 3 | I64: 13.6 | J64: 2 | M64: 4 | N64: 22.6 | Q64: 0 | R64: 22.60 | T64: 211 | U64: 3.4 | V64: 四447 | W64: 无 | X64: 无 | Y64: 校级2个
A65: 62 | B65: 朱玉沙 | C65: 女 | D65: 1998.10 | E65: 本科 | F65: 昆明理工大学 | G65: 过程装备与控制工程 | H65: 2 | I65: 10.76 | J65: 2 | K65: 2 | L65: 2 | M65: 5 | N65: 23.76 | Q65: 0 | R65: 23.76 | U65: 2.69 | V65: 四443 | W65: 计算机二级 | X65: 院级英语演讲比赛优胜奖/院级唱歌比赛优秀奖 | Y65: 校级3个
A66: 63 | B66: 邬凤丹 | C66: 女 | D66: 1997.08 | E66: 本科 | F66: 常州大学 | G66: 过程装备与控制工程 | H66: 2 | I66: 15.2 | J66: 2 | N66: 19.2 | Q66: 0 | R66: 19.20 | U66: 3.8 | V66: 四443 | W66: 无 | X66: 无 | Y66: 无
A67: 64 | B67: 鲍咏仪 | C67: 女 | D67: 2000.01 | E67: 本科 | F67: 中国石油大学(华东) | G67: 过程装备与控制工程 | H67: 3 | I67: =U67/5 -> 14.78 | J67: 5 | N67: 22.78 | Q67: 0 | R67: 22.78 | T67: 211 | U67: 73.9 | V67: 六427 | W67: 无 | X67: 无 | Y67: 无
A68: 65 | B68: 龚宸宇 | C68: 男 | D68: 1999.10 | E68: 本科 | F68: 延安大学 | G68: 过程装备与控制工程 | H68: 2 | I68: =U68/10 -> 15.4 | J68: 2 | N68: =SUM(H68:M68) -> 19.4 | Q68: =SUM(O68:P68) -> 0 | R68: 19.40 | S68: 按10分计算 | U68: 154 | V68: 四441 | W68: 无 | X68: 无 | Y68: 无
A69: 66 | B69: 张冰雁 | C69: 女 | D69: 1998.03 | E69: 本科 | F69: 东华大学 | G69: 机械电子工程 | H69: 3 | I69: =U69*4 -> 11.92 | J69: 2 | L69: 2 | N69: 18.92 | Q69: 0 | R69: 18.92 | T69: 211 | U69: 2.98 | V69: 四435 | W69: 无 | X69: 院级学习优秀奖 | Y69: 无
A70: 67 | B70: 雷晓龙 | C70: 男 | D70: 1998.05 | E70: 本科 | F70: 天津中德应用技术大学 | G70: 机械电子工程 | H70: 2 | I70: 13.2 | J70: 2 | M70: 5 | N70: 22.2 | Q70: 0 | R70: 22.20 | U70: 3.3 | V70: 四438 | W70: 无 | X70: 无 | Y70: 国家级2个校级1个
A71: 68 | B71: 赵海波 | C71: 男 | D71: 1999.09 | E71: 本科 | F71: 哈尔滨理工大学 | G71: 机械电子工程 | H71: 2 | I71: 12.36 | J71: 2 | N71: 16.36 | Q71: 0 | R71: 16.36 | U71: 3.09 | V71: 四441 | W71: 无 | X71: 无 | Y71: 无
A72: 69 | B72: 刘天祺 | C72: 男 | D72: 1998.11 | E72: 本科 | F72: 辽宁科技大学 | G72: 机械电子工程 | H72: 2 | I72: 14 | J72: 4 | L72: 5 | M72: 4 | N72: 29 | Q72: 0 | R72: 29.00 | U72: 3.5 | V72: 四499 | W72: 无 | X72: 校级三好学生/校级优秀学生干部 | Y72: 校级2个
A73: 70 | B73: 张徐 | C73: 男 | D73: 1998.08 | E73: 本科 | F73: 西南石油大学 | G73: 机械电子工程 | H73: 2 | I73: 12 | J73: 2 | L73: 2 | M73: 2 | N73: 20 | Q73: 0 | R73: 20.00 | T73: 石油院校 | U73: 3 | V73: 四426 | W73: 无 | X73: 省部级第十三届iCAN国际创新创业大赛西南赛区选拔赛省二等奖校级第九届全国大学生机械创新设计大赛创意征集大赛校二等奖省部级四川大学生机器人大赛省二等奖省部级第七届工程训练综合能力竞赛省二等奖校级第六届工程训练综合能力竞赛校三等奖省部级第九届全国大学生机械创新设计大赛省优秀奖 | Y73: 校级1个
A74: 71 | B74: 阳易芬 | C74: 女 | D74: 1998.05 | E74: 本科 | F74: 西南石油大学 | G74: 机械工程 | H74: 2 | I74: 10.48 | J74: 4 | L74: 2 | M74: 2 | N74: 20.48 | Q74: 0 | R74: 20.48 | T74: 石油院校 | U74: 2.62 | V74: 四491 | W74: 无 | X74: 校级运动会/校级体育舞蹈大赛一等奖/省部级第九届全国大学生机械创新设计大赛四川赛区三等奖 | Y74: 校级1个
A75: 72 | B75: 田祺 | C75: 男 | D75: 1994.08 | E75: 硕士 | F75: 日本埼玉工业大学 | G75: 机械工程 | H75: 2 | I75: 16 | J75: 5 | N75: 23 | Q75: 0 | R75: =(N75+Q75)/70*50 -> 16.43 | U75: 4 | V75: 日100 | W75: 无 | X75: 无 | Y75: 无 | Z75: 无 | AA75: 利用储氢合金的原理，自己设计了一套模具的加热装置。利用本加热装置，可以有效地减少和预防注塑成型中塑料
A76: 73 | B76: 钱俊宏 | C76: 男 | D76: 1999.02 | E76: 本科 | F76: 西南石油大学 | G76: 机械工程 | H76: 2 | I76: 11 | J76: 4 | L76: 2 | N76: 19 | Q76: 0 | R76: =N76+Q76 -> 19.00 | T76: 石油院校 | U76: 2.75 | V76: 四497 | W76: 无 | X76: 校级校级物理实验比赛二等奖 | Y76: 无
A77: 74 | B77: 刘志龙 | C77: 男 | D77: 1999.05 | E77: 本科 | F77: 西南石油大学 | G77: 机械工程 | H77: 2 | I77: 9 | J77: 4 | N77: 15 | Q77: 0 | R77: =N77+Q77 -> 15.00 | T77: 石油院校 | U77: 2.25 | V77: 四483 | W77: 无 | X77: 无 | Y77: 无
A78: 75 | B78: 刘豪洸 | C78: 男 | D78: 1998.09 | E78: 本科 | F78: 西南石油大学 | G78: 机械工程 | H78: 2 | I78: 11.88 | J78: 5 | M78: 2 | N78: 20.88 | Q78: 0 | R78: =N78+Q78 -> 20.88 | T78: 石油院校 | U78: 2.97 | V78: 六428 | W78: 无 | X78: 无 | Y78: 校级1个
A79: 76 | B79: 于芷健 | C79: 男 | D79: 1999.06 | E79: 本科 | F79: 东北石油大学 | G79: 勘查技术与工程 | H79: 2 | I79: 14.84 | J79: 2 | L79: 5 | M79: 4 | N79: 27.84 | Q79: 0 | R79: =N79+Q79 -> 27.84 | T79: 石油院校 | U79: 3.71 | V79: 四443 | W79: 无 | X79: 校级三好学生/校级优秀毕业生 | Y79: 校级2个
A80: 77 | B80: 周绪龙 | C80: 男 | D80: 1999.08 | E80: 本科 | F80: 重庆科技学院 | G80: 勘查技术与工程 | H80: 2 | I80: 9.16 | J80: 3 | L80: 2 | N80: 16.16 | Q80: 0 | R80: =N80+Q80 -> 16.16 | T80: 石油院校 | U80: 2.29 | V80: 四456 | W80: 无 | X80: 省部级互联网+大赛优秀奖/院级优秀学生干部 | Y80: 无
A81: 78 | B81: 张辉 | C81: 男 | D81: 1998.01 | E81: 硕士 | F81: 山东财经大学 | G81: 法律 | H81: 2 | I81: 13.36 | J81: 5 | L81: 5 | M81: 4 | N81: 29.36 | P81: 7 | Q81: 7 | R81: =(N81+Q81)/70*50 -> 25.97 | U81: 3.34 | V81: 六429 | W81: 无 | X81: 校级优秀学生干部/校级优秀共青团员 | Y81: 校级2个 | Z81: 无 | AA81: 经济法
A82: 79 | B82: 熊宇杉 | C82: 男 | D82: 1995.08 | E82: 硕士 | F82: 中国社会科学院大学 | G82: 法律 | H82: 2 | I82: =U82*4 -> 14.8 | J82: 5 | L82: 4 | M82: 2 | N82: 27.8 | Q82: 0 | R82: 19.86 | U82: 3.7 | V82: 六441 | W82: 无 | X82: 系级优秀学生干部/系级深圳市公安局龙华分局优秀实习生 | Y82: 校级1个 | Z82: 无 | AA82: 庭审中心之民事答辩制度研究
A83: 80 | B83: 徐晓晴 | C83: 女 | D83: 1997.02 | E83: 硕士 | F83: 沈阳师范大学 | G83: 法律 | H83: 2 | I83: =U83/5 -> 11.8 | J83: 5 | M83: 2 | N83: 20.8 | Q83: 0 | R83: 14.86 | U83: 59 | V83: 六431 | W83: 无 | X83: 无 | Y83: 校级1个 | Z83: 无 | AA83: 民刑
A84: 81 | B84: 高弘嫱 | C84: 女 | D84: 1995.09 | E84: 硕士 | F84: 贵州大学 | G84: 法律 | H84: 3 | I84: 14.8 | J84: 6 | L84: 5 | M84: 2 | N84: 30.8 | Q84: 0 | R84: 22.00 | T84: 211 | U84: 3.7 | V84: 六456 | W84: 无 | X84: 校级优秀学生干部/院级优秀组织者 | Y84: 校级1个 | Z84: 无 | AA84: 卫生法学-民法典视角下患者知情同意权的实证研究
A85: 82 | B85: 丁圆圆 | C85: 女 | D85: 1995.03 | E85: 硕士 | F85: 中国政法大学 | G85: 法律 | H85: 3 | I85: 14 | J85: 7 | L85: 5 | M85: 5 | N85: 34 | Q85: 0 | R85: 24.29 | T85: 211 | U85: 3.5 | V85: 六493 | W85: 无 | X85: 校级三好学生/省部级优秀毕业生 | Y85: 校级3个 | Z85: 无 | AA85: 刑诉法、证据法、监察法
A86: 83 | B86: 蒋潆莹 | C86: 女 | D86: 1996.53 | E86: 硕士 | F86: 吉林大学 | G86: 法律 | H86: 3 | I86: 15 | J86: 8 | K86: 2 | L86: 2 | N86: 30 | Q86: 0 | R86: 21.43 | T86: 985 | U86: 3.75 | V86: 六525 | W86: 计算机二级 | X86: 校级优秀团员 | Y86: 无 | Z86: 无 | AA86: 自动驾驶模式下交通肇事的刑事责任分析
A87: 84 | B87: 杜义泽 | C87: 男 | D87: 1993.20 | E87: 硕士 | F87: 四川省社会科学院党校 | G87: 法律 | H87: 2 | I87: 14.8 | J87: 5 | L87: 2 | M87: 5 | N87: 28.8 | Q87: 0 | R87: 20.57 | U87: 3.7 | V87: 六444 | W87: 无 | X87: 其它成华区司法所2018-2019年度优秀法律志愿者 | Y87: 省部级2个 | Z87: 无 | AA87: 行政法
A88: 85 | B88: 曹珂 | C88: 女 | D88: 1995.90 | E88: 硕士 | F88: 黑龙江大学 | G88: 法律 | H88: 2 | I88: =U88*4/2 -> 12 | J88: 5 | L88: 2 | M88: 5 | N88: 26 | P88: 7 | Q88: 7 | R88: 23.57 | U88: 6 | V88: 六443 | W88: 无 | X88: 其它第一届全国大学生人力资源管理知识技能竞赛辽宁省选拔赛三等奖 | Y88: 校级3个 | Z88: 无 | AA88: 民事诉讼法
A89: 86 | B89: 李重阳 | C89: 女 | D89: 1991.01 | E89: 硕士 | F89: 吉林大学 | G89: 法律 | H89: 3 | I89: 13.32 | J89: 5 | N89: 21.32 | P89: 7 | Q89: 7 | R89: 20.23 | T89: 985 | U89: 3.33 | V89: 专八65 | W89: 无 | X89: 无 | Y89: 无 | Z89: 无 | AA89: 民商法学
A90: 87 | B90: 郭沿宏 | C90: 女 | D90: 1995.01 | E90: 硕士 | F90: 西北政法大学 | G90: 法律 | H90: 2 | I90: =U90/5 -> 12.8 | J90: 5 | M90: 2 | N90: 21.8 | P90: 7 | Q90: 7 | R90: 20.57 | U90: 64 | V90: 六437 | W90: 无 | X90: 无 | Y90: 校级1个 | Z90: 无 | AA90: 知识产权法；著作权法领域合法来源抗辩制度研究
A91: 88 | B91: 李彬彬 | C91: 女 | D91: 1996.02 | E91: 硕士 | F91: 西南政法大学 | G91: 法律 | H91: 2 | I91: =U91*4 -> 16 | J91: 6 | K91: 2 | M91: 5 | N91: 31 | Q91: 0 | R91: 22.14 | U91: 4 | V91: 六460 | W91: 计算机二级 | X91: 无 | Y91: 校级6个 | Z91: 无 | AA91: 民法
A92: 89 | B92: 李梦珂 | C92: 女 | D92: 1995.06 | E92: 硕士 | F92: 太原科技大学 | G92: 法律 | H92: 2 | I92: 14.56 | J92: 5 | L92: 5 | M92: 5 | N92: 31.56 | P92: 7 | Q92: 7 | R92: 27.54 | U92: 3.64 | V92: 六426 | W92: 无 | X92: 校级三好学生 | Y92: 校级3个 | Z92: 无 | AA92: 民商事领域
A93: 90 | B93: 赵迎秀 | C93: 女 | D93: 1993.05 | E93: 硕士 | F93: 中央财经大学 | G93: 法律 | H93: 3 | I93: 12.36 | J93: 6 | L93: 5 | M93: 5 | N93: 31.36 | O93: 2 | P93: 7 | Q93: 9 | R93: 28.83 | T93: 211 | U93: 3.09 | V93: 六460 | W93: 无 | X93: 校级三好学生 | Y93: 校级3个 | Z93: 省部级：独立撰写文章《单位发出录用通知又反悔有关的法律问题探究》并发表于《商情》2021年第9期。 | AA93: 金融法方向
A94: 91 | B94: 王双双 | C94: 女 | D94: 1996.03 | E94: 硕士 | F94: 中南财经政法大学 | G94: 法律 | H94: 3 | I94: 14 | J94: 8 | L94: 5 | M94: 5 | N94: 35 | Q94: 0 | R94: 25.00 | T94: 211 | U94: 3.5 | V94: 六546 | W94: 无 | X94: 校级三好学生/校级优秀学生干部/校级优秀研究生 | Y94: 国家级1个校级2个 | Z94: 无 | AA94: 知识产权法—《表情包创作合理使用认定规则研究》
A95: 92 | B95: 郭艺 | C95: 男 | D95: 1995.06 | E95: 硕士 | F95: 新疆大学 | G95: 法律 | H95: 3 | I95: 10.52 | J95: 5 | L95: 5 | M95: 5 | N95: 28.52 | P95: 7 | Q95: 7 | R95: 25.37 | T95: 211 | U95: 2.63 | V95: 六430 | W95: 无 | X95: 省部级优秀学生干部/院级优秀学生干部 | Y95: 省部级1个 校级1个 | Z95: 无 | AA95: 反垄断法
A96: 93 | B96: 张浩楠 | C96: 女 | D96: 1994.08 | E96: 硕士 | F96: 中国社会科学院大学 | G96: 法律 | H96: 2 | I96: =U96/5 -> 10.2 | J96: 8 | L96: 5 | N96: 25.2 | Q96: 0 | R96: 18.00 | U96: 51 | V96: 六506 | W96: 无 | X96: 校级优秀研究生/系级法律诊所优秀学员/其它“教授加杯”征文活动二等奖 | Y96: 无 | Z96: 无 | AA96: 民法
A97: 94 | B97: 李仕琳 | C97: 女 | D97: 1994.04 | E97: 硕士 | F97: 西南财经大学 | G97: 法律 | H97: 3 | I97: =U97*4 -> 13.64 | J97: 5 | N97: 21.64 | Q97: 0 | R97: 15.46 | T97: 211 | U97: 3.41 | V97: 六439 | W97: 无 | X97: 无 | Y97: 无 | Z97: 无 | AA97: 行政法
A98: 95 | B98: 陈清荣 | C98: 男 | D98: 1995.10 | E98: 硕士 | F98: 西南政法大学 | G98: 法律 | H98: 2 | I98: 15.6 | J98: 6 | M98: 4 | N98: 27.6 | Q98: 0 | R98: 19.71 | U98: 3.9 | V98: 六463 | W98: 无 | X98: 无 | Y98: 校级2个 | Z98: 无 | AA98: 刑事法实务
A99: 96 | B99: 吴欣明 | C99: 女 | D99: 1996.01 | E99: 硕士 | F99: 辽宁大学 | G99: 法律 | H99: 3 | I99: 12.8 | J99: 6 | N99: 21.8 | Q99: 0 | R99: 15.57 | T99: 211 | U99: 3.2 | V99: 六463 | W99: 无 | X99: 无 | Y99: 无 | Z99: 无 | AA99: 法律非法学
A100: 97 | B100: 刘羽狄 | C100: 女 | D100: 1996.06 | E100: 硕士 | F100: 中国政法大学 | G100: 法律 | H100: 3 | I100: 17 | J100: 8 | L100: 5 | M100: 5 | N100: 38 | Q100: 0 | R100: 27.14 | T100: 211 | U100: 4.25 | V100: 六561 | W100: 无 | X100: 校级三好学生/校级优秀学生干部 | Y100: 校级5个 | Z100: 无 | AA100: 劳动法《论营业转让中的劳动合同承继》
A101: 98 | B101: 梁天雅 | C101: 女 | D101: 1996.09 | E101: 硕士 | F101: 北京师范大学 | G101: 法律 | H101: 3 | I101: 15.2 | J101: 5 | M101: 5 | N101: 28.2 | Q101: 0 | R101: 20.14 | T101: 985 | U101: 3.8 | V101: 六438 | W101: 无 | X101: 无 | Y101: 校级6个 | Z101: 无 | AA101: 非法经营罪
A102: 99 | B102: 潘圆圆 | C102: 女 | D102: 1995.01 | E102: 硕士 | F102: 广东财经大学 | G102: 法律 | H102: 2 | I102: 14 | J102: 5 | K102: 2 | L102: 5 | M102: 2 | N102: 30 | Q102: 0 | R102: 21.43 | U102: 3.5 | V102: 六432 | W102: 计算机二级 | X102: 校级三好学生/校级优秀学生干部 | Y102: 校级1个 | Z102: 无 | AA102: 我国慈善信托监管法律制度研究
A103: 100 | B103: 赵玉霞 | C103: 女 | D103: 1993.12 | E103: 硕士 | F103: 吉林大学 | G103: 法律 | H103: 3 | I103: 13.36 | J103: 6 | N103: 22.36 | P103: 7 | Q103: 7 | R103: 20.97 | T103: 985 | U103: 3.34 | V103: 六451 | W103: 无 | X103: 无 | Y103: 无 | Z103: 无 | AA103: 国际法
A104: 101 | B104: 孙文静 | C104: 女 | D104: 1996.05 | E104: 硕士 | F104: 西南政法大学 | G104: 法律 | H104: 2 | I104: 14 | J104: 5 | M104: 2 | N104: 23 | Q104: 0 | R104: 16.43 | U104: 3.5 | V104: 六442 | W104: 无 | X104: 无 | Y104: 校级1个 | Z104: 无 | AA104: 监察法
A105: 102 | B105: 贺娇 | C105: 女 | D105: 1995.08 | E105: 硕士 | F105: 西南石油大学 | G105: 法律 | H105: 2 | I105: 15.2 | J105: 5 | L105: 4 | M105: 4 | N105: 30.2 | P105: 7 | Q105: 7 | R105: 26.57 | T105: 石油院校 | U105: 3.8 | V105: 六446 | W105: 无 | X105: 院级优秀研究生 | Y105: 校级2个 | Z105: 无 | AA105: 经济法和行政法
A106: 103 | B106: 马晓雨 | C106: 女 | D106: 1997.04 | E106: 硕士 | F106: 天津商业大学 | G106: 法律 | H106: 2 | I106: 13.68 | J106: 5 | M106: 5 | N106: 25.68 | Q106: 0 | R106: 18.34 | U106: 3.42 | V106: 六440 | W106: 无 | X106: 无 | Y106: 国家级1个校级2个 | Z106: 无 | AA106: 刑法学
A107: 104 | B107: 廖璐琦 | C107: 女 | D107: 1996.04 | E107: 硕士 | F107: 西华大学 | G107: 法律 | H107: 2 | I107: =U107/5 -> 17.2 | J107: 8 | K107: 2 | L107: 5 | M107: 5 | N107: 39.2 | Q107: 0 | R107: 28.00 | U107: 86 | V107: 六557 | W107: 计算机二级 | X107: 校级先进个人/省部级2016年“创青春”全国大学生创业大赛重庆赛区金奖/校级2015年全国大学生英语竞赛C类三等奖 | Y107: 校级3个 | Z107: 无 | AA107: 表见代理适用
A108: 105 | B108: 武蓉 | C108: 女 | D108: 1994.01 | E108: 硕士 | F108: 中国民航大学 | G108: 法律 | H108: 2 | I108: =U108*4 -> 10.8 | J108: 6 | M108: 5 | N108: 23.8 | Q108: 0 | R108: 17.00 | U108: 2.7 | V108: 六463 | W108: 无 | X108: 无 | Y108: 国家级1个 | Z108: 无 | AA108: 航空法
A109: 106 | B109: 王芳 | C109: 女 | D109: 1994.09 | E109: 硕士 | F109: 燕山大学 | G109: 法律 | H109: 2 | I109: 18 | J109: 8 | L109: 5 | M109: 5 | N109: 38 | P109: 7 | Q109: 7 | R109: 32.14 | U109: 90 | V109: 六512 | W109: 无 | X109: 院级三好学生 | Y109: 校级3个 | Z109: 无 | AA109: 涉外消费者合同
A110: 107 | B110: 蔡雨萌 | C110: 女 | D110: 1994.10 | E110: 硕士 | F110: 天津师范大学 | G110: 法律 | H110: 2 | I110: 12.4 | J110: 8 | M110: 5 | N110: 27.4 | Q110: 0 | R110: 19.57 | U110: 62 | V110: 六510 | W110: 无 | X110: 无 | Y110: 校级3个 | Z110: 无 | AA110: 不限
A111: 108 | B111: 田甜 | C111: 女 | D111: 1996.02 | E111: 硕士 | F111: 中国政法大学 | G111: 法律 | H111: 3 | I111: 16.96 | J111: 5 | M111: 5 | N111: 29.96 | P111: 7 | Q111: 7 | R111: 26.40 | T111: 211 | U111: 4.24 | V111: 六435 | W111: 无 | X111: 无 | Y111: 校级5个 | Z111: 发表《一种地面测定井下采空区煤层气富集区的方法》；《一种废弃矿井老空区导气裂隙带测定方法》等专利 | AA111: 知识产权
A112: 109 | B112: 赵韫卿 | C112: 女 | D112: 1998.01 | E112: 硕士 | F112: 西南政法大学 | G112: 法律 | H112: 2 | I112: 14.28 | J112: 8 | K112: 2 | L112: 5 | M112: 5 | N112: 36.28 | P112: 7 | Q112: 7 | R112: 30.91 | U112: 3.57 | V112: 六532 | W112: 计算机二级 | X112: 校级三好学生/校级优秀毕业生 | Y112: 国家级2个校级3个 | Z112: 无 | AA112: 民商法
A113: 110 | B113: 黄健栓 | C113: 男 | D113: 1990.12 | E113: 硕士 | F113: 中国政法大学 | G113: 法学 | H113: 3 | I113: 17.6 | J113: 8 | L113: 2 | M113: 5 | N113: 35.6 | Q113: 0 | R113: 25.43 | T113: 211 | U113: 4.4 | V113: 六558 | W113: 无 | X113: 国家级第十二届中国大学生年度人物/美国大学生数学建模竞赛MeritoriousWinner相当于一等/国家级全国大学生英语竞赛二等奖 | Y113: 国家级1个校级3个 | Z113: 无 | AA113: 破产法、银行法、证券法
A114: 111 | B114: 张丁以 | C114: 女 | D114: 1998.03 | E114: 本科 | F114: 西南石油大学 | G114: 法学 | H114: 2 | I114: 11.72 | J114: 2 | N114: 15.72 | Q114: 0 | R114: =N114+Q114 -> 15.72 | T114: 石油院校 | U114: 2.93 | V114: 四434 | W114: 无 | X114: 无 | Y114: 无
A115: 112 | B115: 钱瑾 | C115: 女 | D115: 1996.08 | E115: 硕士 | F115: 中国政法大学 | G115: 法学 | H115: 3 | I115: 17 | J115: 7 | K115: 2 | L115: 2 | M115: 4 | N115: 35 | Q115: 0 | R115: =(N115+Q115)/70*50 -> 25.00 | T115: 211 | U115: 4.25 | V115: 六494 | W115: 计算机二级 | X115: 校级第三届学术英语学生口头报告大赛团队三等奖 | Y115: 校级2个 | Z115: 无 | AA115: 经济法学：《有限责任公司越权担保中相对人的审查义务研究——基于裁判文书的实证分析》
A116: 113 | B116: 赵耀民 | C116: 男 | D116: 1995.00 | E116: 硕士 | F116: UniversityCollegeLondon | G116: 法学 | H116: 2 | I116: 15.6 | J116: 8 | L116: 4 | M116: 2 | N116: 31.6 | P116: 7 | Q116: 7 | R116: 27.57 | U116: 3.9 | V116: 六536 | W116: 无 | X116: 院级优秀学生干部 | Y116: 校级1个 | Z116: 无 | AA116: 公司金融：针对欧盟和美国对信用评级机构的监管改革效果的比较和批判分析
A117: 114 | B117: 李慧 | C117: 女 | D117: 1995.10 | E117: 硕士 | F117: 西南政法大学 | G117: 法学 | H117: 2 | I117: 12 | J117: 6 | M117: 2 | N117: 22 | Q117: 0 | R117: 15.71 | U117: 3 | V117: 六460 | W117: 无 | X117: 无 | Y117: 校级1个 | Z117: 无 | AA117: 民事司法实务
A118: 115 | B118: 丁再瑄 | C118: 女 | D118: 1999.09 | E118: 本科 | F118: 云南大学 | G118: 法学 | H118: 3 | I118: 10.96 | J118: 5 | K118: 2 | M118: 2 | N118: 22.96 | Q118: 0 | R118: =N118+Q118 -> 22.96 | T118: 211 | U118: 2.74 | V118: 六435 | W118: 计算机二级 | X118: 无 | Y118: 校级1个
A119: 116 | B119: 陈禛 | C119: 女 | D119: 1998.07 | E119: 本科 | F119: 西安交通大学 | G119: 法学 | H119: 3 | I119: =U119/5 -> 17.282 | J119: 3 | M119: 2 | N119: 25.282 | Q119: 0 | R119: =N119+Q119 -> 25.28 | T119: 985 | U119: 86.41 | V119: 四469 | W119: 无 | X119: 无 | Y119: 校级1个
A120: 117 | B120: 皮元 | C120: 女 | D120: 1994.07 | E120: 硕士 | F120: 中南民族大学 | G120: 法学 | H120: 2 | I120: =U120*4 -> 14.08 | J120: 6 | L120: 5 | M120: 4 | N120: 31.08 | O120: 5 | P120: 7 | Q120: 12 | R120: =(N120+Q120)/70*50 -> 30.77 | U120: 3.52 | V120: 六473 | W120: 无 | X120: 校级三好学生/省部级2019年湖北省财税法学研究生论坛优秀论文二等奖/校级优秀学生科研项目三等奖 | Y120: 校级2个 | Z120: 国家级：在北大核心期刊《财会月刊》发表一篇论文，论文题目为：《对赌协议现金补偿所得课税：形式与实质之争及其弥合》。 | AA120: 财税法
A121: 118 | B121: 郝蕴 | C121: 女 | D121: 1995.01 | E121: 硕士 | F121: 北京化工大学 | G121: 法学 | H121: 3 | I121: 12.48 | J121: 8 | L121: 4 | M121: 2 | N121: 29.48 | Q121: 0 | R121: 21.06 | T121: 211 | U121: 3.12 | V121: 六505 | W121: 无 | X121: 院级优秀学生干部 | Y121: 校级1个 | Z121: 无 | AA121: 股权善意取得；有限公司股权善意取得的适用
A122: 119 | B122: 马媛廷 | C122: 女 | D122: 1996.09 | E122: 硕士 | F122: 西南政法大学 | G122: 法学 | H122: 2 | I122: 12.4 | J122: 6 | M122: 5 | N122: 25.4 | Q122: 0 | R122: 18.14 | U122: 3.1 | V122: 六462 | W122: 无 | X122: 无 | Y122: 校级3个 | Z122: 无 | AA122: 司法制度
A123: 120 | B123: 邱晓敏 | C123: 女 | D123: 1996.08 | E123: 硕士 | F123: 北京化工大学 | G123: 法学 | H123: 3 | I123: 14.36 | J123: 8 | K123: 2 | L123: 5 | M123: 4 | N123: 36.36 | Q123: 0 | R123: 25.97 | T123: 211 | U123: 3.59 | V123: 六596 | W123: 计算机二级 | X123: 校级“优秀生”荣誉称号/院级三好学生 | Y123: 校级2个 | Z123: 无 | AA123: 研究生毕业论文为《企业中自我交易行为效力的研究》
A124: 121 | B124: 吴石月 | C124: 女 | D124: 1999.12 | E124: 本科 | F124: 中国政法大学 | G124: 法学 | H124: 3 | I124: 12.84 | J124: 8 | N124: 23.84 | Q124: 0 | R124: =N124+Q124 -> 23.84 | T124: 211 | U124: 3.21 | V124: 六542 | W124: 无 | X124: 无 | Y124: 无
A125: 122 | B125: 杨慧敏 | C125: 女 | D125: 1998.03 | E125: 本科 | F125: 华北电力大学（保定） | G125: 法学 | H125: 2 | I125: 14.36 | J125: 2 | L125: 5 | M125: 5 | N125: 28.36 | Q125: 0 | R125: =N125+Q125 -> 28.36 | U125: 3.59 | V125: 四433 | W125: 无 | X125: 校级三好学生 | Y125: 校级3个
A126: 123 | B126: 刘小如 | C126: 女 | D126: 1991.03 | E126: 硕士 | F126: 西南政法大学 | G126: 法学 | H126: 2 | I126: 12 | J126: 7 | L126: 5 | M126: 4 | N126: 30 | Q126: 0 | R126: =(N126+Q126)/70*50 -> 21.43 | U126: 3 | V126: 六480 | W126: 无 | X126: 校级优秀学生干部 | Y126: 校级2个 | Z126: 无 | AA126: 刑事法实务
A127: 124 | B127: 周莞欣 | C127: 女 | D127: 1998.04 | E127: 本科 | F127: 南京大学 | G127: 法学 | H127: 3 | I127: =U127*4 -> 16.88 | J127: 6 | N127: 25.88 | Q127: 0 | R127: =N127+Q127 -> 25.88 | T127: 985 | U127: 4.22 | V127: 六462 | W127: 无 | X127: 无 | Y127: 无
A128: 125 | B128: 李思楠 | C128: 女 | D128: 1998.04 | E128: 本科 | F128: 辽宁对外经贸学院 | G128: 国际经济与贸易 | H128: 2 | I128: 16 | J128: 2 | N128: 20 | Q128: 0 | R128: =N128+Q128 -> 20.00 | U128: 4 | V128: 四449 | W128: 无 | X128: 无 | Y128: 无
A129: 126 | B129: 刘佳玮 | C129: 女 | D129: 1998.08 | E129: 本科 | F129: 南开大学滨海学院 | G129: 国际经济与贸易 | H129: 2 | I129: =U129/10 -> 17.05 | J129: 3 | K129: 2 | L129: 2 | N129: 26.05 | Q129: 0 | R129: =N129+Q129 -> 26.05 | S129: 按100分计算 | U129: 170.5 | V129: 四452 | W129: 计算机二级 | X129: 市级2019西安市临潼区国庆旅游黄金周志愿者服务证书 | Y129: 无
A130: 127 | B130: 孙佳琪 | C130: 女 | D130: 1999.07 | E130: 本科 | F130: 中国人民大学 | G130: 国际经济与贸易 | H130: 3 | I130: 13.08 | J130: 8 | M130: 2 | N130: 26.08 | Q130: 0 | R130: =N130+Q130 -> 26.08 | T130: 985 | U130: 3.27 | V130: 六527 | W130: 无 | X130: 无 | Y130: 校级1个
A131: 128 | B131: 罗楚秦 | C131: 女 | D131: 1999.12 | E131: 本科 | F131: 西南石油大学 | G131: 国际经济与贸易 | H131: 2 | I131: 13.52 | J131: 5 | N131: 20.52 | Q131: 0 | R131: =N131+Q131 -> 20.52 | T131: 石油院校 | U131: 3.38 | V131: 六437 | W131: 无 | X131: 无 | Y131: 无
A132: 129 | B132: 陈蕊 | C132: 女 | D132: 1998.03 | E132: 本科 | F132: 河南大学 | G132: 国际经济与贸易 | H132: 2 | I132: 13.28 | J132: 3 | L132: 2 | N132: =SUM(H132:M132) -> 20.28 | Q132: =SUM(O132:P132) -> 0 | R132: =N132+Q132 -> 20.28 | U132: 3.32 | V132: 四455 | W132: 无 | X132: 省部级郑开国际马拉松优秀志愿者证书 | Y132: 无
A133: 130 | B133: 李欣 | C133: 女 | D133: 1997.05 | E133: 本科 | F133: 西南交通大学 | G133: 国际经济与贸易 | H133: 3 | I133: 11.6 | J133: 3 | N133: 17.6 | Q133: 0 | R133: 17.60 | T133: 211 | U133: 2.9 | V133: 四464 | W133: 无 | X133: 无 | Y133: 无
A134: 131 | B134: 陈俊灵 | C134: 女 | D134: 1998.05 | E134: 本科 | F134: 上海立信会计金融学院 | G134: 国际经济与贸易 | H134: 2 | I134: 12.08 | J134: 7 | M134: 2 | N134: 23.08 | Q134: 0 | R134: 23.08 | U134: 3.02 | V134: 六480 | W134: 无 | X134: 无 | Y134: 校级1个
A135: 132 | B135: 崔智妍 | C135: 女 | D135: 1999.05 | E135: 本科 | F135: 北京理工大学 | G135: 国际经济与贸易 | H135: 3 | I135: 13.84 | J135: 8 | L135: 5 | N135: 29.84 | Q135: 0 | R135: 29.84 | T135: 985 | U135: 3.46 | V135: 六506 | W135: 无 | X135: 校级优秀学生干部 | Y135: 无
A136: 133 | B136: 汪珊 | C136: 女 | D136: 1999.04 | E136: 本科 | F136: 沈阳工业大学 | G136: 国际经济与贸易 | H136: 2 | I136: 11.28 | J136: 3 | L136: 5 | N136: 21.28 | Q136: 0 | R136: 21.28 | U136: 2.82 | V136: 四471 | W136: 无 | X136: 校级优秀团员/校级铜奖 | Y136: 无
A137: 134 | B137: 吕东旭 | C137: 女 | D137: 2000.02 | E137: 本科 | F137: 大连财经学院 | G137: 国际经济与贸易 | H137: 2 | I137: 11.96 | J137: 3 | L137: 5 | M137: 4 | N137: 25.96 | Q137: 0 | R137: 25.96 | U137: 2.99 | V137: 四463 | W137: 无 | X137: 校级三好学生 | Y137: 省部级1个
A138: 135 | B138: 张舜禹 | C138: 女 | D138: 1998.02 | E138: 本科 | F138: 大连大学 | G138: 国际经济与贸易 | H138: 2 | I138: 13.88 | J138: 5 | K138: 2 | L138: 2 | N138: 24.88 | Q138: 0 | R138: 24.88 | U138: 3.47 | V138: 六440 | W138: 计算机二级 | X138: 校级第二届经济贸易大赛优秀奖/院级海报设计大赛二等奖 | Y138: 无
A139: 136 | B139: 陈燕梅 | C139: 女 | D139: 1998.07 | E139: 本科 | F139: 西南石油大学 | G139: 国际经济与贸易 | H139: 2 | I139: 13.8 | J139: 5 | N139: 20.8 | Q139: 0 | R139: 20.80 | T139: 石油院校 | U139: 3.45 | V139: 六449 | W139: 无 | X139: 无 | Y139: 无 | AA139: 0
A140: 137 | B140: 王一同 | C140: 女 | D140: 2000.01 | E140: 本科 | F140: 长春工业大学 | G140: 国际经济与贸易 | H140: 2 | I140: 11.44 | J140: 2 | N140: 15.44 | Q140: 0 | R140: 15.44 | U140: 2.86 | V140: 四427 | W140: 无 | X140: 无 | Y140: 无 | AA140: 0
A141: 138 | B141: 杜晓彤 | C141: 女 | D141: 1998.12 | E141: 本科 | F141: 聊城大学 | G141: 国际经济与贸易 | H141: 2 | I141: 14.6 | J141: 5 | N141: 21.6 | Q141: 0 | R141: 21.60 | U141: 3.65 | V141: 六449 | W141: 无 | X141: 无 | Y141: 无 | AA141: 0
A142: 说明：1.若研究生和本科生指标不分开，共同排序时，研究生的总得分的计算方式为：（基础分合计+科研分合计）/70*50 2.面试基础评分表留存一年。
A143: 评委（签字）：

Sheet 基础分评分表20210518 (hidden)
A1: 长城钻探高校毕业生招聘面试基础分评分表（2021.10.31）
A2: 序号 | B2: 个人基本情况 | H2: 个人基础量化分(50分) | O2: 研究生科研能力（20分） | R2: 总得分 | S2: 备注
B3: 姓名 | C3: 性别 | D3: 出生年月 | E3: 学历 | F3: 毕业院校 | G3: 所学专业 | H3: 毕业院校（10分） | I3: 学习成绩（20分） | J3: 外语水平（8分） | K3: 计算机水平（2分） | L3: 荣誉称号 (5分) | M3: 获奖学金 (5分) | N3: 基础分合计 | O3: 发表论文 (10分) | P3: 研究方向 (10分) | Q3: 科研分合计 | T3: 毕业院校 | U3: 学分绩点 | V3: 英语成绩 | W3: 计算机证书 | X3: 获得荣誉情况 | Y3: 获奖学金情况 | Z3: 发表论文情况 | AA3: 研究方向情况
A4: 1 | B4: 刘洋 | C4: 男 | D4: 2001.03 | E4: 本科 | F4: 中国石油大学(华东) | G4: 石油工程 | H4: 2 | I4: =U4*4 -> 10.96 | J4: 2 | N4: =SUM(H4:M4) -> 14.96 | R4: =N4+Q4 -> 14.96 | T4: 石油院校 | U4: 2.74 | V4: 四445
A5: 2 | B5: 刘青峰 | C5: 男 | D5: 1999.07 | E5: 本科 | F5: 长江大学 | G5: 石油工程 | H5: 2 | I5: =U5*4 -> 8.4 | J5: 3 | N5: =SUM(H5:M5) -> 13.4 | R5: 13.40 | T5: 石油院校 | U5: 2.1 | V5: 四474
A6: 3 | B6: 阮视野 | C6: 男 | D6: 2000.10 | E6: 本科 | F6: 西安石油大学 | G6: 石油工程 | H6: 2 | I6: 9.28 | J6: 2 | N6: 13.28 | R6: 13.28 | T6: 石油院校 | U6: 2.32 | V6: 四433
A7: 4 | B7: 郭佳骏 | C7: 男 | D7: 1997.10 | E7: 本科 | F7: 辽宁石油化工大学 | G7: 石油工程 | H7: 2 | I7: =U7*4/2 -> 10.1 | J7: 5 | N7: 17.1 | R7: 17.10 | T7: 石油院校 | U7: 5.05 | V7: 四504
A8: 5 | B8: 焦李科 | C8: 男 | D8: 2000.05 | E8: 本科 | F8: 西安石油大学 | G8: 石油工程 | H8: 2 | I8: 10.32 | J8: 5 | L8: 2 | N8: 19.32 | R8: 19.32 | T8: 石油院校 | U8: 2.58 | V8: 六450 | X8: 竞赛4次
A9: 6 | B9: 王春洋 | C9: 男 | D9: 1999.06 | E9: 本科 | F9: 西南石油大学 | G9: 石油工程 | H9: 2 | I9: 10.04 | J9: 3 | N9: 15.04 | R9: 15.04 | T9: 石油院校 | U9: 2.51 | V9: 四461
A10: 7 | B10: 卢琪 | C10: 男 | D10: 1999.01 | E10: 本科 | F10: 中国石油大学(华东) | G10: 石油工程 | H10: 2 | I10: 8.12 | J10: 2 | L10: 2 | N10: 14.12 | R10: 14.12 | T10: 石油院校 | U10: 2.03 | V10: 四428 | X10: 竞赛2次
A11: 8 | B11: 王威 | C11: 男 | D11: 1998.12 | E11: 本科 | F11: 长江大学 | G11: 石油工程 | H11: 2 | I11: 10 | J11: 3 | N11: 15 | R11: 15.00 | T11: 石油院校 | U11: 2.5 | V11: 四456
A12: 9 | B12: 张玉龙 | C12: 男 | D12: 1999.08 | E12: 本科 | F12: 西南石油大学 | G12: 石油工程 | H12: 2 | I12: 10.72 | J12: 5 | N12: 17.72 | R12: 17.72 | T12: 石油院校 | U12: 2.68 | V12: 六432
A13: 10 | B13: 吕天琛 | C13: 男 | D13: 1999.12 | E13: 本科 | F13: 辽宁石油化工大学 | G13: 石油工程 | H13: 2 | I13: =U13*4/2 -> 9.4 | J13: 2 | N13: 13.4 | R13: 13.40 | T13: 石油院校 | U13: 4.7 | V13: 四442
A14: 11 | B14: 冉伟杰 | C14: 男 | D14: 2000.04 | E14: 本科 | F14: 长江大学 | G14: 石油工程 | H14: 2 | I14: 12 | J14: 2 | N14: 16 | R14: 16.00 | T14: 石油院校 | U14: 3 | V14: 四435
A15: 12 | B15: 翁梦洋 | C15: 男 | D15: 2000.01 | E15: 本科 | F15: 长江大学 | G15: 石油工程 | H15: 2 | I15: 7.08 | J15: 4 | N15: 13.08 | R15: 13.08 | T15: 石油院校 | U15: 1.77 | V15: 四495
A16: 13 | B16: 张锋 | C16: 男 | D16: 1999.04 | E16: 本科 | F16: 兰州城市学院 | G16: 石油工程 | H16: 2 | I16: 12.8 | J16: 4 | N16: 18.8 | R16: 18.80 | U16: 3.2 | V16: 四490
A17: 14 | B17: 马晨 | C17: 男 | D17: 1999.05 | E17: 本科 | F17: 中国石油大学(华东) | G17: 石油工程 | H17: 2 | I17: =U17/4 -> 18.62 | J17: 3 | N17: 23.62 | R17: 23.62 | T17: 石油院校 | U17: 74.48 | V17: 四465
A18: 15 | B18: 单星凯 | C18: 男 | D18: 2000.04 | E18: 本科 | F18: 中国石油大学(华东) | G18: 石油工程 | H18: 2 | I18: =U18/4 -> 18.5125 | J18: 2 | L18: 2 | M18: 5 | N18: 29.5125 | R18: 29.51 | T18: 石油院校 | U18: 74.05 | V18: 四441 | X18: 竞赛1次 | Y18: 校级奖学金3次
A19: 16 | B19: 张李明 | C19: 男 | D19: 2000.04 | E19: 本科 | F19: 长江大学 | G19: 石油工程 | H19: 2 | I19: 8.2 | J19: 2 | N19: 12.2 | R19: 12.20 | T19: 石油院校 | U19: 2.05 | V19: 四441
A20: 17 | B20: 严瑶 | C20: 男 | D20: 2000.02 | E20: 本科 | F20: 西南石油大学 | G20: 石油工程 | H20: 2 | I20: 11.48 | J20: 2 | L20: 2 | N20: 17.48 | R20: 17.48 | T20: 石油院校 | U20: 2.87 | V20: 四448 | X20: 竞赛3次
A21: 18 | B21: 蔡晓曦 | C21: 男 | D21: 2000.09 | E21: 本科 | F21: 长江大学 | G21: 石油工程 | H21: 2 | I21: 8 | J21: 2 | N21: 12 | R21: 12.00 | T21: 石油院校 | U21: 2 | V21: 四425
A22: 19 | B22: 盛常旺 | C22: 男 | D22: 1999.10 | E22: 本科 | F22: 常州大学 | G22: 石油工程 | H22: 2 | I22: 14.4 | J22: 5 | N22: 21.4 | R22: 21.40 | U22: 3.6 | V22: 六446
A23: 20 | B23: 葛明轩 | C23: 男 | D23: 2000.08 | E23: 本科 | F23: 西安石油大学 | G23: 石油工程 | H23: 2 | I23: 9.8 | J23: 3 | N23: 14.8 | R23: 14.80 | T23: 石油院校 | U23: 2.45 | V23: 四471
A24: 21 | B24: 高松林 | C24: 男 | D24: 1997.01 | E24: 硕士 | F24: 中国石油大学(北京) | G24: 海洋油气工程 | H24: 3 | I24: 11.92 | J24: 5 | L24: 2 | M24: 2 | N24: 23.92 | R24: =(N24+Q24)/70*50 -> 17.09 | T24: 211 | U24: 2.98 | V24: 六442 | X24: 竞赛1次 | Y24: 校级奖学金 | AA24: 桩靴基础
A25: 22 | B25: 石起朋 | C25: 男 | D25: 1999.12 | E25: 硕士 | F25: 远东联邦大学 | G25: 石油与天然气工程 | H25: 2 | I25: 13.96 | J25: 5 | L25: 5 | M25: 2 | N25: 27.96 | R25: 19.97 | U25: 3.49 | X25: 优秀学生干部 | Y25: 校级奖学金 | AA25: 钻井废液的无害化处理
A26: 23 | B26: 褚吉超 | C26: 男 | D26: 1995.09 | E26: 硕士 | F26: 远东联邦大学 | G26: 石油与天然气工程 | H26: 2 | I26: 13.96 | J26: 5 | N26: 20.96 | R26: 14.97 | U26: 3.49 | AA26: 改善集油和处理系统
A27: 24 | B27: 李唯熙 | C27: 男 | D27: 2000.04 | E27: 本科 | F27: 辽宁石油化工大学 | G27: 安全工程 | H27: 2 | I27: =U27*4/2 -> 7.1 | J27: 2 | L27: 2 | N27: 13.1 | R27: =N27+Q27 -> 13.10 | T27: 石油院校 | U27: 3.55 | V27: 四449 | X27: 竞赛1次
A28: 25 | B28: 谭玉灿 | C28: 男 | D28: 1999.09 | E28: 本科 | F28: 辽宁石油化工大学 | G28: 安全工程 | H28: 2 | I28: =U28*4/2 -> 9.58 | J28: 2 | N28: 13.58 | R28: 13.58 | T28: 石油院校 | U28: 4.79 | V28: 四426
A29: 26 | B29: 龙阳 | C29: 男 | D29: 1999.11 | E29: 本科 | F29: 成都理工大学 | G29: 资源勘查工程 | H29: 2 | I29: 8.4 | J29: 3 | N29: 13.4 | R29: 13.40 | U29: 2.1 | V29: 四464
A30: 27 | B30: 马腾鑫 | C30: 男 | D30: 2000.01 | E30: 本科 | F30: 辽宁工程技术大学 | G30: 资源勘查工程 | H30: 2 | I30: 11.48 | J30: 2 | N30: 15.48 | R30: 15.48 | U30: 2.87 | V30: 四432 | Z30: 发表论文Fuzzy neural network for studying coupling between drilling parameters在ACS（sci）杂志 发表人工智能类文章：基于改进Faster R-CNN的钢材表面缺陷检测方法（吉大学报）
A31: 28 | B31: 毕恒威 | C31: 男 | D31: 2000.09 | E31: 本科 | F31: 长江大学 | G31: 地质学 | H31: 2 | I31: 9.56 | J31: 5 | N31: 16.56 | R31: 16.56 | T31: 石油院校 | U31: 2.39 | V31: 四507
A32: 29 | B32: 张孝合 | C32: 男 | D32: 2000.01 | E32: 本科 | F32: 成都理工大学 | G32: 地质学 | H32: 2 | I32: 11.96 | J32: 3 | L32: 2 | N32: 18.96 | R32: 18.96 | U32: 2.99 | V32: 四467 | X32: 竞赛1次
A33: 30 | B33: 蒙顺生 | C33: 男 | D33: 1999.08 | E33: 本科 | F33: 长江大学 | G33: 地质学 | H33: 2 | I33: 9.96 | J33: 2 | N33: 13.96 | R33: 13.96 | T33: 石油院校 | U33: 2.49 | V33: 四442
A34: 31 | B34: 刘康 | C34: 男 | D34: 1995.12 | E34: 硕士 | F34: 中国地质大学(北京) | G34: 地质工程 | H34: 2 | I34: 13.96 | J34: 5 | L34: 5 | M34: 5 | N34: 30.96 | R34: =(N34+Q34)/70*50 -> 22.11 | U34: 3.49 | V34: 六445 | X34: 优秀毕业生 | Y34: 国家励志奖学金 | AA34: 地热井流体
A35: 32 | B35: 何涛 | C35: 男 | D35: 1997.08 | E35: 硕士 | F35: 中国地质大学(武汉) | G35: 地质工程 | H35: 2 | I35: 13.76 | J35: 5 | M35: 4 | N35: 24.76 | R35: 17.69 | U35: 3.44 | V35: 六428 | Y35: 校级奖学金2次 | AA35: 遥感影像目标检测
A36: 33 | B36: 徐猛 | C36: 男 | D36: 1997.05 | E36: 硕士 | F36: 中国地质大学(武汉) | G36: 地质工程 | H36: 2 | I36: 13.96 | J36: 5 | N36: 20.96 | R36: 14.97 | U36: 3.49 | V36: 六427 | AA36: 天然气水合物勘探与开发
A37: 34 | B37: 乐天呈 | C37: 男 | D37: 1996.11 | E37: 硕士 | F37: 南京大学 | G37: 地质工程 | H37: 3 | I37: =U37*4 -> 13.96 | J37: 8 | L37: 2 | M37: 4 | N37: 30.96 | R37: 22.11 | T37: 985 | U37: 3.49 | V37: 六589 | X37: 竞赛1次 | Y37: 校级奖学金2次
A38: 35 | B38: 李飞龙 | C38: 男 | D38: 1995.03 | E38: 硕士 | F38: 长江大学 | G38: 地质工程 | H38: 2 | I38: 12.8 | J38: 5 | L38: 2 | N38: 21.8 | R38: 15.57 | T38: 石油院校 | U38: 3.2 | V38: 雅思6.5 | X38: 竞赛2次 | AA38: 沉积学，辽河盆地驾掌寺-小龙湾东营组沉积体系分析
A39: 36 | B39: 杨硕 | C39: 男 | D39: 1996.08 | E39: 硕士 | F39: 南京大学 | G39: 地质资源与地质工程 | H39: 3 | I39: 13.96 | J39: 7 | K39: 2 | M39: 4 | N39: 29.96 | R39: 21.40 | T39: 985 | U39: 3.49 | V39: 六484 | W39: 计算机二级 | Y39: 校级奖学金2次 | AA39: 岩石力学 微波照射下岩石温度测定及温度应力弱化机制研究
A40: 37 | B40: 陈雷 | C40: 男 | D40: 1995.08 | E40: 硕士 | F40: 中国地质科学院 | G40: 构造地质学 | H40: 2 | I40: 15.28 | J40: 6 | L40: 2 | M40: 5 | N40: 30.28 | R40: 21.63 | U40: 3.82 | V40: 六460 | X40: 竞赛2次 | Y40: 国家励志奖学金 | AA40: 通过沉积序列观测、薄片观察统计、重砂单矿物分析、碎屑锆石以及地球化学分析等方法系统恢复沉积盆地原型
A41: 38 | B41: 蔡虎成 | C41: 男 | D41: 1990.12 | E41: 硕士 | F41: 中国地质大学(北京) | G41: 构造地质学 | H41: 2 | I41: 13.2 | J41: 5 | M41: 2 | N41: 22.2 | R41: 15.86 | U41: 3.3 | V41: 六436 | Y41: 校级奖学金 | AA41: 区域地质调查
A42: 39 | B42: 邓哲 | C42: 男 | D42: 2000.04 | E42: 本科 | F42: 长江大学 | G42: 应用化学 | H42: 2 | I42: 11.24 | J42: 2 | N42: 15.24 | R42: =N42+Q42 -> 15.24 | T42: 石油院校 | U42: 2.81 | V42: 四444
A43: 40 | B43: 朱卫伟 | C43: 男 | D43: 2000.04 | E43: 本科 | F43: 西南石油大学 | G43: 应用化学 | H43: 2 | I43: 11.84 | J43: 2 | L43: 2 | N43: 17.84 | R43: 17.84 | T43: 石油院校 | U43: 2.96 | V43: 四431 | X43: 竞赛1次
A44: 41 | B44: 夏明 | C44: 男 | D44: 2000.10 | E44: 本科 | F44: 长江大学 | G44: 应用化学 | H44: 2 | I44: 13.36 | J44: 5 | N44: 20.36 | R44: 20.36 | T44: 石油院校 | U44: 3.34 | V44: 四503
A45: 42 | B45: 向本林 | C45: 男 | D45: 1999.10 | E45: 本科 | F45: 长江大学 | G45: 应用化学 | H45: 2 | I45: 12.76 | J45: 4 | L45: 5 | N45: 23.76 | R45: 23.76 | T45: 石油院校 | U45: 3.19 | V45: 四484 | X45: 优秀学生干部
A46: 43 | B46: 王石林 | C46: 男 | D46: 1996.12 | E46: 硕士 | F46: 华东理工大学 | G46: 应用化学 | H46: 3 | I46: 12 | J46: 8 | N46: 23 | R46: =(N46+Q46)/70*50 -> 16.43 | T46: 211 | U46: 3 | V46: 六558 | X46: 三好学生 | Y46: 校级奖学金7次 | AA46: 等离子光催化剂设计、制备及研发
A47: 44 | B47: 何志顺 | C47: 男 | D47: 1998.06 | E47: 本科 | F47: 长江大学 | G47: 应用化学 | H47: 2 | I47: 10.96 | J47: 2 | N47: 14.96 | R47: =N47+Q47 -> 14.96 | T47: 石油院校 | U47: 2.74 | V47: 四429
A48: 45 | B48: 但建忱 | C48: 男 | D48: 2000.05 | E48: 本科 | F48: 西南石油大学 | G48: 应用化学 | H48: 2 | I48: 10.84 | J48: 3 | N48: 15.84 | R48: 15.84 | T48: 石油院校 | U48: 2.71 | V48: 四474
A49: 46 | B49: 赵云昊 | C49: 男 | D49: 2000.07 | E49: 本科 | F49: 辽宁石油化工大学 | G49: 应用化学 | H49: 2 | I49: =U49*4/2 -> 9.6 | J49: 2 | N49: 13.6 | R49: 13.60 | T49: 石油院校 | U49: 4.8 | V49: 四446
A50: 47 | B50: 覃瑶 | C50: 男 | D50: 2000.01 | E50: 本科 | F50: 长江大学 | G50: 应用化学 | H50: 2 | I50: 11.52 | J50: 2 | N50: 15.52 | R50: 15.52 | T50: 石油院校 | U50: 2.88 | V50: 四433
A51: 48 | B51: 邹贤忠 | C51: 男 | D51: 1998.07 | E51: 本科 | F51: 长江大学 | G51: 应用化学 | H51: 2 | I51: 13.44 | J51: 4 | L51: 5 | M51: 2 | N51: 26.44 | R51: 26.44 | T51: 石油院校 | U51: 3.36 | V51: 日四99 | X51: 优秀学生干部 | Y51: 校级奖学金
A52: 49 | B52: 何润 | C52: 男 | D52: 2000.05 | E52: 本科 | F52: 东北石油大学 | G52: 应用化学 | H52: 2 | I52: 10.72 | J52: 2 | N52: 14.72 | R52: 14.72 | T52: 石油院校 | U52: 2.68 | V52: 四433
A53: 50 | B53: 李想 | C53: 男 | D53: 1996.05 | E53: 硕士 | F53: 兰州交通大学 | G53: 化学 | H53: 2 | I53: 12.96 | J53: 8 | N53: 22.96 | R53: =(N53+Q53)/70*50 -> 16.40 | U53: 3.24 | V53: 六518
A54: 51 | B54: 李佳骏 | C54: 男 | D54: 1998.11 | E54: 本科 | F54: 辽宁石油化工大学 | G54: 化学 | H54: 2 | I54: =U54*4/2 -> 8.3 | J54: 3 | N54: 13.3 | R54: =N54+Q54 -> 13.30 | T54: 石油院校 | U54: 4.15 | V54: 四465
A55: 52 | B55: 巴文轩 | C55: 男 | D55: 1996.11 | E55: 硕士 | F55: 长江大学 | G55: 化学工程 | H55: 2 | I55: 14.28 | J55: 5 | N55: 21.28 | R55: 15.20 | T55: 石油院校 | U55: 3.57 | V55: 六434 | AA55: 凝胶堵漏
A56: 53 | B56: 张硕 | C56: 男 | D56: 1995.10 | E56: 硕士 | F56: 西安石油大学 | G56: 化学工程 | H56: 2 | I56: 12.12 | J56: 5 | N56: 19.12 | R56: 13.66 | T56: 石油院校 | U56: 3.03 | V56: 六437 | AA56: 油田用酸化缓蚀剂及钻井堵漏剂等
A57: 54 | B57: 罗云翔 | C57: 男 | D57: 1997.09 | E57: 硕士 | F57: 西南石油大学 | G57: 化学工程与技术 | H57: 2 | I57: 13.88 | J57: 5 | K57: 2 | N57: 22.88 | R57: 16.34 | T57: 石油院校 | U57: 3.47 | V57: 六434 | W57: 计算机二级证书.jpg | AA57: 钻井液处理剂设计与合成、钻井液体系设计、聚合物处理剂水溶液高温降解机理研究。
A58: 55 | B58: 高嵩 | C58: 男 | D58: 1999.12 | E58: 本科 | F58: 辽宁石油化工大学 | G58: 化学工程与工艺 | H58: 2 | I58: =U58*4/2 -> 10.2 | J58: 2 | N58: 14.2 | R58: =N58+Q58 -> 14.20 | T58: 石油院校 | U58: 5.1 | V58: 四434
A59: 56 | B59: 杨正康 | C59: 男 | D59: 1996.08 | E59: 硕士 | F59: 中国石油大学(北京) | G59: 化学工程与工艺 | H59: 3 | I59: 12.28 | J59: 5 | N59: 20.28 | R59: =(N59+Q59)/70*50 -> 14.49 | T59: 211 | U59: 3.07 | V59: 六428 | AA59: 工业催化剂的研发和改良
A60: 57 | B60: 曾为 | C60: 男 | D60: 1998.09 | E60: 本科 | F60: 营口理工学院 | G60: 化学工程与工艺 | H60: 2 | I60: 9.2 | J60: 4 | N60: 15.2 | R60: 15.20 | U60: 2.3 | V60: 四477
A61: 58 | B61: 刘颢诚 | C61: 男 | D61: 1999.06 | E61: 本科 | F61: 大连理工大学（盘锦校区） | G61: 化学工程与工业生物工程 | H61: 3 | I61: 9.24 | J61: 4 | L61: 2 | N61: 18.24 | R61: 18.24 | T61: 211 | U61: 2.31 | V61: 四487 | X61: 竞赛2次
A62: 59 | B62: 温斌 | C62: 男 | D62: 1997.01 | E62: 本科 | F62: 南昌工学院 | G62: 电气工程 | H62: 2 | I62: 14.36 | J62: 2 | N62: 18.36 | R62: 18.36 | U62: 3.59 | V62: 四433
A63: 60 | B63: 董楚杰 | C63: 男 | D63: 1998.11 | E63: 硕士 | F63: 武汉科技大学 | G63: 电气工程 | H63: 2 | I63: 15.6 | J63: 7 | L63: 2 | N63: 26.6 | R63: =(N63+Q63)/70*50 -> 19.00 | U63: 3.9 | V63: 六492 | X63: 竞赛4个 | AA63: 新型逆变器控制
A64: 61 | B64: 顾凯航 | C64: 男 | D64: 2000.08 | E64: 本科 | F64: 辽宁石油化工大学 | G64: 电气工程及其自动化 | H64: 2 | I64: =U64*4/2 -> 13.74 | J64: 2 | L64: 2 | M64: 4 | N64: 23.74 | R64: =N64+Q64 -> 23.74 | T64: 石油院校 | U64: 6.87 | V64: 四429 | X64: 竞赛7个 | Y64: 校级奖学金2次
A65: 62 | B65: 罗志航 | C65: 男 | D65: 2000.10 | E65: 本科 | F65: 长江大学 | G65: 电气工程及其自动化 | H65: 2 | I65: 7.84 | J65: 2 | N65: 11.84 | R65: 11.84 | T65: 石油院校 | U65: 1.96 | V65: 四438
A66: 63 | B66: 袁钲淼 | C66: 男 | D66: 2000.05 | E66: 本科 | F66: 陕西科技大学 | G66: 电气工程及其自动化 | H66: 2 | I66: 13.6 | J66: 6 | L66: 2 | M66: 4 | N66: 27.6 | R66: 27.60 | U66: 3.4 | V66: 六459 | X66: 竞赛1次 | Y66: 校级奖学金2次
A67: 64 | B67: 吕哲 | C67: 男 | D67: 2000.05 | E67: 本科 | F67: 辽宁石油化工大学 | G67: 电气工程及其自动化 | H67: 2 | I67: 10.04 | J67: 4 | N67: 16.04 | R67: 16.04 | T67: 石油院校 | U67: 5.02 | V67: 四499
A68: 65 | B68: 王孟阔 | C68: 男 | D68: 2000.07 | E68: 本科 | F68: 辽宁石油化工大学 | G68: 电气工程及其自动化 | H68: 2 | I68: 9.6 | J68: 2 | N68: 13.6 | R68: 13.60 | T68: 石油院校 | U68: 4.8 | V68: 四428
A69: 66 | B69: 李佳伟 | C69: 男 | D69: 2000.08 | E69: 本科 | F69: 长江大学 | G69: 电气工程及其自动化 | H69: 2 | I69: =U69*4 -> 11.72 | J69: 3 | N69: =SUM(H69:M69) -> 16.72 | R69: 16.72 | T69: 石油院校 | U69: 2.93 | V69: 四451
A70: 67 | B70: 吴朋 | C70: 男 | D70: 1997.10 | E70: 本科 | F70: 沈阳农业大学 | G70: 电气工程及其自动化 | H70: 2 | I70: 12.88 | J70: 2 | K70: 2 | L70: 2 | M70: 5 | N70: 25.88 | R70: 25.88 | U70: 3.22 | V70: 四431 | W70: 计算机三级 | X70: 竞赛1次 | Y70: 国家励志奖学金
A71: 68 | B71: 于金海 | C71: 男 | D71: 1998.03 | E71: 本科 | F71: 辽宁石油化工大学 | G71: 电气工程及其自动化 | H71: 2 | I71: =U71*4/2 -> 15.8 | J71: 2 | M71: 5 | N71: 24.8 | R71: 24.80 | T71: 石油院校 | U71: 7.9 | V71: 四450 | Y71: 国家励志奖学金
A72: 69 | B72: 郑鑫宇 | C72: 男 | D72: 1996.05 | E72: 硕士 | F72: 沈阳理工大学 | G72: 电气工程及其自动化 | H72: 2 | I72: 12 | J72: 6 | N72: 20 | R72: =(N72+Q72)/70*50 -> 14.29 | U72: 3 | V72: 六470 | AA72: 基于视觉的机械臂抓取研究
A73: 70 | B73: 杨天赐 | C73: 男 | D73: 2000.08 | E73: 本科 | F73: 辽宁石油化工大学 | G73: 电气工程及其自动化 | H73: 2 | I73: 9.6 | J73: 2 | N73: 13.6 | R73: =N73+Q73 -> 13.60 | T73: 石油院校 | U73: 4.8 | V73: 四426
A74: 71 | B74: 韩金语 | C74: 男 | D74: 2000.10 | E74: 本科 | F74: 辽宁科技大学 | G74: 电气工程及其自动化 | H74: 2 | I74: 10.96 | J74: 5 | N74: 17.96 | R74: 17.96 | U74: 2.74 | V74: 四506
A75: 72 | B75: 洪浩哲 | C75: 男 | D75: 2000.08 | E75: 本科 | F75: 沈阳工业大学 | G75: 电气工程及其自动化 | H75: 2 | I75: 10.68 | J75: 8 | K75: 2 | N75: 22.68 | R75: 22.68 | U75: 2.67 | V75: 六551 | W75: 计算机三级
A76: 73 | B76: 李晓豪 | C76: 男 | D76: 2000.11 | E76: 本科 | F76: 辽宁石油化工大学 | G76: 电气工程及其自动化 | H76: 2 | I76: 9.68 | J76: 4 | K76: 2 | N76: 17.68 | R76: 17.68 | T76: 石油院校 | U76: 4.84 | V76: 四483 | W76: 计算机二级
A77: 74 | B77: 吴思远 | C77: 男 | D77: 1999.03 | E77: 本科 | F77: 沈阳建筑大学 | G77: 电气工程及其自动化 | H77: 2 | I77: 10.96 | J77: 5 | N77: 17.96 | R77: 17.96 | U77: 2.74 | V77: 六430
A78: 75 | B78: 孙振鹏 | C78: 男 | D78: 2000.05 | E78: 本科 | F78: 长江大学 | G78: 自动化 | H78: 2 | I78: 12.32 | J78: 2 | L78: 5 | N78: 21.32 | R78: 21.32 | T78: 石油院校 | U78: 3.08 | V78: 四439 | X78: 优秀学生干部
A79: 76 | B79: 胡均丰 | C79: 男 | D79: 2001.05 | E79: 本科 | F79: 长江大学 | G79: 自动化 | H79: 2 | I79: 11.72 | J79: 4 | N79: 17.72 | R79: 17.72 | T79: 石油院校 | U79: 2.93 | V79: 四498
A80: 77 | B80: 齐熠 | C80: 男 | D80: 1999.08 | E80: 本科 | F80: 辽宁科技大学 | G80: 自动化 | H80: 2 | I80: 10.96 | J80: 7 | M80: 4 | N80: 23.96 | R80: 23.96 | U80: 2.74 | V80: 六482 | Y80: 校级奖学金2次
A81: 78 | B81: 文新宇 | C81: 男 | D81: 2000.03 | E81: 本科 | F81: 华东交通大学 | G81: 自动化 | H81: 2 | I81: 9.12 | J81: 2 | L81: 2 | N81: 15.12 | R81: 15.12 | U81: 2.28 | V81: 四450 | X81: 竞赛2次
A82: 79 | B82: 刘智轩 | C82: 男 | D82: 1999.10 | E82: 本科 | F82: 东北石油大学 | G82: 自动化 | H82: 2 | I82: 10.96 | J82: 5 | N82: 17.96 | R82: 17.96 | T82: 石油院校 | U82: 2.74 | V82: 六433
A83: 80 | B83: 姚耀 | C83: 男 | D83: 1999.12 | E83: 本科 | F83: 大连海洋大学 | G83: 自动化 | H83: 2 | I83: 10.96 | J83: 2 | N83: 14.96 | R83: 14.96 | U83: 2.74 | V83: 四446
A84: 81 | B84: 杨敬茹 | C84: 女 | D84: 1999.11 | E84: 本科 | F84: 沈阳理工大学 | G84: 自动化 | H84: 2 | I84: 13.36 | J84: 2 | K84: 2 | M84: 4 | N84: 23.36 | R84: 23.36 | U84: 3.34 | V84: 四440 | W84: 计算机二级 | Y84: 校级奖学金2次
A85: 82 | B85: 李杰 | C85: 男 | D85: 1999.06 | E85: 本科 | F85: 天津科技大学 | G85: 自动化 | H85: 2 | I85: 13.12 | J85: 3 | L85: 5 | M85: 5 | N85: 28.12 | R85: 28.12 | U85: 3.28 | V85: 四456 | X85: 三好学生 | Y85: 国家励志奖学金 | AA85: 碳纤维复合材料
A86: 83 | B86: 段金麒 | C86: 男 | D86: 1999.05 | E86: 本科 | F86: 辽宁石油化工大学 | G86: 自动化 | H86: 2 | I86: =U86*4/2 -> 7.24 | J86: 4 | N86: 13.24 | R86: 13.24 | T86: 石油院校 | U86: 3.62 | V86: 四483
A87: 84 | B87: 盛鹏宇 | C87: 男 | D87: 2000.12 | E87: 本科 | F87: 东北石油大学 | G87: 自动化 | H87: 2 | I87: 10 | J87: 3 | N87: 15 | R87: 15.00 | T87: 石油院校 | U87: 2.5 | V87: 四452
A88: 85 | B88: 刘添翼 | C88: 男 | D88: 1997.07 | E88: 硕士 | F88: 东北石油大学 | G88: 控制工程 | H88: 2 | I88: 13.96 | J88: 5 | L88: 2 | N88: 22.96 | R88: =(N88+Q88)/70*50 -> 16.40 | T88: 石油院校 | U88: 3.49 | V88: 六433 | X88: 竞赛3次 | AA88: 人工智能算法在油气田开发领域的应用
A89: 86 | B89: 董瑞 | C89: 男 | D89: 1994.10 | E89: 硕士 | F89: 沈阳工业大学 | G89: 控制工程 | H89: 2 | I89: 13.96 | J89: 6 | K89: 2 | M89: 4 | N89: 27.96 | R89: 19.97 | U89: 3.49 | V89: 六462 | W89: 计算机二级 | Y89: 校级奖学金2次 | AA89: 基于嵌入式的植保机变流量控制器的设计
A90: 87 | B90: 游东亚 | C90: 男 | D90: 1995.09 | E90: 硕士 | F90: 河南理工大学 | G90: 控制工程 | H90: 2 | I90: 13.96 | J90: 5 | K90: 2 | L90: 2 | M90: 4 | N90: 28.96 | R90: 20.69 | U90: 3.49 | V90: 六442 | W90: 计算机二级 | X90: 竞赛1次 | Y90: 校级奖学金2次 | AA90: 数据驱动控制
A91: 88 | B91: 国剑锋 | C91: 男 | D91: 1996.10 | E91: 硕士 | F91: 东北石油大学 | G91: 控制工程 | H91: 2 | I91: 12.44 | J91: 6 | L91: 4 | M91: 2 | N91: 26.44 | R91: 18.89 | T91: 石油院校 | U91: 3.11 | V91: 六472 | X91: 院级优秀学生干部 | Y91: 校级奖学金 | AA91: 现代信号处理；油气管道泄漏检测
A92: 89 | B92: 陈彪 | C92: 男 | D92: 1997.01 | E92: 硕士 | F92: 武汉工程大学 | G92: 控制工程 | H92: 2 | I92: 13.96 | J92: 6 | M92: 4 | N92: 25.96 | R92: 18.54 | U92: 3.49 | V92: 六459 | Y92: 校级奖学金2次
A93: 90 | B93: 王向阳 | C93: 男 | D93: 1997.10 | E93: 硕士 | F93: 华北理工大学 | G93: 控制工程 | H93: 2 | I93: 13.96 | J93: 5 | N93: 20.96 | R93: 14.97 | U93: 3.49 | V93: 六427 | AA93: 基于数据挖掘的焦炉集气管压力控制
A94: 91 | B94: 刘汉东 | C94: 男 | D94: 1993.08 | E94: 硕士 | F94: 武汉科技大学 | G94: 控制工程 | H94: 2 | I94: 12.52 | J94: 6 | L94: 5 | M94: 4 | N94: 29.52 | R94: 21.09 | U94: 3.13 | V94: 六459 | X94: 优秀研究生 | Y94: 校级奖学金2次 | AA94: 机械臂运动规划
A95: 92 | B95: 李盼盼 | C95: 男 | D95: 1999.08 | E95: 本科 | F95: 中国石油大学(北京) | G95: 机械设计制造及其自动化 | H95: 3 | I95: 12.52 | J95: 2 | L95: 5 | M95: 2 | N95: 24.52 | R95: =N95+Q95 -> 24.52 | T95: 211 | U95: 3.13 | V95: 四425 | X95: 三好学生 | Y95: 校级奖学金
A96: 93 | B96: 张宗虎 | C96: 男 | D96: 1998.06 | E96: 本科 | F96: 山东理工大学 | G96: 机械设计制造及其自动化 | H96: 2 | I96: 20 | J96: 2 | M96: 5 | N96: 29 | R96: 29.00 | U96: 81 | V96: 四433 | Y96: 国家励志奖学金
A97: 94 | B97: 吴凯 | C97: 男 | D97: 1999.02 | E97: 本科 | F97: 沈阳农业大学 | G97: 机械设计制造及其自动化 | H97: 2 | I97: 14.72 | J97: 2 | L97: 5 | M97: 4 | N97: 27.72 | R97: 27.72 | U97: 3.68 | V97: 四435 | X97: 三好学生 | Y97: 校级奖学金2次
A98: 95 | B98: 骆勇全 | C98: 男 | D98: 2000.01 | E98: 本科 | F98: 辽宁石油化工大学 | G98: 机械设计制造及其自动化 | H98: 2 | I98: =U98*4/2 -> 10.44 | J98: 5 | N98: 17.44 | R98: 17.44 | T98: 石油院校 | U98: 5.22 | V98: 六447
A99: 96 | B99: 黄建雨 | C99: 男 | D99: 2000.02 | E99: 本科 | F99: 辽宁石油化工大学 | G99: 机械设计制造及其自动化 | H99: 2 | I99: =U99*4/2 -> 7.48 | J99: 2 | L99: 2 | N99: 13.48 | R99: 13.48 | T99: 石油院校 | U99: 3.74 | V99: 四450 | X99: 竞赛2次
A100: 97 | B100: 张传勖 | C100: 男 | D100: 1997.09 | E100: 本科 | F100: 辽宁工程技术大学 | G100: 机械设计制造及其自动化 | H100: 2 | I100: 9.48 | J100: 2 | L100: 5 | M100: 4 | N100: 22.48 | R100: 22.48 | U100: 2.37 | V100: 四435 | X100: 优秀学生干部 | Y100: 校级奖学金2次
A101: 98 | B101: 王晋 | C101: 男 | D101: 1994.09 | E101: 硕士 | F101: 兰州理工大学 | G101: 机械设计制造及其自动化 | H101: 2 | I101: =U101*4 -> 13.96 | J101: 5 | L101: 2 | M101: 4 | N101: 26.96 | R101: =(N101+Q101)/70*50 -> 19.26 | U101: 3.49 | V101: 六444 | X101: 其他荣誉 | Y101: 校级奖学金2次 | AA101: 旋转机械故障诊断
A102: 99 | B102: 罗锦达 | C102: 男 | D102: 2000.11 | E102: 本科 | F102: 长江大学 | G102: 机械设计制造及其自动化 | H102: 2 | I102: 10.64 | J102: 4 | N102: 16.64 | R102: =N102+Q102 -> 16.64 | T102: 石油院校 | U102: 2.66 | V102: 四494
A103: 100 | B103: 张子旭 | C103: 男 | D103: 2000.12 | E103: 本科 | F103: 长江大学 | G103: 机械设计制造及其自动化 | H103: 2 | I103: 12.6 | J103: 2 | M103: 5 | N103: 21.6 | R103: 21.60 | T103: 石油院校 | U103: 3.15 | V103: 四443 | Y103: 国家励志奖学金
A104: 101 | B104: 陈煜开 | C104: 男 | D104: 2000.08 | E104: 本科 | F104: 沈阳农业大学 | G104: 机械设计制造及其自动化 | H104: 2 | I104: 10.96 | J104: 2 | N104: 14.96 | R104: 14.96 | U104: 2.74 | V104: 四428
A105: 102 | B105: 李士宇 | C105: 男 | D105: 1999.10 | E105: 本科 | F105: 辽宁石油化工大学 | G105: 机械设计制造及其自动化 | H105: 2 | I105: =U105*4/2 -> 9.64 | J105: 2 | L105: 2 | N105: 15.64 | R105: 15.64 | T105: 石油院校 | U105: 4.82 | V105: 四433 | X105: 竞赛2次
A106: 103 | B106: 鲁除生 | C106: 男 | D106: 1998.12 | E106: 本科 | F106: 湖北工业大学 | G106: 机械设计制造及其自动化 | H106: 2 | I106: 12 | J106: 7 | M106: 2 | N106: 23 | R106: 23.00 | U106: 3 | V106: 六485 | Y106: 校级奖学金
A107: 104 | B107: 郭云龙 | C107: 男 | D107: 2000.01 | E107: 本科 | F107: 沈阳农业大学 | G107: 机械设计与制造 | H107: 2 | I107: 10.24 | J107: 2 | N107: 14.24 | R107: 14.24 | U107: 2.56 | V107: 四439
A108: 105 | B108: 余文章 | C108: 男 | D108: 2001.03 | E108: 本科 | F108: 长江大学 | G108: 过程装备与控制工程 | H108: 2 | I108: 10.36 | J108: 4 | N108: 16.36 | R108: 16.36 | T108: 石油院校 | U108: 2.59 | V108: 四484
A109: 106 | B109: 闵小宇 | C109: 男 | D109: 2000.02 | E109: 本科 | F109: 长江大学 | G109: 过程装备与控制工程 | H109: 2 | I109: 10.84 | J109: 2 | L109: 2 | N109: 16.84 | R109: 16.84 | T109: 石油院校 | U109: 2.71 | V109: 四430 | X109: 竞赛1次
A110: 107 | B110: 胡藤也 | C110: 男 | D110: 1999.04 | E110: 本科 | F110: 辽宁工业大学 | G110: 机械电子工程 | H110: 2 | I110: 9.96 | J110: 7 | L110: 2 | M110: 2 | N110: 22.96 | R110: 22.96 | U110: 2.49 | V110: 六485 | X110: 竞赛4次 | Y110: 校级奖学金
A111: 108 | B111: 李涵 | C111: 男 | D111: 1998.10 | E111: 本科 | F111: 西南石油大学 | G111: 机械电子工程 | H111: 2 | I111: 10.96 | J111: 3 | N111: 15.96 | R111: 15.96 | T111: 石油院校 | U111: 2.74 | V111: 四458
A112: 109 | B112: 李森仡 | C112: 男 | D112: 1999.11 | E112: 本科 | F112: 辽宁工业大学 | G112: 机械电子工程 | H112: 2 | I112: 9.28 | J112: 2 | L112: 2 | N112: 15.28 | R112: 15.28 | U112: 2.32 | V112: 四449 | X112: 竞赛1次
A113: 110 | B113: 李楠 | C113: 男 | D113: 1995.09 | E113: 硕士 | F113: 北京化工大学 | G113: 机械工程 | H113: 3 | I113: 13.4 | J113: 5 | L113: 5 | M113: 2 | N113: 28.4 | R113: =(N113+Q113)/70*50 -> 20.29 | T113: 211 | U113: 3.35 | V113: 六449 | X113: 优秀学生干部 | Y113: 校级奖学金 | AA113: 聚合物加工装备设计-SCFNA法连续制备高性能导电复合材料的研究
A114: 111 | B114: 厉业民 | C114: 男 | D114: 1995.12 | E114: 硕士 | F114: 大连工业大学 | G114: 机械工程 | H114: 2 | I114: 11.2 | J114: 7 | L114: 2 | M114: 4 | N114: 26.2 | R114: =(N114+Q114)/70*50 -> 18.71 | U114: 2.8 | V114: 六493 | X114: 竞赛1次 | Y114: 校级奖学金2次 | AA114: 轴承润滑
A115: 112 | B115: 郭新宇 | C115: 男 | D115: 1998.07 | E115: 硕士 | F115: 内蒙古科技大学 | G115: 机械工程 | H115: 2 | I115: 13.96 | J115: 5 | N115: 20.96 | R115: =(N115+Q115)/70*50 -> 14.97 | U115: 3.49 | V115: 六450
A116: 113 | B116: 毛志宏 | C116: 男 | D116: 1996.10 | E116: 硕士 | F116: 东北石油大学 | G116: 机械工程 | H116: 2 | I116: 15.28 | J116: 5 | K116: 2 | L116: 2 | M116: 2 | N116: 28.28 | R116: =(N116+Q116)/70*50 -> 20.20 | T116: 石油院校 | U116: 3.82 | V116: 六430 | W116: 计算机二级 | X116: 竞赛4次 | Y116: 校级奖学金
A117: 114 | B117: 田博禹 | C117: 男 | D117: 2000.04 | E117: 本科 | F117: 中国石油大学(北京) | G117: 机械工程 | H117: 3 | I117: 13.6 | J117: 5 | L117: 2 | M117: 4 | N117: 27.6 | R117: =N117+Q117 -> 27.60 | T117: 211 | U117: 3.4 | V117: 四552 | X117: 竞赛3次 | Y117: 校级奖学金2次
A118: 115 | B118: 贺子煜 | C118: 男 | D118: 1999.04 | E118: 本科 | F118: 西南石油大学 | G118: 机械工程 | H118: 2 | I118: 10.4 | J118: 2 | N118: 14.4 | R118: =N118+Q118 -> 14.40 | T118: 石油院校 | U118: 2.6 | V118: 四446
A119: 116 | B119: 贺齐齐 | C119: 男 | D119: 1995.04 | E119: 硕士 | F119: 西安石油大学 | G119: 机械工程 | H119: 2 | I119: 13.96 | J119: 5 | N119: 20.96 | R119: =(N119+Q119)/70*50 -> 14.97 | T119: 石油院校 | U119: 3.49 | V119: 六439
A120: 117 | B120: 刘凤聪 | C120: 男 | D120: 1996.12 | E120: 硕士 | F120: 黑龙江科技大学 | G120: 机械工程 | H120: 2 | I120: 13.68 | J120: 5 | L120: 2 | M120: 5 | N120: 27.68 | R120: 19.77 | U120: 3.42 | V120: 六429 | X120: 竞赛4次 | Y120: 校级奖学金4次 | AA120: 激光加工
A121: 118 | B121: 孔祥虎 | C121: 男 | D121: 1996.12 | E121: 硕士 | F121: 东北大学 | G121: 机械工程 | H121: 3 | I121: 14.12 | J121: 6 | L121: 2 | M121: 4 | N121: 29.12 | R121: 20.80 | T121: 985 | U121: 3.53 | V121: 六467 | X121: 其他荣誉 | Y121: 校级奖学金2次 | AA121: 研究方向：流体仿真，管道泄漏检测，结构设计。课题：烧结机本体泄漏的压力和声波信号检测与实验研究
A122: 119 | B122: 杨金洋 | C122: 男 | D122: 1996.06 | E122: 硕士 | F122: 沈阳航空航天大学 | G122: 机械工程 | H122: 2 | I122: 13.96 | J122: 5 | M122: 2 | N122: 22.96 | R122: 16.40 | U122: 3.49 | V122: 六446 | Y122: 校级奖学金
A123: 120 | B123: 王世新 | C123: 男 | D123: 2000.01 | E123: 本科 | F123: 燕山大学 | G123: 车辆工程 | H123: 2 | I123: 8.8 | J123: 2 | N123: 12.8 | R123: =N123+Q123 -> 12.80 | U123: 2.2 | V123: 四446
A124: 121 | B124: 魏雨童 | C124: 男 | D124: 2000.06 | E124: 本科 | F124: 辽宁工程技术大学 | G124: 车辆工程 | H124: 2 | I124: 8.6 | J124: 2 | L124: 4 | N124: 16.6 | R124: 16.60 | U124: 2.15 | V124: 四425 | X124: 院级优秀个人
A125: 122 | B125: 范志博 | C125: 男 | D125: 1999.08 | E125: 本科 | F125: 辽宁石油化工大学 | G125: 测控技术与仪器 | H125: 2 | I125: =U125*4/2 -> 9.14 | J125: 2 | K125: 2 | L125: 5 | M125: 5 | N125: 25.14 | R125: 25.14 | T125: 石油院校 | U125: 4.57 | V125: 四427 | W125: 计算机二级 | X125: 优秀学生干部 | Y125: 国家励志奖学金
A126: 123 | B126: 张帅印 | C126: 男 | D126: 2000.01 | E126: 本科 | F126: 辽宁石油化工大学 | G126: 测控技术与仪器 | H126: 2 | I126: 9.4 | J126: 3 | L126: 2 | N126: 16.4 | R126: 16.40 | T126: 石油院校 | U126: 4.7 | V126: 四475 | X126: 竞赛2次
A127: 124 | B127: 王泳栋 | C127: 男 | D127: 1999.07 | E127: 本科 | F127: 重庆邮电大学 | G127: 测控技术与仪器 | H127: 2 | I127: 10.6 | J127: 2 | L127: 2 | N127: 16.6 | R127: 16.60 | U127: 2.65 | V127: 四428 | X127: 竞赛2次
A128: 125 | B128: 赵风和 | C128: 男 | D128: 2000.02 | E128: 本科 | F128: 中国石油大学(北京) | G128: 测控技术与仪器 | H128: 3 | I128: 12.8 | J128: 6 | M128: 4 | N128: 25.8 | R128: 25.80 | T128: 211 | U128: 3.2 | V128: 六468 | Y128: 校级奖学金2次
A129: 126 | B129: 赵金强 | C129: 男 | D129: 1998.03 | E129: 本科 | F129: 辽宁石油化工大学 | G129: 测控技术与仪器 | H129: 2 | I129: 8.5 | J129: 2 | L129: 2 | N129: 14.5 | R129: 14.50 | T129: 石油院校 | U129: 4.25 | V129: 四438 | X129: 竞赛1次
A130: 127 | B130: 吕潇然 | C130: 男 | D130: 2000.03 | E130: 本科 | F130: 西安石油大学 | G130: 测控技术与仪器 | H130: 2 | I130: 10.96 | J130: 2 | L130: 2 | M130: 2 | N130: 18.96 | R130: 18.96 | T130: 石油院校 | U130: 2.74 | V130: 四441 | X130: 竞赛2次 | Y130: 校级奖学金
A131: 128 | B131: 陆珺尧 | C131: 男 | D131: 1999.11 | E131: 本科 | F131: 长江大学 | G131: 电子信息工程 | H131: 2 | I131: 10.8 | J131: 2 | N131: 14.8 | R131: 14.80 | T131: 石油院校 | U131: 2.7 | V131: 四438
A132: 129 | B132: 柴寿仓 | C132: 男 | D132: 2000.04 | E132: 本科 | F132: 东北石油大学 | G132: 电子信息工程 | H132: 2 | I132: 10.28 | J132: 2 | N132: 14.28 | R132: 14.28 | T132: 石油院校 | U132: 2.57 | V132: 四441
A133: 130 | B133: 胡佳豪 | C133: 男 | D133: 1999.07 | E133: 本科 | F133: 长江大学 | G133: 电子信息工程 | H133: 2 | I133: =U133*4 -> 12.08 | J133: 3 | N133: =SUM(H133:M133) -> 17.08 | R133: 17.08 | T133: 石油院校 | U133: 3.02 | V133: 四458
A134: 131 | B134: 李俊龙 | C134: 男 | D134: 2000.08 | E134: 本科 | F134: 长江大学 | G134: 电子信息工程 | H134: 2 | I134: 8.44 | J134: 4 | N134: 14.44 | R134: 14.44 | T134: 石油院校 | U134: 2.11 | V134: 四476
A135: 132 | B135: 孟明浩 | C135: 男 | D135: 2000.05 | E135: 本科 | F135: 大连外国语大学 | G135: 计算机科学与技术 | H135: 2 | I135: 10.96 | J135: 5 | N135: 17.96 | R135: 17.96 | U135: 2.74 | V135: 六425
A136: 133 | B136: 赵琳琳 | C136: 男 | D136: 1997.09 | E136: 硕士 | F136: 东北大学 | G136: 计算机科学与技术 | H136: 3 | I136: 15.64 | J136: 5 | L136: 5 | M136: 5 | N136: 33.64 | R136: =(N136+Q136)/70*50 -> 24.03 | T136: 985 | U136: 3.91 | V136: 六435 | X136: 三好学生 | Y136: 国家励志奖学金 | AA136: 基于位置社交网络的图嵌入
A137: 134 | B137: 陈佳铭 | C137: 男 | D137: 1998.06 | E137: 本科 | F137: 辽宁石油化工大学 | G137: 计算机科学与技术 | H137: 2 | I137: =U137*4/2 -> 11.46 | J137: 3 | L137: 2 | M137: 2 | N137: 20.46 | R137: =N137+Q137 -> 20.46 | T137: 石油院校 | U137: 5.73 | V137: 四460 | X137: 竞赛1次 | Y137: 校级奖学金
A138: 135 | B138: 程歆婷 | C138: 女 | D138: 1999.05 | E138: 本科 | F138: 沈阳师范大学 | G138: 计算机科学与技术 | H138: 2 | I138: 8.36 | J138: 2 | L138: 2 | N138: 14.36 | R138: 14.36 | U138: 2.09 | V138: 四425 | X138: 竞赛8个
A139: 136 | B139: 李勇峰 | C139: 男 | D139: 1993.09 | E139: 硕士 | F139: 内蒙古大学 | G139: 会计学 | H139: 3 | I139: 13.96 | J139: 6 | L139: 5 | M139: 2 | N139: 29.96 | R139: 21.40 | T139: 211 | U139: 3.49 | V139: 六457 | X139: 优秀学生干部 | Y139: 校级奖学金
A140: 137 | B140: 陈若彤 | C140: 男 | D140: 1998.11 | E140: 本科 | F140: 宝鸡文理学院 | G140: 会计学 | H140: 2 | I140: 10.96 | J140: 2 | L140: 5 | M140: 5 | N140: 24.96 | R140: 24.96 | U140: 2.74 | V140: 四440 | X140: 三好学生 | Y140: 国家励志奖学金
A141: 138 | B141: 高霖 | C141: 男 | D141: 1997.07 | E141: 硕士 | F141: 昆士兰大学 | G141: 会计学 | H141: 2 | I141: =U141*4/2 -> 10.26 | J141: 6 | L141: 2 | N141: 20.26 | R141: 14.47 | U141: 5.13 | V141: 雅思7.5 | X141: 竞赛3次 | AA141: 财务会计、审计、公司会计、管理会计和控制
A142: 139 | B142: 李柏芳 | C142: 女 | D142: 1997.12 | E142: 本科 | F142: 沈阳工学院 | G142: 会计学 | H142: 2 | I142: 12 | J142: 2 | M142: 2 | N142: 18 | R142: =N142+Q142 -> 18.00 | U142: 3 | V142: 四429 | Y142: 校级奖学金
A143: 140 | B143: 张佳成 | C143: 男 | D143: 1999.07 | E143: 本科 | F143: 天津财经大学 | G143: 会计学 | H143: 2 | I143: 10.96 | J143: 5 | N143: 17.96 | R143: 17.96 | U143: 2.74 | V143: 六442
A144: 141 | B144: 任江鹏 | C144: 男 | D144: 1997.01 | E144: 硕士 | F144: 河北工业大学 | G144: 会计学 | H144: 3 | I144: 20 | J144: 5 | L144: 5 | M144: 2 | N144: 35 | R144: =(N144+Q144)/70*50 -> 25.00 | T144: 211 | U144: 87.48 | V144: 六433 | X144: 优秀学生干部 | Y144: 校级奖学金 | AA144: 财务与会计
A145: 142 | B145: 欧阳连战 | C145: 男 | D145: 2000.09 | E145: 本科 | F145: 湖南财政经济学院 | G145: 会计学 | H145: 2 | I145: 13.08 | J145: 2 | L145: 2 | N145: 19.08 | R145: 19.08 | U145: 3.27 | V145: 四429 | X145: 竞赛2次
A146: 143 | B146: 王梓钰 | C146: 男 | D146: 1994.04 | E146: 硕士 | F146: 宁夏大学 | G146: 会计学 | H146: 3 | I146: 13.2 | J146: 6 | K146: 2 | L146: 5 | M146: 4 | N146: 33.2 | R146: 23.71 | T146: 211 | U146: 3.3 | V146: 六460 | W146: 计算机二级 | X146: 优秀学生干部 | Y146: 校级奖学金2次 | AA146: 研究方向：现金流量视角下BC公司财务风险评价和控制研究
A147: 144 | B147: 杨若璇 | C147: 男 | D147: 1998.08 | E147: 硕士 | F147: 西南财经大学 | G147: 会计学 | H147: 3 | I147: 14.88 | J147: 8 | K147: 2 | L147: 5 | M147: 4 | N147: 36.88 | R147: 26.34 | T147: 211 | U147: 3.72 | V147: 六542 | W147: 计算机二级 | X147: 校级优秀毕业论文 | Y147: 校级奖学金2次
A148: 145 | B148: 王亭宇 | C148: 女 | D148: 1999.10 | E148: 本科 | F148: 辽宁对外经贸学院 | G148: 会计学 | H148: 2 | I148: 12.36 | J148: 2 | N148: 16.36 | R148: =N148+Q148 -> 16.36 | U148: 3.09 | V148: 四431
A149: 146 | B149: 熊晓琳 | C149: 女 | D149: 2001.04 | E149: 本科 | F149: 郑州大学 | G149: 财务管理 | H149: 3 | I149: 9.72 | J149: 3 | L149: 4 | N149: 19.72 | R149: =N149+Q149 -> 19.72 | T149: 211 | U149: 2.43 | V149: 四466 | X149: 院级优秀学生干部
A150: 147 | B150: 何汶松 | C150: 男 | D150: 1997.11 | E150: 硕士 | F150: 四川农业大学 | G150: 金融学 | H150: 3 | I150: 14.04 | J150: 7 | L150: 2 | M150: 4 | N150: 30.04 | R150: =(N150+Q150)/70*50 -> 21.46 | T150: 211 | U150: 3.51 | V150: 六487 | X150: 其他荣誉 | Y150: 省部级奖学金 | AA150: 农业天气风险测度与普惠式天气金融发展路径研究、教育部国别与区域研究项目：德国金融政策研究
A151: 148 | B151: 盖哲 | C151: 男 | D151: 1998.01 | E151: 硕士 | F151: 山东财经大学 | G151: 金融学 | H151: 2 | I151: 13.96 | J151: 8 | K151: 2 | L151: 5 | M151: 5 | N151: =SUM(H151:M151) -> 35.96 | R151: 25.69 | U151: 3.49 | V151: 六503 | W151: 计算机三级 | X151: 优秀毕业生 | Y151: 校级奖学金3次 | AA151: 证券投资与资本市场
A152: 149 | B152: 郑有祺 | C152: 女 | D152: 1997.10 | E152: 硕士 | F152: 悉尼大学 | G152: 金融学 | H152: 2 | I152: 13.96 | J152: 8 | K152: 2 | N152: 25.96 | R152: 18.54 | U152: 3.49 | V152: 六539 | W152: 计算机二级
A153: 150 | B153: 李健 | C153: 男 | D153: 1995.08 | E153: 硕士 | F153: 吉林财经大学 | G153: 法律 | H153: 2 | I153: 13.96 | J153: 7 | L153: 2 | M153: 2 | N153: 26.96 | R153: 19.26 | U153: 3.49 | V153: 六494 | X153: 竞赛1次 | Y153: 校级奖学金 | AA153: 环境公益诉讼
A154: 151 | B154: 扈泽宇 | C154: 男 | D154: 1994.07 | E154: 硕士 | F154: 悉尼大学 | G154: 法律 | H154: 2 | I154: 13.96 | J154: 7 | N154: 22.96 | R154: 16.40 | U154: 3.49 | V154: 雅思8 | AA154: 法治的意义与价值
A155: 152 | B155: 苏士广 | C155: 男 | D155: 1998.08 | E155: 硕士 | F155: 西南政法大学 | G155: 法律 | H155: 2 | I155: 13.96 | J155: 7 | N155: 22.96 | R155: 16.40 | U155: 3.49 | V155: 六485
A156: 153 | B156: 赵轩 | C156: 男 | D156: 1996.08 | E156: 硕士 | F156: 湘潭大学 | G156: 法律 | H156: 2 | I156: 13.96 | J156: 5 | N156: 20.96 | R156: 14.97 | U156: 3.49 | V156: 六437 | AA156: 党内法规学、党的领导
A157: 154 | B157: 李斌 | C157: 男 | D157: 1997.09 | E157: 本科 | F157: 西安石油大学 | G157: 国际经济与贸易 | H157: 2 | I157: 11.6 | J157: 2 | M157: 2 | N157: 17.6 | R157: =N157+Q157 -> 17.60 | T157: 石油院校 | U157: 2.9 | V157: 四447 | Y157: 校级奖学金
A158: 155 | B158: 谢茜 | C158: 男 | D158: 1997.08 | E158: 本科 | F158: 重庆科技学院 | G158: 国际经济与贸易 | H158: 2 | I158: 14.72 | J158: 4 | L158: 5 | M158: 5 | N158: 30.72 | R158: 30.72 | U158: 3.68 | V158: 四482 | X158: 优秀学生干部 | Y158: 国家励志奖学金
A159: 156 | B159: 张禄田 | C159: 男 | D159: 1997.09 | E159: 本科 | F159: 成都大学 | G159: 国际经济与贸易 | H159: 2 | I159: 10.96 | J159: 2 | N159: =SUM(H159:M159) -> 14.96 | R159: 14.96 | U159: 2.74 | V159: 四444
A160: 157 | B160: 乔梁 | C160: 男 | D160: 1999.06 | E160: 本科 | F160: 西北民族大学 | G160: 国际经济与贸易 | H160: 2 | I160: 10.96 | J160: 2 | N160: 14.96 | R160: 14.96 | U160: 2.74 | V160: 四438
A161: 158 | B161: 田晓东 | C161: 男 | D161: 2000.10 | E161: 本科 | F161: 沈阳工业大学 | G161: 油气储运工程 | H161: 2 | I161: 12.6 | J161: 2 | L161: 5 | M161: 4 | N161: 25.6 | R161: 25.60 | U161: 3.15 | V161: 四432 | X161: 优秀学生干部 | Y161: 校级奖学金2次
A162: 159 | B162: 于靖人 | C162: 男 | D162: 1999.06 | E162: 本科 | F162: 沈阳工业大学 | G162: 油气储运工程 | H162: 2 | I162: 8.2 | J162: 2 | N162: 12.2 | R162: 12.20 | U162: 2.05 | V162: 四450
A163: 160 | B163: 蔡阳阳 | C163: 男 | D163: 1998.05 | E163: 本科 | F163: 西安石油大学 | G163: 油气储运工程 | H163: 2 | I163: 9.28 | J163: 3 | K163: 2 | L163: 2 | N163: 18.28 | R163: 18.28 | T163: 石油院校 | U163: 2.32 | V163: 四461 | W163: 计算机二级 | X163: 竞赛1次
A164: 161 | B164: 吴超 | C164: 男 | D164: 1999.08 | E164: 本科 | F164: 中国石油大学（北京）克拉玛依校区 | G164: 油气储运工程 | H164: 2 | I164: 8.56 | J164: 2 | N164: 12.56 | R164: 12.56 | T164: 石油院校 | U164: 2.14 | V164: 四449
A165: 162 | B165: 范硕 | C165: 男 | D165: 2000.03 | E165: 本科 | F165: 辽宁石油化工大学 | G165: 油气储运工程 | H165: 2 | I165: =U165*4/2 -> 7.7 | J165: 2 | N165: 11.7 | R165: 11.70 | T165: 石油院校 | U165: 3.85 | V165: 四443
A166: 163 | B166: 杨策 | C166: 男 | D166: 1996.01 | E166: 硕士 | F166: 东北石油大学 | G166: 建筑与土木工程 | H166: 2 | I166: =U166*4 -> 13.96 | J166: 5 | L166: 5 | M166: 5 | N166: 30.96 | R166: =(N166+Q166)/70*50 -> 22.11 | T166: 石油院校 | U166: 3.49 | V166: 六431 | X166: 三好学生 | Y166: 校级奖学金3次 | AA166: 混凝土材料力学行为与损伤失效机理
A167: 说明：1.若研究生和本科生指标不分开，共同排序时，研究生的总得分的计算方式为：（基础分合计+科研分合计）/70*50 2.面试基础评分表留存一年。
A168: 评委（签字）：

Sheet Sheet1 (hidden)
B1: 姓名 | C1: 性别 | D1: 出生年月 | E1: 学历 | F1: 学历 | G1: 毕业院校 | H1: 所学专业 | I1: 毕业院校 | J1: 学分绩点 | K1: 英语成绩 | L1: 计算机证书 | M1: 获得荣誉情况 | N1: 获奖学金情况 | O1: 发表论文情况 | P1: 研究方向情况
A2: 1 | B2: 刘洋 | C2: 男 | D2: 2001.03 | E2: 本科 | F2: 本科 | G2: 中国石油大学(华东) | H2: 石油工程 | I2: 石油院校 | J2: 2.74 | K2: 四445
A3: 2 | B3: 刘青峰 | C3: 男 | D3: 1999.07 | E3: 本科 | F3: 本科 | G3: 长江大学 | H3: 石油工程 | I3: 石油院校 | J3: 2.1 | K3: 四474
A4: 3 | B4: 阮视野 | C4: 男 | D4: 2000.10 | E4: 本科 | F4: 本科 | G4: 西安石油大学 | H4: 石油工程 | I4: 石油院校 | J4: 2.32 | K4: 四433
A5: 4 | B5: 郭佳骏 | C5: 男 | D5: 1997.10 | E5: 本科 | F5: 本科 | G5: 辽宁石油化工大学 | H5: 石油工程 | I5: 石油院校 | J5: 5.05 | K5: 四504
A6: 5 | B6: 焦李科 | C6: 男 | D6: 2000.05 | E6: 本科 | F6: 本科 | G6: 西安石油大学 | H6: 石油工程 | I6: 石油院校 | J6: 2.58 | K6: 六450 | M6: 竞赛4次
A7: 6 | B7: 王春洋 | C7: 男 | D7: 1999.06 | E7: 本科 | F7: 本科 | G7: 西南石油大学 | H7: 石油工程 | I7: 石油院校 | J7: 2.51 | K7: 四461
A8: 7 | B8: 卢琪 | C8: 男 | D8: 1999.01 | E8: 本科 | F8: 本科 | G8: 中国石油大学(华东) | H8: 石油工程 | I8: 石油院校 | J8: 2.03 | K8: 四428 | M8: 竞赛2次
A9: 8 | B9: 王威 | C9: 男 | D9: 1998.12 | E9: 本科 | F9: 本科 | G9: 长江大学 | H9: 石油工程 | I9: 石油院校 | J9: 2.5 | K9: 四456
A10: 9 | B10: 张玉龙 | C10: 男 | D10: 1999.08 | E10: 本科 | F10: 本科 | G10: 西南石油大学 | H10: 石油工程 | I10: 石油院校 | J10: 2.68 | K10: 六432
A11: 10 | B11: 吕天琛 | C11: 男 | D11: 1999.12 | E11: 本科 | F11: 本科 | G11: 辽宁石油化工大学 | H11: 石油工程 | I11: 石油院校 | J11: 4.7 | K11: 四442
A12: 11 | B12: 冉伟杰 | C12: 男 | D12: 2000.04 | E12: 本科 | F12: 本科 | G12: 长江大学 | H12: 石油工程 | I12: 石油院校 | J12: 3 | K12: 四435
A13: 12 | B13: 翁梦洋 | C13: 男 | D13: 2000.01 | E13: 本科 | F13: 本科 | G13: 长江大学 | H13: 石油工程 | I13: 石油院校 | J13: 1.77 | K13: 四495
A14: 13 | B14: 张锋 | C14: 男 | D14: 1999.04 | E14: 本科 | F14: 本科 | G14: 兰州城市学院 | H14: 石油工程 | J14: 3.2 | K14: 四490
A15: 14 | B15: 马晨 | C15: 男 | D15: 1999.05 | E15: 本科 | F15: 本科 | G15: 中国石油大学(华东) | H15: 石油工程 | I15: 石油院校 | J15: 74.48 | K15: 四465
A16: 15 | B16: 单星凯 | C16: 男 | D16: 2000.04 | E16: 本科 | F16: 本科 | G16: 中国石油大学(华东) | H16: 石油工程 | I16: 石油院校 | J16: 74.05 | K16: 四441 | M16: 竞赛1次 | N16: 校级奖学金3次
A17: 16 | B17: 张李明 | C17: 男 | D17: 2000.04 | E17: 本科 | F17: 本科 | G17: 长江大学 | H17: 石油工程 | I17: 石油院校 | J17: 2.05 | K17: 四441
A18: 17 | B18: 严瑶 | C18: 男 | D18: 2000.02 | E18: 本科 | F18: 本科 | G18: 西南石油大学 | H18: 石油工程 | I18: 石油院校 | J18: 2.87 | K18: 四448 | M18: 竞赛3次
A19: 18 | B19: 蔡晓曦 | C19: 男 | D19: 2000.09 | E19: 本科 | F19: 本科 | G19: 长江大学 | H19: 石油工程 | I19: 石油院校 | J19: 2 | K19: 四425
A20: 19 | B20: 盛常旺 | C20: 男 | D20: 1999.10 | E20: 本科 | F20: 本科 | G20: 常州大学 | H20: 石油工程 | J20: 3.6 | K20: 六446
A21: 20 | B21: 葛明轩 | C21: 男 | D21: 2000.08 | E21: 本科 | F21: 本科 | G21: 西安石油大学 | H21: 石油工程 | I21: 石油院校 | J21: 2.45 | K21: 四471
A22: 21 | B22: 高松林 | C22: 男 | D22: 1997.01 | E22: 硕士 | F22: 硕士 | G22: 中国石油大学(北京) | H22: 海洋油气工程 | I22: 211 | J22: 2.98 | K22: 六442 | M22: 竞赛1次 | N22: 校级奖学金 | P22: 桩靴基础
A23: 22 | B23: 石起朋 | C23: 男 | D23: 1999.12 | E23: 硕士 | F23: 硕士 | G23: 远东联邦大学 | H23: 石油与天然气工程 | J23: 3.49 | M23: 优秀学生干部 | N23: 校级奖学金 | P23: 钻井废液的无害化处理
A24: 23 | B24: 褚吉超 | C24: 男 | D24: 1995.09 | E24: 硕士 | F24: 硕士 | G24: 远东联邦大学 | H24: 石油与天然气工程 | J24: 3.49 | P24: 改善集油和处理系统
A25: 24 | B25: 李唯熙 | C25: 男 | D25: 2000.04 | E25: 本科 | F25: 本科 | G25: 辽宁石油化工大学 | H25: 安全工程 | I25: 石油院校 | J25: 3.55 | K25: 四449 | M25: 竞赛1次
A26: 25 | B26: 谭玉灿 | C26: 男 | D26: 1999.09 | E26: 本科 | F26: 本科 | G26: 辽宁石油化工大学 | H26: 安全工程 | I26: 石油院校 | J26: 4.79 | K26: 四426
A27: 26 | B27: 龙阳 | C27: 男 | D27: 1999.11 | E27: 本科 | F27: 本科 | G27: 成都理工大学 | H27: 资源勘查工程 | J27: 2.1 | K27: 四464
A28: 27 | B28: 马腾鑫 | C28: 男 | D28: 2000.01 | E28: 本科 | F28: 本科 | G28: 辽宁工程技术大学 | H28: 资源勘查工程 | J28: 2.87 | K28: 四432 | O28: 发表论文Fuzzy neural network for studying coupling between drilling parameters在ACS（sci）杂志 发表人工智能类文章：基于改进Faster R-CNN的钢材表面缺陷检测方法（吉大学报）
A29: 28 | B29: 毕恒威 | C29: 男 | D29: 2000.09 | E29: 本科 | F29: 本科 | G29: 长江大学 | H29: 地质学 | I29: 石油院校 | J29: 2.39 | K29: 四507
A30: 29 | B30: 张孝合 | C30: 男 | D30: 2000.01 | E30: 本科 | F30: 本科 | G30: 成都理工大学 | H30: 地质学 | J30: 2.99 | K30: 四467 | M30: 竞赛1次
A31: 30 | B31: 蒙顺生 | C31: 男 | D31: 1999.08 | E31: 本科 | F31: 本科 | G31: 长江大学 | H31: 地质学 | I31: 石油院校 | J31: 2.49 | K31: 四442
A32: 31 | B32: 刘康 | C32: 男 | D32: 1995.12 | E32: 硕士 | F32: 硕士 | G32: 中国地质大学(北京) | H32: 地质工程 | J32: 3.49 | K32: 六445 | M32: 优秀毕业生 | N32: 国家励志奖学金 | P32: 地热井流体
A33: 32 | B33: 何涛 | C33: 男 | D33: 1997.08 | E33: 硕士 | F33: 硕士 | G33: 中国地质大学(武汉) | H33: 地质工程 | J33: 3.44 | K33: 六428 | N33: 校级奖学金2次 | P33: 遥感影像目标检测
A34: 33 | B34: 徐猛 | C34: 男 | D34: 1997.05 | E34: 硕士 | F34: 硕士 | G34: 中国地质大学(武汉) | H34: 地质工程 | J34: 3.49 | K34: 六427 | P34: 天然气水合物勘探与开发
A35: 34 | B35: 乐天呈 | C35: 男 | D35: 1996.11 | E35: 硕士 | F35: 硕士 | G35: 南京大学 | H35: 地质工程 | I35: 985 | J35: 3.49 | K35: 六589 | M35: 竞赛1次 | N35: 校级奖学金2次
A36: 35 | B36: 李飞龙 | C36: 男 | D36: 1995.03 | E36: 硕士 | F36: 硕士 | G36: 长江大学 | H36: 地质工程 | I36: 石油院校 | J36: 3.2 | K36: 雅思6.5 | M36: 竞赛2次 | P36: 沉积学，辽河盆地驾掌寺-小龙湾东营组沉积体系分析
A37: 36 | B37: 杨硕 | C37: 男 | D37: 1996.08 | E37: 硕士 | F37: 硕士 | G37: 南京大学 | H37: 地质资源与地质工程 | I37: 985 | J37: 3.49 | K37: 六484 | L37: 计算机二级 | N37: 校级奖学金2次 | P37: 岩石力学 微波照射下岩石温度测定及温度应力弱化机制研究
A38: 37 | B38: 陈雷 | C38: 男 | D38: 1995.08 | E38: 硕士 | F38: 硕士 | G38: 中国地质科学院 | H38: 构造地质学 | J38: 3.82 | K38: 六460 | M38: 竞赛2次 | N38: 国家励志奖学金 | P38: 通过沉积序列观测、薄片观察统计、重砂单矿物分析、碎屑锆石以及地球化学分析等方法系统恢复沉积盆地原型
A39: 38 | B39: 蔡虎成 | C39: 男 | D39: 1990.12 | E39: 硕士 | F39: 硕士 | G39: 中国地质大学(北京) | H39: 构造地质学 | J39: 3.3 | K39: 六436 | N39: 校级奖学金 | P39: 区域地质调查
A40: 39 | B40: 邓哲 | C40: 男 | D40: 2000.04 | E40: 本科 | F40: 本科 | G40: 长江大学 | H40: 应用化学 | I40: 石油院校 | J40: 2.81 | K40: 四444
A41: 40 | B41: 朱卫伟 | C41: 男 | D41: 2000.04 | E41: 本科 | F41: 本科 | G41: 西南石油大学 | H41: 应用化学 | I41: 石油院校 | J41: 2.96 | K41: 四431 | M41: 竞赛1次
A42: 41 | B42: 夏明 | C42: 男 | D42: 2000.10 | E42: 本科 | F42: 本科 | G42: 长江大学 | H42: 应用化学 | I42: 石油院校 | J42: 3.34 | K42: 四503
A43: 42 | B43: 向本林 | C43: 男 | D43: 1999.10 | E43: 本科 | F43: 本科 | G43: 长江大学 | H43: 应用化学 | I43: 石油院校 | J43: 3.19 | K43: 四484 | M43: 优秀学生干部
A44: 43 | B44: 王石林 | C44: 男 | D44: 1996.12 | E44: 硕士 | F44: 硕士 | G44: 华东理工大学 | H44: 应用化学 | I44: 211 | J44: 3.87 | K44: 六558 | M44: 三好学生 | N44: 校级奖学金7次 | P44: 等离子光催化剂设计、制备及研发
A45: 44 | B45: 何志顺 | C45: 男 | D45: 1998.06 | E45: 本科 | F45: 本科 | G45: 长江大学 | H45: 应用化学 | I45: 石油院校 | J45: 2.74 | K45: 四429
A46: 45 | B46: 但建忱 | C46: 男 | D46: 2000.05 | E46: 本科 | F46: 本科 | G46: 西南石油大学 | H46: 应用化学 | I46: 石油院校 | J46: 2.71 | K46: 四474
A47: 46 | B47: 赵云昊 | C47: 男 | D47: 2000.07 | E47: 本科 | F47: 本科 | G47: 辽宁石油化工大学 | H47: 应用化学 | I47: 石油院校 | J47: 4.8 | K47: 四446
A48: 47 | B48: 覃瑶 | C48: 男 | D48: 2000.01 | E48: 本科 | F48: 本科 | G48: 长江大学 | H48: 应用化学 | I48: 石油院校 | J48: 2.88 | K48: 四433
A49: 48 | B49: 邹贤忠 | C49: 男 | D49: 1998.07 | E49: 本科 | F49: 本科 | G49: 长江大学 | H49: 应用化学 | I49: 石油院校 | J49: 3.36 | K49: 日四99 | M49: 优秀学生干部 | N49: 校级奖学金
A50: 49 | B50: 何润 | C50: 男 | D50: 2000.05 | E50: 本科 | F50: 本科 | G50: 东北石油大学 | H50: 应用化学 | I50: 石油院校 | J50: 2.68 | K50: 四433
A51: 50 | B51: 李想 | C51: 男 | D51: 1996.05 | E51: 硕士 | F51: 硕士 | G51: 兰州交通大学 | H51: 化学 | J51: 3.24 | K51: 六518
A52: 51 | B52: 李佳骏 | C52: 男 | D52: 1998.11 | E52: 本科 | F52: 本科 | G52: 辽宁石油化工大学 | H52: 化学 | I52: 石油院校 | J52: 4.15 | K52: 四465
A53: 52 | B53: 巴文轩 | C53: 男 | D53: 1996.11 | E53: 硕士 | F53: 硕士 | G53: 长江大学 | H53: 化学工程 | I53: 石油院校 | J53: 3.57 | K53: 六434 | P53: 凝胶堵漏
A54: 53 | B54: 张硕硕 | C54: 男 | D54: 1995.10 | E54: 硕士 | F54: 硕士 | G54: 西安石油大学 | H54: 化学工程 | I54: 石油院校 | J54: 3.03 | K54: 六437 | P54: 油田用酸化缓蚀剂及钻井堵漏剂等
A55: 54 | B55: 罗云翔 | C55: 男 | D55: 1997.09 | E55: 硕士 | F55: 硕士 | G55: 西南石油大学 | H55: 化学工程与技术 | I55: 石油院校 | J55: 3.47 | K55: 六434 | L55: 计算机二级证书.jpg | P55: 钻井液处理剂设计与合成、钻井液体系设计、聚合物处理剂水溶液高温降解机理研究。
A56: 55 | B56: 高嵩 | C56: 男 | D56: 1999.12 | E56: 本科 | F56: 本科 | G56: 辽宁石油化工大学 | H56: 化学工程与工艺 | I56: 石油院校 | J56: 5.1 | K56: 四434
A57: 56 | B57: 杨正康 | C57: 男 | D57: 1996.08 | E57: 硕士 | F57: 硕士 | G57: 中国石油大学(北京) | H57: 化学工程与工艺 | I57: 211 | J57: 3.07 | K57: 六428 | P57: 工业催化剂的研发和改良
A58: 57 | B58: 曾为 | C58: 男 | D58: 1998.09 | E58: 本科 | F58: 本科 | G58: 营口理工学院 | H58: 化学工程与工艺 | J58: 2.3 | K58: 四477
A59: 58 | B59: 刘颢诚 | C59: 男 | D59: 1999.06 | E59: 本科 | F59: 本科 | G59: 大连理工大学（盘锦校区） | H59: 化学工程与工业生物工程 | I59: 211 | J59: 2.31 | K59: 四487 | M59: 竞赛2次
A60: 59 | B60: 温斌 | C60: 男 | D60: 1997.01 | E60: 本科 | F60: 本科 | G60: 南昌工学院 | H60: 电气工程 | J60: 3.59 | K60: 四433
A61: 60 | B61: 董楚杰 | C61: 男 | D61: 1998.11 | E61: 硕士 | F61: 硕士 | G61: 武汉科技大学 | H61: 电气工程 | J61: 3.9 | K61: 六492 | M61: 竞赛4个 | P61: 新型逆变器控制
A62: 61 | B62: 顾凯航 | C62: 男 | D62: 2000.08 | E62: 本科 | F62: 本科 | G62: 辽宁石油化工大学 | H62: 电气工程及其自动化 | I62: 石油院校 | J62: 6.87 | K62: 四429 | M62: 竞赛7个 | N62: 校级奖学金2次
A63: 62 | B63: 罗志航 | C63: 男 | D63: 2000.10 | E63: 本科 | F63: 本科 | G63: 长江大学 | H63: 电气工程及其自动化 | I63: 石油院校 | J63: 1.96 | K63: 四438
A64: 63 | B64: 袁钲淼 | C64: 男 | D64: 2000.05 | E64: 本科 | F64: 本科 | G64: 陕西科技大学 | H64: 电气工程及其自动化 | J64: 3.4 | K64: 六459 | M64: 竞赛1次 | N64: 校级奖学金2次
A65: 64 | B65: 吕哲 | C65: 男 | D65: 2000.05 | E65: 本科 | F65: 本科 | G65: 辽宁石油化工大学 | H65: 电气工程及其自动化 | I65: 石油院校 | J65: 5.02 | K65: 四499
A66: 65 | B66: 王孟阔 | C66: 男 | D66: 2000.07 | E66: 本科 | F66: 本科 | G66: 辽宁石油化工大学 | H66: 电气工程及其自动化 | I66: 石油院校 | J66: 4.8 | K66: 四428
A67: 66 | B67: 李佳伟 | C67: 男 | D67: 2000.08 | E67: 本科 | F67: 本科 | G67: 长江大学 | H67: 电气工程及其自动化 | I67: 石油院校 | J67: 2.93 | K67: 四451
A68: 67 | B68: 吴朋 | C68: 男 | D68: 1997.10 | E68: 本科 | F68: 本科 | G68: 沈阳农业大学 | H68: 电气工程及其自动化 | J68: 3.22 | K68: 四431 | L68: 计算机三级 | M68: 竞赛1次 | N68: 国家励志奖学金
A69: 68 | B69: 于金海 | C69: 男 | D69: 1998.03 | E69: 本科 | F69: 本科 | G69: 辽宁石油化工大学 | H69: 电气工程及其自动化 | I69: 石油院校 | J69: 7.9 | K69: 四450 | N69: 国家励志奖学金
A70: 69 | B70: 郑鑫宇 | C70: 男 | D70: 1996.05 | E70: 硕士 | F70: 硕士 | G70: 沈阳理工大学 | H70: 电气工程及其自动化 | J70: 3 | K70: 六470 | P70: 基于视觉的机械臂抓取研究
A71: 70 | B71: 杨天赐 | C71: 男 | D71: 2000.08 | E71: 本科 | F71: 本科 | G71: 辽宁石油化工大学 | H71: 电气工程及其自动化 | I71: 石油院校 | J71: 4.8 | K71: 四426
A72: 71 | B72: 韩金语 | C72: 男 | D72: 2000.10 | E72: 本科 | F72: 本科 | G72: 辽宁科技大学 | H72: 电气工程及其自动化 | J72: 2.74 | K72: 四506
A73: 72 | B73: 洪浩哲 | C73: 男 | D73: 2000.08 | E73: 本科 | F73: 本科 | G73: 沈阳工业大学 | H73: 电气工程及其自动化 | J73: 2.67 | K73: 六551 | L73: 计算机三级
A74: 73 | B74: 李晓豪 | C74: 男 | D74: 2000.11 | E74: 本科 | F74: 本科 | G74: 辽宁石油化工大学 | H74: 电气工程及其自动化 | I74: 石油院校 | J74: 4.84 | K74: 四483 | L74: 计算机二级
A75: 74 | B75: 吴思远 | C75: 男 | D75: 1999.03 | E75: 本科 | F75: 本科 | G75: 沈阳建筑大学 | H75: 电气工程及其自动化 | J75: 2.74 | K75: 六430
A76: 75 | B76: 孙振鹏 | C76: 男 | D76: 2000.05 | E76: 本科 | F76: 本科 | G76: 长江大学 | H76: 自动化 | I76: 石油院校 | J76: 3.08 | K76: 四439 | M76: 优秀学生干部
A77: 76 | B77: 胡均丰 | C77: 男 | D77: 2001.05 | E77: 本科 | F77: 本科 | G77: 长江大学 | H77: 自动化 | I77: 石油院校 | J77: 2.93 | K77: 四498
A78: 77 | B78: 齐熠 | C78: 男 | D78: 1999.08 | E78: 本科 | F78: 本科 | G78: 辽宁科技大学 | H78: 自动化 | J78: 2.74 | K78: 六482 | N78: 校级奖学金2次
A79: 78 | B79: 文新宇 | C79: 男 | D79: 2000.03 | E79: 本科 | F79: 本科 | G79: 华东交通大学 | H79: 自动化 | J79: 2.28 | K79: 四450 | M79: 竞赛2次
A80: 79 | B80: 刘智轩 | C80: 男 | D80: 1999.10 | E80: 本科 | F80: 本科 | G80: 东北石油大学 | H80: 自动化 | I80: 石油院校 | J80: 2.74 | K80: 六433
A81: 80 | B81: 姚耀 | C81: 男 | D81: 1999.12 | E81: 本科 | F81: 本科 | G81: 大连海洋大学 | H81: 自动化 | J81: 2.74 | K81: 四446
A82: 81 | B82: 杨敬茹 | C82: 女 | D82: 1999.11 | E82: 本科 | F82: 本科 | G82: 沈阳理工大学 | H82: 自动化 | J82: 3.34 | K82: 四440 | L82: 计算机二级 | N82: 校级奖学金2次
A83: 82 | B83: 李杰 | C83: 男 | D83: 1999.06 | E83: 本科 | F83: 本科 | G83: 天津科技大学 | H83: 自动化 | J83: 3.28 | K83: 四456 | M83: 三好学生 | N83: 国家励志奖学金 | P83: 碳纤维复合材料
A84: 83 | B84: 段金麒 | C84: 男 | D84: 1999.05 | E84: 本科 | F84: 本科 | G84: 辽宁石油化工大学 | H84: 自动化 | I84: 石油院校 | J84: 3.62 | K84: 四483
A85: 84 | B85: 盛鹏宇 | C85: 男 | D85: 2000.12 | E85: 本科 | F85: 本科 | G85: 东北石油大学 | H85: 自动化 | I85: 石油院校 | J85: 2.5 | K85: 四452
A86: 85 | B86: 刘添翼 | C86: 男 | D86: 1997.07 | E86: 硕士 | F86: 硕士 | G86: 东北石油大学 | H86: 控制工程 | I86: 石油院校 | J86: 3.49 | K86: 六433 | M86: 竞赛3次 | P86: 人工智能算法在油气田开发领域的应用
A87: 86 | B87: 董瑞 | C87: 男 | D87: 1994.10 | E87: 硕士 | F87: 硕士 | G87: 沈阳工业大学 | H87: 控制工程 | J87: 3.49 | K87: 六462 | L87: 计算机二级 | N87: 校级奖学金2次 | P87: 基于嵌入式的植保机变流量控制器的设计
A88: 87 | B88: 游东亚 | C88: 男 | D88: 1995.09 | E88: 硕士 | F88: 硕士 | G88: 河南理工大学 | H88: 控制工程 | J88: 3.49 | K88: 六442 | L88: 计算机二级 | M88: 竞赛1次 | N88: 校级奖学金2次 | P88: 数据驱动控制
A89: 88 | B89: 国剑锋 | C89: 男 | D89: 1996.10 | E89: 硕士 | F89: 硕士 | G89: 东北石油大学 | H89: 控制工程 | I89: 石油院校 | J89: 3.11 | K89: 六472 | M89: 院级优秀学生干部 | N89: 校级奖学金 | P89: 现代信号处理；油气管道泄漏检测
A90: 89 | B90: 陈彪 | C90: 男 | D90: 1997.01 | E90: 硕士 | F90: 硕士 | G90: 武汉工程大学 | H90: 控制工程 | J90: 3.49 | K90: 六459 | N90: 校级奖学金2次
A91: 90 | B91: 王向阳 | C91: 男 | D91: 1997.10 | E91: 硕士 | F91: 硕士 | G91: 华北理工大学 | H91: 控制工程 | J91: 3.49 | K91: 六427 | P91: 基于数据挖掘的焦炉集气管压力控制
A92: 91 | B92: 刘汉东 | C92: 男 | D92: 1993.08 | E92: 硕士 | F92: 硕士 | G92: 武汉科技大学 | H92: 控制工程 | J92: 3.13 | K92: 六459 | M92: 优秀研究生 | N92: 校级奖学金2次 | P92: 机械臂运动规划
A93: 92 | B93: 李盼盼 | C93: 男 | D93: 1999.08 | E93: 本科 | F93: 本科 | G93: 中国石油大学(北京) | H93: 机械设计制造及其自动化 | I93: 211 | J93: 3.13 | K93: 四425 | M93: 三好学生 | N93: 校级奖学金
A94: 93 | B94: 张宗虎 | C94: 男 | D94: 1998.06 | E94: 本科 | F94: 本科 | G94: 山东理工大学 | H94: 机械设计制造及其自动化 | J94: 81 | K94: 四433 | N94: 国家励志奖学金
A95: 94 | B95: 吴凯 | C95: 男 | D95: 1999.02 | E95: 本科 | F95: 本科 | G95: 沈阳农业大学 | H95: 机械设计制造及其自动化 | J95: 3.68 | K95: 四435 | M95: 三好学生 | N95: 校级奖学金2次
A96: 95 | B96: 骆勇全 | C96: 男 | D96: 2000.01 | E96: 本科 | F96: 本科 | G96: 辽宁石油化工大学 | H96: 机械设计制造及其自动化 | I96: 石油院校 | J96: 5.22 | K96: 六447
A97: 96 | B97: 黄建雨 | C97: 男 | D97: 2000.02 | E97: 本科 | F97: 本科 | G97: 辽宁石油化工大学 | H97: 机械设计制造及其自动化 | I97: 石油院校 | J97: 3.74 | K97: 四450 | M97: 竞赛2次
A98: 97 | B98: 张传勖 | C98: 男 | D98: 1997.09 | E98: 本科 | F98: 本科 | G98: 辽宁工程技术大学 | H98: 机械设计制造及其自动化 | J98: 2.37 | K98: 四435 | M98: 优秀学生干部 | N98: 校级奖学金2次
A99: 98 | B99: 王晋 | C99: 男 | D99: 1994.09 | E99: 硕士 | F99: 硕士 | G99: 兰州理工大学 | H99: 机械设计制造及其自动化 | J99: 3.49 | K99: 六444 | M99: 其他荣誉 | N99: 校级奖学金2次 | P99: 旋转机械故障诊断
A100: 99 | B100: 罗锦达 | C100: 男 | D100: 2000.11 | E100: 本科 | F100: 本科 | G100: 长江大学 | H100: 机械设计制造及其自动化 | I100: 石油院校 | J100: 2.66 | K100: 四494
A101: 100 | B101: 张子旭 | C101: 男 | D101: 2000.12 | E101: 本科 | F101: 本科 | G101: 长江大学 | H101: 机械设计制造及其自动化 | I101: 石油院校 | J101: 3.15 | K101: 四443 | N101: 国家励志奖学金
A102: 101 | B102: 陈煜开 | C102: 男 | D102: 2000.08 | E102: 本科 | F102: 本科 | G102: 沈阳农业大学 | H102: 机械设计制造及其自动化 | J102: 2.74 | K102: 四428
A103: 102 | B103: 李士宇 | C103: 男 | D103: 1999.10 | E103: 本科 | F103: 本科 | G103: 辽宁石油化工大学 | H103: 机械设计制造及其自动化 | I103: 石油院校 | J103: 4.82 | K103: 四433 | M103: 竞赛2次
A104: 103 | B104: 鲁除生 | C104: 男 | D104: 1998.12 | E104: 本科 | F104: 本科 | G104: 湖北工业大学 | H104: 机械设计制造及其自动化 | J104: 3 | K104: 六485 | N104: 校级奖学金
A105: 104 | B105: 郭云龙 | C105: 男 | D105: 2000.01 | E105: 本科 | F105: 本科 | G105: 沈阳农业大学 | H105: 机械设计与制造 | J105: 2.56 | K105: 四439
A106: 105 | B106: 余文章 | C106: 男 | D106: 2001.03 | E106: 本科 | F106: 本科 | G106: 长江大学 | H106: 过程装备与控制工程 | I106: 石油院校 | J106: 2.59 | K106: 四484
A107: 106 | B107: 闵小宇 | C107: 男 | D107: 2000.02 | E107: 本科 | F107: 本科 | G107: 长江大学 | H107: 过程装备与控制工程 | I107: 石油院校 | J107: 2.71 | K107: 四430 | M107: 竞赛1次
A108: 107 | B108: 胡藤也 | C108: 男 | D108: 1999.04 | E108: 本科 | F108: 本科 | G108: 辽宁工业大学 | H108: 机械电子工程 | J108: 2.49 | K108: 六485 | M108: 竞赛4次 | N108: 校级奖学金
A109: 108 | B109: 李涵 | C109: 男 | D109: 1998.10 | E109: 本科 | F109: 本科 | G109: 西南石油大学 | H109: 机械电子工程 | I109: 石油院校 | J109: 2.74 | K109: 四458
A110: 109 | B110: 李森仡 | C110: 男 | D110: 1999.11 | E110: 本科 | F110: 本科 | G110: 辽宁工业大学 | H110: 机械电子工程 | J110: 2.32 | K110: 四449 | M110: 竞赛1次
A111: 110 | B111: 李楠 | C111: 男 | D111: 1995.09 | E111: 硕士 | F111: 硕士 | G111: 北京化工大学 | H111: 机械工程 | I111: 211 | J111: 3.35 | K111: 六449 | M111: 优秀学生干部 | N111: 校级奖学金 | P111: 聚合物加工装备设计-SCFNA法连续制备高性能导电复合材料的研究
A112: 111 | B112: 厉业民 | C112: 男 | D112: 1995.12 | E112: 硕士 | F112: 硕士 | G112: 大连工业大学 | H112: 机械工程 | J112: 2.8 | K112: 六493 | M112: 竞赛1次 | N112: 校级奖学金2次 | P112: 轴承润滑
A113: 112 | B113: 郭新宇 | C113: 男 | D113: 1998.07 | E113: 硕士 | F113: 硕士 | G113: 内蒙古科技大学 | H113: 机械工程 | J113: 3.49 | K113: 六450
A114: 113 | B114: 毛志宏 | C114: 男 | D114: 1996.10 | E114: 硕士 | F114: 硕士 | G114: 东北石油大学 | H114: 机械工程 | I114: 石油院校 | J114: 3.82 | K114: 六430 | L114: 计算机二级 | M114: 竞赛4次 | N114: 校级奖学金
A115: 114 | B115: 田博禹 | C115: 男 | D115: 2000.04 | E115: 本科 | F115: 本科 | G115: 中国石油大学(北京) | H115: 机械工程 | I115: 211 | J115: 3.4 | K115: 四552 | M115: 竞赛3次 | N115: 校级奖学金2次
A116: 115 | B116: 贺子煜 | C116: 男 | D116: 1999.04 | E116: 本科 | F116: 本科 | G116: 西南石油大学 | H116: 机械工程 | I116: 石油院校 | J116: 2.6 | K116: 四446
A117: 116 | B117: 贺齐齐 | C117: 男 | D117: 1995.04 | E117: 硕士 | F117: 硕士 | G117: 西安石油大学 | H117: 机械工程 | I117: 石油院校 | J117: 3.49 | K117: 六439
A118: 117 | B118: 刘凤聪 | C118: 男 | D118: 1996.12 | E118: 硕士 | F118: 硕士 | G118: 黑龙江科技大学 | H118: 机械工程 | J118: 3.42 | K118: 六429 | M118: 竞赛4次 | N118: 校级奖学金4次 | P118: 激光加工
A119: 118 | B119: 孔祥虎 | C119: 男 | D119: 1996.12 | E119: 硕士 | F119: 硕士 | G119: 东北大学 | H119: 机械工程 | I119: 985 | J119: 3.53 | K119: 六467 | M119: 其他荣誉 | N119: 校级奖学金2次 | P119: 研究方向：流体仿真，管道泄漏检测，结构设计。课题：烧结机本体泄漏的压力和声波信号检测与实验研究
A120: 119 | B120: 杨金洋 | C120: 男 | D120: 1996.06 | E120: 硕士 | F120: 硕士 | G120: 沈阳航空航天大学 | H120: 机械工程 | J120: 3.49 | K120: 六446 | N120: 校级奖学金
A121: 120 | B121: 王世新 | C121: 男 | D121: 2000.01 | E121: 本科 | F121: 本科 | G121: 燕山大学 | H121: 车辆工程 | J121: 2.2 | K121: 四446
A122: 121 | B122: 魏雨童 | C122: 男 | D122: 2000.06 | E122: 本科 | F122: 本科 | G122: 辽宁工程技术大学 | H122: 车辆工程 | J122: 2.15 | K122: 四425 | M122: 院级优秀个人
A123: 122 | B123: 范志博 | C123: 男 | D123: 1999.08 | E123: 本科 | F123: 本科 | G123: 辽宁石油化工大学 | H123: 测控技术与仪器 | I123: 石油院校 | J123: 4.57 | K123: 四427 | L123: 计算机二级 | M123: 优秀学生干部 | N123: 国家励志奖学金
A124: 123 | B124: 张帅印 | C124: 男 | D124: 2000.01 | E124: 本科 | F124: 本科 | G124: 辽宁石油化工大学 | H124: 测控技术与仪器 | I124: 石油院校 | J124: 4.7 | K124: 四475 | M124: 竞赛2次
A125: 124 | B125: 王泳栋 | C125: 男 | D125: 1999.07 | E125: 本科 | F125: 本科 | G125: 重庆邮电大学 | H125: 测控技术与仪器 | J125: 2.65 | K125: 四428 | M125: 竞赛2次
A126: 125 | B126: 赵风和 | C126: 男 | D126: 2000.02 | E126: 本科 | F126: 本科 | G126: 中国石油大学(北京) | H126: 测控技术与仪器 | I126: 211 | J126: 3.2 | K126: 六468 | N126: 校级奖学金2次
A127: 126 | B127: 赵金强 | C127: 男 | D127: 1998.03 | E127: 本科 | F127: 本科 | G127: 辽宁石油化工大学 | H127: 测控技术与仪器 | I127: 石油院校 | J127: 4.25 | K127: 四438 | M127: 竞赛1次
A128: 127 | B128: 吕潇然 | C128: 男 | D128: 2000.03 | E128: 本科 | F128: 本科 | G128: 西安石油大学 | H128: 测控技术与仪器 | I128: 石油院校 | J128: 2.74 | K128: 四441 | M128: 竞赛2次 | N128: 校级奖学金
A129: 128 | B129: 陆珺尧 | C129: 男 | D129: 1999.11 | E129: 本科 | F129: 本科 | G129: 长江大学 | H129: 电子信息工程 | I129: 石油院校 | J129: 2.7 | K129: 四438
A130: 129 | B130: 柴寿仓 | C130: 男 | D130: 2000.04 | E130: 本科 | F130: 本科 | G130: 东北石油大学 | H130: 电子信息工程 | I130: 石油院校 | J130: 2.57 | K130: 四441
A131: 130 | B131: 胡佳豪 | C131: 男 | D131: 1999.07 | E131: 本科 | F131: 本科 | G131: 长江大学 | H131: 电子信息工程 | I131: 石油院校 | J131: 3.02 | K131: 四458
A132: 131 | B132: 李俊龙 | C132: 男 | D132: 2000.08 | E132: 本科 | F132: 本科 | G132: 长江大学 | H132: 电子信息工程 | I132: 石油院校 | J132: 2.11 | K132: 四476
A133: 132 | B133: 孟明浩 | C133: 男 | D133: 2000.05 | E133: 本科 | F133: 本科 | G133: 大连外国语大学 | H133: 计算机科学与技术 | J133: 2.74 | K133: 六425
A134: 133 | B134: 赵琳琳 | C134: 男 | D134: 1997.09 | E134: 硕士 | F134: 硕士 | G134: 东北大学 | H134: 计算机科学与技术 | I134: 985 | J134: 3.91 | K134: 六435 | M134: 三好学生 | N134: 国家励志奖学金 | P134: 基于位置社交网络的图嵌入
A135: 134 | B135: 陈佳铭 | C135: 男 | D135: 1998.06 | E135: 本科 | F135: 本科 | G135: 辽宁石油化工大学 | H135: 计算机科学与技术 | I135: 石油院校 | J135: 5.73 | K135: 四460 | M135: 竞赛1次 | N135: 校级奖学金
A136: 135 | B136: 程歆婷 | C136: 女 | D136: 1999.05 | E136: 本科 | F136: 本科 | G136: 沈阳师范大学 | H136: 计算机科学与技术 | J136: 2.09 | K136: 四425 | M136: 竞赛8个
A137: 136 | B137: 李勇峰 | C137: 男 | D137: 1993.09 | E137: 硕士 | F137: 硕士 | G137: 内蒙古大学 | H137: 会计学 | I137: 211 | J137: 3.49 | K137: 六457 | M137: 优秀学生干部 | N137: 校级奖学金
A138: 137 | B138: 陈若彤 | C138: 男 | D138: 1998.11 | E138: 本科 | F138: 本科 | G138: 宝鸡文理学院 | H138: 会计学 | J138: 2.74 | K138: 四440 | M138: 三好学生 | N138: 国家励志奖学金
A139: 138 | B139: 高霖 | C139: 男 | D139: 1997.07 | E139: 硕士 | F139: 硕士 | G139: 昆士兰大学 | H139: 会计学 | J139: 5.13 | K139: 雅思7.5 | M139: 竞赛3次 | P139: 财务会计、审计、公司会计、管理会计和控制
A140: 139 | B140: 李柏芳 | C140: 女 | D140: 1997.12 | E140: 本科 | F140: 本科 | G140: 沈阳工学院 | H140: 会计学 | J140: 3 | K140: 四429 | N140: 校级奖学金
A141: 140 | B141: 张佳成 | C141: 男 | D141: 1999.07 | E141: 本科 | F141: 本科 | G141: 天津财经大学 | H141: 会计学 | J141: 2.74 | K141: 六442
A142: 141 | B142: 任江鹏 | C142: 男 | D142: 1997.01 | E142: 硕士 | F142: 硕士 | G142: 河北工业大学 | H142: 会计学 | I142: 211 | J142: 87.48 | K142: 六433 | M142: 优秀学生干部 | N142: 校级奖学金 | P142: 财务与会计
A143: 142 | B143: 欧阳连战 | C143: 男 | D143: 2000.09 | E143: 本科 | F143: 本科 | G143: 湖南财政经济学院 | H143: 会计学 | J143: 3.27 | K143: 四429 | M143: 竞赛2次
A144: 143 | B144: 王梓钰 | C144: 男 | D144: 1994.04 | E144: 硕士 | F144: 硕士 | G144: 宁夏大学 | H144: 会计学 | I144: 211 | J144: 3.3 | K144: 六460 | L144: 计算机二级 | M144: 优秀学生干部 | N144: 校级奖学金2次 | P144: 研究方向：现金流量视角下BC公司财务风险评价和控制研究
A145: 144 | B145: 杨若璇 | C145: 男 | D145: 1998.08 | E145: 硕士 | F145: 硕士 | G145: 西南财经大学 | H145: 会计学 | I145: 211 | J145: 3.72 | K145: 六542 | L145: 计算机二级 | M145: 校级优秀毕业论文 | N145: 校级奖学金2次
A146: 145 | B146: 王亭宇 | C146: 女 | D146: 1999.10 | E146: 本科 | F146: 本科 | G146: 辽宁对外经贸学院 | H146: 会计学 | J146: 3.09 | K146: 四431
A147: 146 | B147: 熊晓琳 | C147: 女 | D147: 2001.04 | E147: 本科 | F147: 本科 | G147: 郑州大学 | H147: 财务管理 | I147: 211 | J147: 2.43 | K147: 四466 | M147: 院级优秀学生干部
A148: 147 | B148: 何汶松 | C148: 男 | D148: 1997.11 | E148: 硕士 | F148: 硕士 | G148: 四川农业大学 | H148: 金融学 | I148: 211 | J148: 3.51 | K148: 六487 | M148: 其他荣誉 | N148: 省部级奖学金 | P148: 农业天气风险测度与普惠式天气金融发展路径研究、教育部国别与区域研究项目：德国金融政策研究
A149: 148 | B149: 盖哲 | C149: 男 | D149: 1998.01 | E149: 硕士 | F149: 硕士 | G149: 山东财经大学 | H149: 金融学 | J149: 3.49 | K149: 六503 | L149: 计算机三级 | M149: 优秀毕业生 | N149: 校级奖学金3次 | P149: 证券投资与资本市场
A150: 149 | B150: 郑有祺 | C150: 女 | D150: 1997.10 | E150: 硕士 | F150: 硕士 | G150: 悉尼大学 | H150: 金融学 | J150: 3.49 | K150: 六539 | L150: 计算机二级
A151: 150 | B151: 李健 | C151: 男 | D151: 1995.08 | E151: 硕士 | F151: 硕士 | G151: 吉林财经大学 | H151: 法律 | J151: 3.49 | K151: 六494 | M151: 竞赛1次 | N151: 校级奖学金 | P151: 环境公益诉讼
A152: 151 | B152: 扈泽宇 | C152: 男 | D152: 1994.07 | E152: 硕士 | F152: 硕士 | G152: 悉尼大学 | H152: 法律 | J152: 3.49 | K152: 雅思8 | P152: 法治的意义与价值
A153: 152 | B153: 苏士广 | C153: 男 | D153: 1998.08 | E153: 硕士 | F153: 硕士 | G153: 西南政法大学 | H153: 法律 | J153: 3.49 | K153: 六485
A154: 153 | B154: 赵轩 | C154: 男 | D154: 1996.08 | E154: 硕士 | F154: 硕士 | G154: 湘潭大学 | H154: 法律 | J154: 3.49 | K154: 六437 | P154: 党内法规学、党的领导
A155: 154 | B155: 李斌 | C155: 男 | D155: 1997.09 | E155: 本科 | F155: 本科 | G155: 西安石油大学 | H155: 国际经济与贸易 | I155: 石油院校 | J155: 2.9 | K155: 四447 | N155: 校级奖学金
A156: 155 | B156: 谢茜 | C156: 男 | D156: 1997.08 | E156: 本科 | F156: 本科 | G156: 重庆科技学院 | H156: 国际经济与贸易 | J156: 3.68 | K156: 四482 | M156: 优秀学生干部 | N156: 国家励志奖学金
A157: 156 | B157: 张禄田 | C157: 男 | D157: 1997.09 | E157: 本科 | F157: 本科 | G157: 成都大学 | H157: 国际经济与贸易 | J157: 2.74 | K157: 四444
A158: 157 | B158: 乔梁 | C158: 男 | D158: 1999.06 | E158: 本科 | F158: 本科 | G158: 西北民族大学 | H158: 国际经济与贸易 | J158: 2.74 | K158: 四438
A159: 158 | B159: 田晓东 | C159: 男 | D159: 2000.10 | E159: 本科 | F159: 本科 | G159: 沈阳工业大学 | H159: 油气储运工程 | J159: 3.15 | K159: 四432 | M159: 优秀学生干部 | N159: 校级奖学金2次
A160: 159 | B160: 于靖人 | C160: 男 | D160: 1999.06 | E160: 本科 | F160: 本科 | G160: 沈阳工业大学 | H160: 油气储运工程 | J160: 2.05 | K160: 四450
A161: 160 | B161: 蔡阳阳 | C161: 男 | D161: 1998.05 | E161: 本科 | F161: 本科 | G161: 西安石油大学 | H161: 油气储运工程 | I161: 石油院校 | J161: 2.32 | K161: 四461 | L161: 计算机二级 | M161: 竞赛1次
A162: 161 | B162: 吴超 | C162: 男 | D162: 1999.08 | E162: 本科 | F162: 本科 | G162: 中国石油大学（北京）克拉玛依校区 | H162: 油气储运工程 | I162: 石油院校 | J162: 2.14 | K162: 四449
A163: 162 | B163: 范硕 | C163: 男 | D163: 2000.03 | E163: 本科 | F163: 本科 | G163: 辽宁石油化工大学 | H163: 油气储运工程 | I163: 石油院校 | J163: 3.85 | K163: 四443
A164: 163 | B164: 杨策 | C164: 男 | D164: 1996.01 | E164: 硕士 | F164: 硕士 | G164: 东北石油大学 | H164: 建筑与土木工程 | I164: 石油院校 | J164: 3.49 | K164: 六431 | M164: 三好学生 | N164: 校级奖学金3次 | P164: 混凝土材料力学行为与损伤失效机理
A165: 1 | B165: 刘子赫 | C165: 男 | D165: 1998.01 | E165: 硕士 | F165: 硕士 | G165: 华威大学（英国） | H165: 金融管理与实务 | J165: 3.49 | K165: 六445
A166: 2 | B166: 姚一惟 | C166: 男 | D166: 2000.03 | E166: 本科 | F166: 本科 | G166: 河南财经政法大学 | H166: 金融数学 | J166: 2.74 | K166: 四481
A167: 3 | B167: 张佳怡 | C167: 男 | D167: 1997.02 | E167: 硕士 | F167: 硕士 | G167: 上海交通大学 | H167: 中国现当代文学 | I167: 985 | J167: 3.82 | K167: 六569 | M167: 二等奖学金 | N167: 国家励志奖学金 | P167: 新时期以来草原诗歌中的认同建构
A168: 4 | B168: 顾席铭 | C168: 男 | D168: 1995.09 | E168: 硕士 | F168: 硕士 | G168: 兵库县立大学 | H168: 人工智能 | J168: 3 | K168: 日二101 | M168: 竞赛2次 | P168: 计算机视觉，无标签数据在图像分类与图像分割中的应用
A169: 5 | B169: 王良 | C169: 男 | D169: 1994.12 | E169: 硕士研究生 | F169: 硕士研究生 | G169: 东北财经大学 | H169: 金融工程 | J169: 3.6 | K169: 六445 | M169: 竞赛1次 | N169: 校级奖学金 | P169: 在经济不确定情况下基金业绩对投资者行为的影响分析
A170: 6 | B170: 范恒懿 | C170: 男 | D170: 1998.05 | E170: 硕士研究生 | F170: 硕士研究生 | G170: 布里斯托大学（英国） | H170: 管理科学 | J170: 3.49 | K170: 六470 | P170: 公司财务绩效管理
A171: 7 | B171: 王世星 | C171: 男 | D171: 2000.07 | E171: 大学本科 | F171: 大学本科 | G171: 辽宁科技大学 | H171: 能源化学工程 | J171: 2.74 | K171: 未过四
A172: 8 | B172: 张凯 | C172: 男 | D172: 1996.03 | E172: 硕士 | F172: 硕士 | G172: 长江大学 | H172: 矿产普查与勘探 | I172: 石油院校 | J172: 3.49 | K172: 未过六 | M172: 优秀学生干部 | N172: 校级奖学金4次 | P172: 参与科研项目“仪陇-平昌地区海相碳酸盐岩岩相古地理研究”与“合川-潼南区块茅口组储层成因机研究“
A173: 9 | B173: 刘延双 | C173: 男 | D173: 1999.04 | E173: 本科 | F173: 本科 | G173: 西南石油大学 | H173: 石油工程 | I173: 石油院校 | J173: 2.54 | K173: 未过四 | M173: 竞赛2次
A174: 10 | B174: 张帅帅 | C174: 男 | D174: 1999.04 | E174: 本科 | F174: 本科 | G174: 东北石油大学 | H174: 石油工程 | I174: 石油院校 | J174: 2.62 | K174: 未过四
A175: 11 | B175: 刘加乐 | C175: 男 | D175: 2000.01 | E175: 本科 | F175: 本科 | G175: 西安石油大学 | H175: 石油工程 | I175: 石油院校 | J175: 2.96 | K175: 未过四
A176: 12 | B176: 张忠强 | C176: 男 | D176: 1996.09 | E176: 硕士 | F176: 硕士 | G176: 西南石油大学 | H176: 石油与天然气工程 | I176: 石油院校 | J176: 3.1 | K176: 未过六 | P176: 油气田开发
A177: 13 | B177: 赵元 | C177: 男 | D177: 1999.04 | E177: 本科 | F177: 本科 | G177: 长江大学 | H177: 石油工程 | I177: 石油院校 | J177: 2.51 | K177: 未过四
A178: 14 | B178: 任海帆 | C178: 男 | D178: 1997.08 | E178: 硕士 | F178: 硕士 | G178: 中国石油大学(北京) | H178: 石油与天然气工程 | I178: 211 | J178: 3.13 | K178: 未过六 | M178: 优秀学生干部 | N178: 校级奖学金3次 | P178: 井控、压井、气侵监测、气液两相流
A179: 15 | B179: 马涛 | C179: 男 | D179: 1995.11 | E179: 硕士 | F179: 硕士 | G179: 中国石油大学(华东) | H179: 石油与天然气工程 | I179: 石油院校 | J179: 3.49 | K179: 未过六
A180: 16 | B180: 钟浩霖 | C180: 男 | D180: 1999.03 | E180: 本科 | F180: 本科 | G180: 西南石油大学 | H180: 石油工程 | I180: 石油院校 | J180: 2.74 | K180: 未过四 | M180: 竞赛2次
A181: 17 | B181: 韩冰 | C181: 男 | D181: 1995.08 | E181: 硕士 | F181: 硕士 | G181: 长江大学 | H181: 地质工程 | I181: 石油院校 | J181: 3.5 | K181: 未过六 | P181: 四维地震油藏渗流
A182: 18 | B182: 柳思祺 | C182: 男 | D182: 1998.03 | E182: 本科 | F182: 本科 | G182: 长江大学 | H182: 资源勘查工程 | I182: 石油院校 | J182: 2.2 | K182: 四430
A183: 19 | B183: 冀嘉兴 | C183: 男 | D183: 1999.05 | E183: 本科 | F183: 本科 | G183: 西安石油大学 | H183: 地质工程 | I183: 石油院校 | J183: 2.94 | K183: 未过四
A184: 20 | B184: 程哲 | C184: 男 | D184: 1997.11 | E184: 硕士 | F184: 硕士 | G184: 长江大学 | H184: 化学工程 | I184: 石油院校 | J184: 3.75 | K184: 未过六 | M184: 优秀学生干部 | N184: 校级奖学金3次 | P184: 驱油用表面活性剂
A185: 21 | B185: 池伸 | C185: 男 | D185: 1995.06 | E185: 硕士 | F185: 硕士 | G185: 长江大学 | H185: 化学工程 | I185: 石油院校 | J185: 3.6 | K185: 未过六 | P185: 腐蚀电化学、缓蚀剂合成及评价
A186: 22 | B186: 陶振龙 | C186: 男 | D186: 1998.01 | E186: 本科 | F186: 本科 | G186: 长江大学 | H186: 应用化学 | I186: 石油院校 | J186: 1.85 | K186: 未过四 | M186: 竞赛1次
A187: 23 | B187: 王振宇 | C187: 男 | D187: 1996.11 | E187: 本科 | F187: 本科 | G187: 安阳工学院 | H187: 机械设计制造及其自动化 | J187: 4.5 | K187: 未过四 | M187: 优秀学生干部 | N187: 国家励志奖学金
A188: 24 | B188: 潘贤杨 | C188: 男 | D188: 1998.12 | E188: 本科 | F188: 本科 | G188: 长江大学 | H188: 测控技术与仪器 | I188: 石油院校 | J188: 2.4 | K188: 未过四
A189: 25 | B189: 吕其龙 | C189: 男 | D189: 2000.06 | E189: 本科 | F189: 本科 | G189: 东北石油大学 | H189: 海洋油气工程 | I189: 石油院校 | J189: 2.74 | K189: 未过四
A190: 26 | B190: 杨超 | C190: 男 | D190: 1998.06 | E190: 本科 | F190: 本科 | G190: 西安石油大学 | H190: 资源勘查工程 | I190: 石油院校 | J190: 2.58 | K190: 未过四
A191: 27 | B191: 陶冶 | C191: 男 | D191: 1999.01 | E191: 本科 | F191: 本科 | G191: 西安石油大学 | H191: 资源勘查工程 | I191: 石油院校 | J191: 3.01 | K191: 未过四 | M191: 竞赛1次
A192: 28 | B192: 闻海楠 | C192: 男 | D192: 1995.10 | E192: 硕士 | F192: 硕士 | G192: 中国石油大学(华东) | H192: 石油与天然气工程 | I192: 石油院校 | J192: 3.49 | K192: 未过六
A193: 29 | B193: 李伟涛 | C193: 男 | D193: 1997.02 | E193: 硕士 | F193: 硕士 | G193: 西南石油大学 | H193: 石油与天然气工程 | I193: 石油院校 | J193: 3.38 | K193: 六432 | P193: 油气田开发
A194: 30 | B194: 徐钊博 | C194: 男 | D194: 2000.11 | E194: 本科 | F194: 本科 | G194: 西安石油大学 | H194: 海洋油气工程 | I194: 石油院校 | J194: 2.42 | K194: 未过四 | M194: 竞赛2次
A195: 31 | B195: 韩生宁 | C195: 男 | D195: 1998.02 | E195: 本科 | F195: 本科 | G195: 西安石油大学 | H195: 资源勘查工程 | I195: 石油院校 | J195: 2.68 | K195: 未过四 | M195: 竞赛1次
A196: 32 | B196: 卢思睿 | C196: 男 | D196: 1999.04 | E196: 本科 | F196: 本科 | G196: 黑龙江科技大学 | H196: 计算机科学与技术 | J196: 2.09 | K196: 四467
A197: 33 | B197: 张世龙 | C197: 男 | D197: 2000.09 | E197: 本科 | F197: 本科 | G197: 辽宁石油化工大学 | H197: 安全工程 | I197: 石油院校 | J197: 3.6 | K197: 未过四
A198: 34 | B198: 张露馨 | C198: 女 | D198: 2000.01 | E198: 大学本科 | F198: 大学本科 | G198: 辽宁工程技术大学 | H198: 安全工程 | J198: 1.98 | K198: 四473 | M198: 竞赛3次
A199: 35 | B199: 张怡茹 | C199: 女 | D199: 2000.02 | E199: 大学本科 | F199: 大学本科 | G199: 西安石油大学 | H199: 勘查技术与工程 | I199: 石油院校 | J199: 2.47 | K199: 四426
A200: 36 | B200: 王晶晶 | C200: 女 | D200: 1996.10 | E200: 硕士研究生 | F200: 硕士研究生 | G200: 中国矿业大学(北京) | H200: 地质工程 | J200: 3.49 | K200: 六474 | L200: 计算机二级 | M200: 三好学生 | N200: 国家励志奖学金 | P200: 基于机器学习的地质灾害预测
... 67 more rows

Sheet 基础分评分表20210518 (2) (hidden)
A1: 长城钻探高校毕业生招聘面试基础分评分表（2021.05.18）
A2: 序号 | B2: 个人基本情况 | H2: 个人基础量化分(50分) | O2: 研究生科研能力（20分） | R2: 总得分 | S2: 备注
B3: 姓名 | C3: 性别 | D3: 出生年月 | E3: 学历 | F3: 毕业院校 | G3: 所学专业 | H3: 毕业院校（10分） | I3: 学习成绩（20分） | J3: 外语水平（8分） | K3: 计算机水平（2分） | L3: 荣誉称号 (5分) | M3: 获奖学金 (5分) | N3: 基础分合计 | O3: 发表论文 (10分) | P3: 研究方向 (10分) | Q3: 科研分合计 | T3: 毕业院校 | U3: 学分绩点 | V3: 英语成绩 | W3: 计算机证书 | X3: 获得荣誉情况 | Y3: 获奖学金情况 | Z3: 发表论文情况 | AA3: 研究方向情况
A4: 1 | B4: 张辉 | C4: 男 | D4: 1998.01 | E4: 硕士 | F4: 山东财经大学 | G4: 法律 | H4: 2 | I4: =U4*4 -> 13.36 | J4: 5 | L4: 5 | M4: 4 | N4: =SUM(H4:M4) -> 29.36 | P4: 7 | Q4: =SUM(O4:P4) -> 7 | R4: =(N4+Q4)/70*50 -> 25.97 | U4: 3.34 | V4: 六429 | W4: 无 | X4: 校级优秀学生干部/校级优秀共青团员 | Y4: 校级2个 | Z4: 无 | AA4: 经济法
A5: 2 | B5: 熊宇杉 | C5: 男 | D5: 1995.08 | E5: 硕士 | F5: 中国社会科学院大学 | G5: 法律 | H5: 2 | I5: 14.8 | J5: 5 | L5: 4 | M5: 2 | N5: 27.8 | Q5: 0 | R5: 19.86 | U5: 3.7 | V5: 六441 | W5: 无 | X5: 系级优秀学生干部/系级深圳市公安局龙华分局优秀实习生 | Y5: 校级1个 | Z5: 无 | AA5: 庭审中心之民事答辩制度研究
A6: 3 | B6: 蒋潆莹 | C6: 女 | D6: 1996.53 | E6: 硕士 | F6: 吉林大学 | G6: 法律 | H6: 3 | I6: 15 | J6: 8 | K6: 2 | L6: 2 | N6: 30 | Q6: 0 | R6: 21.43 | T6: 985 | U6: 3.75 | V6: 六525 | W6: 计算机二级 | X6: 校级优秀团员 | Y6: 无 | Z6: 无 | AA6: 自动驾驶模式下交通肇事的刑事责任分析
A7: 4 | B7: 杜义泽 | C7: 男 | D7: 1993.20 | E7: 硕士 | F7: 四川省社会科学院党校 | G7: 法律 | H7: 2 | I7: 14.8 | J7: 5 | L7: 2 | M7: 5 | N7: 28.8 | Q7: 0 | R7: 20.57 | U7: 3.7 | V7: 六444 | W7: 无 | X7: 其它成华区司法所2018-2019年度优秀法律志愿者 | Y7: 省部级2个 | Z7: 无 | AA7: 行政法
A8: 5 | B8: 李重阳 | C8: 女 | D8: 1991.01 | E8: 硕士 | F8: 吉林大学 | G8: 法律 | H8: 3 | I8: 13.32 | J8: 5 | N8: 21.32 | P8: 7 | Q8: 7 | R8: 20.23 | T8: 985 | U8: 3.33 | V8: 专八65 | W8: 无 | X8: 无 | Y8: 无 | Z8: 无 | AA8: 民商法学
A9: 6 | B9: 郭沿宏 | C9: 女 | D9: 1995.01 | E9: 硕士 | F9: 西北政法大学 | G9: 法律 | H9: 2 | I9: =U9/5 -> 12.8 | J9: 5 | M9: 2 | N9: 21.8 | P9: 7 | Q9: 7 | R9: 20.57 | U9: 64 | V9: 六437 | W9: 无 | X9: 无 | Y9: 校级1个 | Z9: 无 | AA9: 知识产权法；著作权法领域合法来源抗辩制度研究
A10: 7 | B10: 郭艺 | C10: 男 | D10: 1995.06 | E10: 硕士 | F10: 新疆大学 | G10: 法律 | H10: 3 | I10: =U10*4 -> 10.52 | J10: 5 | L10: 5 | M10: 5 | N10: 28.52 | P10: 7 | Q10: 7 | R10: 25.37 | T10: 211 | U10: 2.63 | V10: 六430 | W10: 无 | X10: 省部级优秀学生干部/院级优秀学生干部 | Y10: 省部级1个 校级1个 | Z10: 无 | AA10: 反垄断法
A11: 8 | B11: 陈清荣 | C11: 男 | D11: 1995.10 | E11: 硕士 | F11: 西南政法大学 | G11: 法律 | H11: 2 | I11: =U11*4 -> 15.6 | J11: 6 | M11: 4 | N11: 27.6 | Q11: 0 | R11: 19.71 | U11: 3.9 | V11: 六463 | W11: 无 | X11: 无 | Y11: 校级2个 | Z11: 无 | AA11: 刑事法实务
A12: 9 | B12: 潘圆圆 | C12: 女 | D12: 1995.01 | E12: 硕士 | F12: 广东财经大学 | G12: 法律 | H12: 2 | I12: 14 | J12: 5 | K12: 2 | L12: 5 | M12: 2 | N12: 30 | Q12: 0 | R12: 21.43 | U12: 3.5 | V12: 六432 | W12: 计算机二级 | X12: 校级三好学生/校级优秀学生干部 | Y12: 校级1个 | Z12: 无 | AA12: 我国慈善信托监管法律制度研究
A13: 10 | B13: 赵玉霞 | C13: 女 | D13: 1993.12 | E13: 硕士 | F13: 吉林大学 | G13: 法律 | H13: 3 | I13: 13.36 | J13: 6 | N13: 22.36 | P13: 7 | Q13: 7 | R13: 20.97 | T13: 985 | U13: 3.34 | V13: 六451 | W13: 无 | X13: 无 | Y13: 无 | Z13: 无 | AA13: 国际法
A14: 11 | B14: 廖璐琦 | C14: 女 | D14: 1996.04 | E14: 硕士 | F14: 西华大学 | G14: 法律 | H14: 2 | I14: =U14/5 -> 17.2 | J14: 8 | K14: 2 | L14: 5 | M14: 5 | N14: 39.2 | Q14: 0 | R14: 28.00 | U14: 86 | V14: 六557 | W14: 计算机二级 | X14: 校级先进个人/省部级2016年“创青春”全国大学生创业大赛重庆赛区金奖/校级2015年全国大学生英语竞赛C类三等奖 | Y14: 校级3个 | Z14: 无 | AA14: 表见代理适用
A15: 12 | B15: 武蓉 | C15: 女 | D15: 1994.01 | E15: 硕士 | F15: 中国民航大学 | G15: 法律 | H15: 2 | I15: =U15*4 -> 10.8 | J15: 6 | M15: 5 | N15: 23.8 | Q15: 0 | R15: 17.00 | U15: 2.7 | V15: 六463 | W15: 无 | X15: 无 | Y15: 国家级1个 | Z15: 无 | AA15: 航空法
A16: 13 | B16: 王芳 | C16: 女 | D16: 1994.09 | E16: 硕士 | F16: 燕山大学 | G16: 法律 | H16: 2 | I16: 18 | J16: 8 | L16: 5 | M16: 5 | N16: 38 | P16: 7 | Q16: 7 | R16: 32.14 | U16: 90 | V16: 六512 | W16: 无 | X16: 院级三好学生 | Y16: 校级3个 | Z16: 无 | AA16: 涉外消费者合同
A17: 14 | B17: 蔡雨萌 | C17: 女 | D17: 1994.10 | E17: 硕士 | F17: 天津师范大学 | G17: 法律 | H17: 2 | I17: 12.4 | J17: 8 | M17: 5 | N17: 27.4 | Q17: 0 | R17: 19.57 | U17: 62 | V17: 六510 | W17: 无 | X17: 无 | Y17: 校级3个 | Z17: 无 | AA17: 不限
A18: 15 | B18: 张丁以 | C18: 女 | D18: 1998.03 | E18: 本科 | F18: 西南石油大学 | G18: 法学 | H18: 2 | I18: 11.72 | J18: 2 | N18: 15.72 | Q18: 0 | R18: =N18+Q18 -> 15.72 | T18: 石油院校 | U18: 2.93 | V18: 四434 | W18: 无 | X18: 无 | Y18: 无
A19: 16 | B19: 赵耀民 | C19: 男 | D19: 1995.00 | E19: 硕士 | F19: UniversityCollegeLondon | G19: 法学 | H19: 3 | I19: 15.6 | J19: 8 | L19: 4 | M19: 2 | N19: 32.6 | P19: 7 | Q19: 7 | R19: =(N19+Q19)/70*50 -> 28.29 | U19: 3.9 | V19: 六536 | W19: 无 | X19: 院级优秀学生干部 | Y19: 校级1个 | Z19: 无 | AA19: 公司金融：针对欧盟和美国对信用评级机构的监管改革效果的比较和批判分析
A20: 17 | B20: 丁再瑄 | C20: 女 | D20: 1999.09 | E20: 本科 | F20: 云南大学 | G20: 法学 | H20: 3 | I20: 10.96 | J20: 5 | K20: 2 | M20: 2 | N20: 22.96 | Q20: 0 | R20: =N20+Q20 -> 22.96 | T20: 211 | U20: 2.74 | V20: 六435 | W20: 计算机二级 | X20: 无 | Y20: 校级1个
